Council Name,Date,TransNo,Amount � (Excl VAT),Supplier name,Supplier Category,Expense Area,Expense Type,Expense Code
London Borough of Sutton,31/07/2021,50052769,"2,671.42",4D Care Ltd,SOCIAL SERVICES RESIDENTIAL,Peoples Services,Residential Care-Children,A56115
London Borough of Sutton,31/08/2021,50052770,"16,562.85",4D Care Ltd,SOCIAL SERVICES RESIDENTIAL,Peoples Services,Residential Care-Children,A56115
London Borough of Sutton,27/08/2021,20008330,"3,876.92",5k Universal Ltd,SUNDRY SUPPLIER - HOUSING,Environment Housing and Neighbourhoods,Miscellaneous Expenses,A49000
London Borough of Sutton,03/09/2021,50052735,"14,808.26",A Step Beyond Ltd,SOCIAL SERVICES - OTHER,Peoples Services,Approved Lodgings,A61000
London Borough of Sutton,01/08/2021,50052676,"30,070.00",A Wilderness Way Ltd,CHILDREN'S SERVICES - FOSTERING & ADOPTION SERVICES,Peoples Services,Residential Care-Children,A56115
London Borough of Sutton,01/08/2021,50052677,"30,070.00",A Wilderness Way Ltd,CHILDREN'S SERVICES - FOSTERING & ADOPTION SERVICES,Peoples Services,Residential Care-Children,A56115
London Borough of Sutton,28/07/2021,20009574,667.58,A24 Group Ltd,CHILDREN'S SERVICE - OTHER,Health and Wellbeing,Agency Staff - Other,A10505
London Borough of Sutton,03/09/2021,50050576,"-2,814.00",Abbey Care Centre,SOCIAL SERVICES RESIDENTIAL,Peoples Services,Nursing Care - 3rd party top up payment,A56023
London Borough of Sutton,03/09/2021,50050576,"13,600.20",Abbey Care Centre,SOCIAL SERVICES RESIDENTIAL,Peoples Services,Nursing Care Short Term,A56026
London Borough of Sutton,06/09/2021,50049662,"1,056.72",ABC Pre-School Beddington LLP,GRANTS & EX GRATIA PAYMENTS,Peoples Services,Place Funding,A56110
London Borough of Sutton,06/09/2021,50049724,"1,697.85",ABC Pre-School Beddington LLP,GRANTS & EX GRATIA PAYMENTS,Peoples Services,Place Funding,A56110
London Borough of Sutton,30/08/2021,20008289,"5,589.89",Absolute Care Services Ltd,SOCIAL SERVICES DAY CARE,Peoples Services,Homecare Core Services,A56020
London Borough of Sutton,30/08/2021,20008290,"5,348.23",Absolute Care Services Ltd,SOCIAL SERVICES DAY CARE,Peoples Services,Homecare Core Services,A56020
London Borough of Sutton,01/09/2021,20008561,"1,467.76",Absolute Care Services Ltd,SOCIAL SERVICES DAY CARE,Peoples Services,Building Rents,A22005
London Borough of Sutton,30/08/2021,20008576,"6,357.91",Absolute Care Services Ltd,SOCIAL SERVICES DAY CARE,Peoples Services,Homecare Core Services,A56020
London Borough of Sutton,06/09/2021,20008836,"6,357.91",Absolute Care Services Ltd,SOCIAL SERVICES DAY CARE,Peoples Services,Homecare Core Services,A56020
London Borough of Sutton,06/09/2021,20008837,"5,589.89",Absolute Care Services Ltd,SOCIAL SERVICES DAY CARE,Peoples Services,Homecare Core Services,A56020
London Borough of Sutton,06/09/2021,20008838,"5,348.23",Absolute Care Services Ltd,SOCIAL SERVICES DAY CARE,Peoples Services,Homecare Core Services,A56020
London Borough of Sutton,13/09/2021,20009139,"6,357.91",Absolute Care Services Ltd,SOCIAL SERVICES DAY CARE,Peoples Services,Homecare Core Services,A56020
London Borough of Sutton,13/09/2021,20009140,"5,589.89",Absolute Care Services Ltd,SOCIAL SERVICES DAY CARE,Peoples Services,Homecare Core Services,A56020
London Borough of Sutton,13/09/2021,20009141,"5,348.23",Absolute Care Services Ltd,SOCIAL SERVICES DAY CARE,Peoples Services,Homecare Core Services,A56020
London Borough of Sutton,20/09/2021,20009511,"6,357.91",Absolute Care Services Ltd,SOCIAL SERVICES DAY CARE,Peoples Services,Homecare Core Services,A56020
London Borough of Sutton,20/09/2021,20009512,"5,348.23",Absolute Care Services Ltd,SOCIAL SERVICES DAY CARE,Peoples Services,Homecare Core Services,A56020
London Borough of Sutton,20/09/2021,20009513,"5,589.89",Absolute Care Services Ltd,SOCIAL SERVICES DAY CARE,Peoples Services,Homecare Core Services,A56020
London Borough of Sutton,11/07/2021,50052088,60.68,Absolute Care Services Ltd,SOCIAL SERVICES DAY CARE,Peoples Services,Home Care Services,A56019
London Borough of Sutton,11/07/2021,50052088,530.97,Absolute Care Services Ltd,SOCIAL SERVICES DAY CARE,Peoples Services,Home Care Services,A56019
London Borough of Sutton,18/07/2021,50052089,59.9,Absolute Care Services Ltd,SOCIAL SERVICES DAY CARE,Peoples Services,Home Care Services,A56019
London Borough of Sutton,18/07/2021,50052089,524.17,Absolute Care Services Ltd,SOCIAL SERVICES DAY CARE,Peoples Services,Home Care Services,A56019
London Borough of Sutton,25/07/2021,50052090,59.14,Absolute Care Services Ltd,SOCIAL SERVICES DAY CARE,Peoples Services,Home Care Services,A56019
London Borough of Sutton,25/07/2021,50052090,517.49,Absolute Care Services Ltd,SOCIAL SERVICES DAY CARE,Peoples Services,Home Care Services,A56019
London Borough of Sutton,01/08/2021,50052091,58.35,Absolute Care Services Ltd,SOCIAL SERVICES DAY CARE,Peoples Services,Home Care Services,A56019
London Borough of Sutton,01/08/2021,50052091,510.54,Absolute Care Services Ltd,SOCIAL SERVICES DAY CARE,Peoples Services,Home Care Services,A56019
London Borough of Sutton,08/08/2021,50052092,59.9,Absolute Care Services Ltd,SOCIAL SERVICES DAY CARE,Peoples Services,Home Care Services,A56019
London Borough of Sutton,08/08/2021,50052092,524.17,Absolute Care Services Ltd,SOCIAL SERVICES DAY CARE,Peoples Services,Home Care Services,A56019
London Borough of Sutton,11/07/2021,50052278,484.41,Absolute Care Services Ltd,SOCIAL SERVICES DAY CARE,Peoples Services,Home Care Services,A56019
London Borough of Sutton,11/07/2021,50052278,69.26,Absolute Care Services Ltd,SOCIAL SERVICES DAY CARE,Peoples Services,Home Care Services,A56019
London Borough of Sutton,11/07/2021,50052278,101.01,Absolute Care Services Ltd,SOCIAL SERVICES DAY CARE,Peoples Services,Home Care Services,A56019
London Borough of Sutton,18/07/2021,50052279,484.41,Absolute Care Services Ltd,SOCIAL SERVICES DAY CARE,Peoples Services,Home Care Services,A56019
London Borough of Sutton,18/07/2021,50052279,69.26,Absolute Care Services Ltd,SOCIAL SERVICES DAY CARE,Peoples Services,Home Care Services,A56019
London Borough of Sutton,18/07/2021,50052279,101.01,Absolute Care Services Ltd,SOCIAL SERVICES DAY CARE,Peoples Services,Home Care Services,A56019
London Borough of Sutton,25/07/2021,50052280,484.41,Absolute Care Services Ltd,SOCIAL SERVICES DAY CARE,Peoples Services,Home Care Services,A56019
London Borough of Sutton,25/07/2021,50052280,69.26,Absolute Care Services Ltd,SOCIAL SERVICES DAY CARE,Peoples Services,Home Care Services,A56019
London Borough of Sutton,25/07/2021,50052280,101.01,Absolute Care Services Ltd,SOCIAL SERVICES DAY CARE,Peoples Services,Home Care Services,A56019
London Borough of Sutton,01/08/2021,50052281,484.41,Absolute Care Services Ltd,SOCIAL SERVICES DAY CARE,Peoples Services,Home Care Services,A56019
London Borough of Sutton,01/08/2021,50052281,69.26,Absolute Care Services Ltd,SOCIAL SERVICES DAY CARE,Peoples Services,Home Care Services,A56019
London Borough of Sutton,01/08/2021,50052281,101.01,Absolute Care Services Ltd,SOCIAL SERVICES DAY CARE,Peoples Services,Home Care Services,A56019
London Borough of Sutton,08/08/2021,50052282,481.62,Absolute Care Services Ltd,SOCIAL SERVICES DAY CARE,Peoples Services,Home Care Services,A56019
London Borough of Sutton,08/08/2021,50052282,68.87,Absolute Care Services Ltd,SOCIAL SERVICES DAY CARE,Peoples Services,Home Care Services,A56019
London Borough of Sutton,08/08/2021,50052282,100.42,Absolute Care Services Ltd,SOCIAL SERVICES DAY CARE,Peoples Services,Home Care Services,A56019
London Borough of Sutton,05/09/2021,50058881,60.41,Absolute Care Services Ltd,SOCIAL SERVICES DAY CARE,Peoples Services,Home Care Services,A56019
London Borough of Sutton,05/09/2021,50058881,528.59,Absolute Care Services Ltd,SOCIAL SERVICES DAY CARE,Peoples Services,Home Care Services,A56019
London Borough of Sutton,15/08/2021,50058882,62,Absolute Care Services Ltd,SOCIAL SERVICES DAY CARE,Peoples Services,Home Care Services,A56019
London Borough of Sutton,15/08/2021,50058882,534.75,Absolute Care Services Ltd,SOCIAL SERVICES DAY CARE,Peoples Services,Home Care Services,A56019
London Borough of Sutton,22/08/2021,50058883,62,Absolute Care Services Ltd,SOCIAL SERVICES DAY CARE,Peoples Services,Home Care Services,A56019
London Borough of Sutton,22/08/2021,50058883,534.75,Absolute Care Services Ltd,SOCIAL SERVICES DAY CARE,Peoples Services,Home Care Services,A56019
London Borough of Sutton,29/08/2021,50058884,62,Absolute Care Services Ltd,SOCIAL SERVICES DAY CARE,Peoples Services,Home Care Services,A56019
London Borough of Sutton,29/08/2021,50058884,534.75,Absolute Care Services Ltd,SOCIAL SERVICES DAY CARE,Peoples Services,Home Care Services,A56019
London Borough of Sutton,12/09/2021,50058885,62,Absolute Care Services Ltd,SOCIAL SERVICES DAY CARE,Peoples Services,Home Care Services,A56019
London Borough of Sutton,12/09/2021,50058885,534.75,Absolute Care Services Ltd,SOCIAL SERVICES DAY CARE,Peoples Services,Home Care Services,A56019
London Borough of Sutton,19/09/2021,50058886,62,Absolute Care Services Ltd,SOCIAL SERVICES DAY CARE,Peoples Services,Home Care Services,A56019
London Borough of Sutton,19/09/2021,50058886,534.75,Absolute Care Services Ltd,SOCIAL SERVICES DAY CARE,Peoples Services,Home Care Services,A56019
London Borough of Sutton,05/09/2021,50059174,490.3,Absolute Care Services Ltd,SOCIAL SERVICES DAY CARE,Peoples Services,Home Care Services,A56019
London Borough of Sutton,05/09/2021,50059174,70.1,Absolute Care Services Ltd,SOCIAL SERVICES DAY CARE,Peoples Services,Home Care Services,A56019
London Borough of Sutton,05/09/2021,50059174,102.23,Absolute Care Services Ltd,SOCIAL SERVICES DAY CARE,Peoples Services,Home Care Services,A56019
London Borough of Sutton,15/08/2021,50059175,498.89,Absolute Care Services Ltd,SOCIAL SERVICES DAY CARE,Peoples Services,Home Care Services,A56019
London Borough of Sutton,15/08/2021,50059175,71.33,Absolute Care Services Ltd,SOCIAL SERVICES DAY CARE,Peoples Services,Home Care Services,A56019
London Borough of Sutton,15/08/2021,50059175,104.03,Absolute Care Services Ltd,SOCIAL SERVICES DAY CARE,Peoples Services,Home Care Services,A56019
London Borough of Sutton,22/08/2021,50059176,498.89,Absolute Care Services Ltd,SOCIAL SERVICES DAY CARE,Peoples Services,Home Care Services,A56019
London Borough of Sutton,22/08/2021,50059176,71.33,Absolute Care Services Ltd,SOCIAL SERVICES DAY CARE,Peoples Services,Home Care Services,A56019
London Borough of Sutton,22/08/2021,50059176,104.03,Absolute Care Services Ltd,SOCIAL SERVICES DAY CARE,Peoples Services,Home Care Services,A56019
London Borough of Sutton,29/08/2021,50059177,498.89,Absolute Care Services Ltd,SOCIAL SERVICES DAY CARE,Peoples Services,Home Care Services,A56019
London Borough of Sutton,29/08/2021,50059177,71.33,Absolute Care Services Ltd,SOCIAL SERVICES DAY CARE,Peoples Services,Home Care Services,A56019
London Borough of Sutton,29/08/2021,50059177,104.03,Absolute Care Services Ltd,SOCIAL SERVICES DAY CARE,Peoples Services,Home Care Services,A56019
London Borough of Sutton,12/09/2021,50059178,498.89,Absolute Care Services Ltd,SOCIAL SERVICES DAY CARE,Peoples Services,Home Care Services,A56019
London Borough of Sutton,12/09/2021,50059178,71.33,Absolute Care Services Ltd,SOCIAL SERVICES DAY CARE,Peoples Services,Home Care Services,A56019
London Borough of Sutton,12/09/2021,50059178,104.03,Absolute Care Services Ltd,SOCIAL SERVICES DAY CARE,Peoples Services,Home Care Services,A56019
London Borough of Sutton,19/09/2021,50059179,498.89,Absolute Care Services Ltd,SOCIAL SERVICES DAY CARE,Peoples Services,Home Care Services,A56019
London Borough of Sutton,19/09/2021,50059179,71.33,Absolute Care Services Ltd,SOCIAL SERVICES DAY CARE,Peoples Services,Home Care Services,A56019
London Borough of Sutton,19/09/2021,50059179,104.03,Absolute Care Services Ltd,SOCIAL SERVICES DAY CARE,Peoples Services,Home Care Services,A56019
London Borough of Sutton,15/08/2021,50059181,391.54,Absolute Care Services Ltd,SOCIAL SERVICES DAY CARE,Peoples Services,Home Care Services,A56019
London Borough of Sutton,15/08/2021,50059181,12.43,Absolute Care Services Ltd,SOCIAL SERVICES DAY CARE,Peoples Services,Home Care Services,A56019
London Borough of Sutton,15/08/2021,50059181,99.78,Absolute Care Services Ltd,SOCIAL SERVICES DAY CARE,Peoples Services,Home Care Services,A56019
London Borough of Sutton,22/08/2021,50059182,391.54,Absolute Care Services Ltd,SOCIAL SERVICES DAY CARE,Peoples Services,Home Care Services,A56019
London Borough of Sutton,22/08/2021,50059182,12.43,Absolute Care Services Ltd,SOCIAL SERVICES DAY CARE,Peoples Services,Home Care Services,A56019
London Borough of Sutton,22/08/2021,50059182,99.78,Absolute Care Services Ltd,SOCIAL SERVICES DAY CARE,Peoples Services,Home Care Services,A56019
London Borough of Sutton,29/08/2021,50059183,391.54,Absolute Care Services Ltd,SOCIAL SERVICES DAY CARE,Peoples Services,Home Care Services,A56019
London Borough of Sutton,29/08/2021,50059183,12.43,Absolute Care Services Ltd,SOCIAL SERVICES DAY CARE,Peoples Services,Home Care Services,A56019
London Borough of Sutton,29/08/2021,50059183,99.78,Absolute Care Services Ltd,SOCIAL SERVICES DAY CARE,Peoples Services,Home Care Services,A56019
London Borough of Sutton,12/09/2021,50059184,391.54,Absolute Care Services Ltd,SOCIAL SERVICES DAY CARE,Peoples Services,Home Care Services,A56019
London Borough of Sutton,12/09/2021,50059184,12.43,Absolute Care Services Ltd,SOCIAL SERVICES DAY CARE,Peoples Services,Home Care Services,A56019
London Borough of Sutton,12/09/2021,50059184,99.78,Absolute Care Services Ltd,SOCIAL SERVICES DAY CARE,Peoples Services,Home Care Services,A56019
London Borough of Sutton,19/09/2021,50059185,391.54,Absolute Care Services Ltd,SOCIAL SERVICES DAY CARE,Peoples Services,Home Care Services,A56019
London Borough of Sutton,19/09/2021,50059185,12.43,Absolute Care Services Ltd,SOCIAL SERVICES DAY CARE,Peoples Services,Home Care Services,A56019
London Borough of Sutton,19/09/2021,50059185,99.78,Absolute Care Services Ltd,SOCIAL SERVICES DAY CARE,Peoples Services,Home Care Services,A56019
London Borough of Sutton,19/08/2018,50059218,696,Absolute Care Services Ltd,SOCIAL SERVICES DAY CARE,Peoples Services,Home Care Services,A56019
London Borough of Sutton,25/07/2021,50059813,664.62,Absolute Care Services Ltd,SOCIAL SERVICES DAY CARE,Peoples Services,Home Care Services,A56019
London Borough of Sutton,20/06/2021,50059814,664.62,Absolute Care Services Ltd,SOCIAL SERVICES DAY CARE,Peoples Services,Home Care Services,A56019
London Borough of Sutton,11/07/2021,50059815,664.62,Absolute Care Services Ltd,SOCIAL SERVICES DAY CARE,Peoples Services,Home Care Services,A56019
London Borough of Sutton,18/07/2021,50059816,664.62,Absolute Care Services Ltd,SOCIAL SERVICES DAY CARE,Peoples Services,Home Care Services,A56019
London Borough of Sutton,01/08/2021,50059851,507.21,Absolute Care Services Ltd,SOCIAL SERVICES DAY CARE,Peoples Services,Home Care Services,A56019
London Borough of Sutton,08/08/2021,50059852,568.43,Absolute Care Services Ltd,SOCIAL SERVICES DAY CARE,Peoples Services,Home Care Services,A56019
London Borough of Sutton,15/08/2021,50059853,568.43,Absolute Care Services Ltd,SOCIAL SERVICES DAY CARE,Peoples Services,Home Care Services,A56019
London Borough of Sutton,25/07/2021,50059855,550.94,Absolute Care Services Ltd,SOCIAL SERVICES DAY CARE,Peoples Services,Home Care Services,A56019
London Borough of Sutton,11/07/2021,50059857,550.94,Absolute Care Services Ltd,SOCIAL SERVICES DAY CARE,Peoples Services,Home Care Services,A56019
London Borough of Sutton,18/07/2021,50059858,550.94,Absolute Care Services Ltd,SOCIAL SERVICES DAY CARE,Peoples Services,Home Care Services,A56019
London Borough of Sutton,01/08/2021,50059859,550.94,Absolute Care Services Ltd,SOCIAL SERVICES DAY CARE,Peoples Services,Home Care Services,A56019
London Borough of Sutton,08/08/2021,50059860,550.94,Absolute Care Services Ltd,SOCIAL SERVICES DAY CARE,Peoples Services,Home Care Services,A56019
London Borough of Sutton,15/08/2021,50059861,550.94,Absolute Care Services Ltd,SOCIAL SERVICES DAY CARE,Peoples Services,Home Care Services,A56019
London Borough of Sutton,22/08/2021,50059862,550.94,Absolute Care Services Ltd,SOCIAL SERVICES DAY CARE,Peoples Services,Home Care Services,A56019
London Borough of Sutton,29/08/2021,50059863,550.94,Absolute Care Services Ltd,SOCIAL SERVICES DAY CARE,Peoples Services,Home Care Services,A56019
London Borough of Sutton,05/09/2021,50059864,550.94,Absolute Care Services Ltd,SOCIAL SERVICES DAY CARE,Peoples Services,Home Care Services,A56019
London Borough of Sutton,12/09/2021,50059865,550.94,Absolute Care Services Ltd,SOCIAL SERVICES DAY CARE,Peoples Services,Home Care Services,A56019
London Borough of Sutton,19/09/2021,50059866,550.94,Absolute Care Services Ltd,SOCIAL SERVICES DAY CARE,Peoples Services,Home Care Services,A56019
London Borough of Sutton,25/07/2021,50059915,550.94,Absolute Care Services Ltd,SOCIAL SERVICES DAY CARE,Peoples Services,Home Care Services,A56019
London Borough of Sutton,20/06/2021,50059916,550.94,Absolute Care Services Ltd,SOCIAL SERVICES DAY CARE,Peoples Services,Home Care Services,A56019
London Borough of Sutton,11/07/2021,50059917,550.94,Absolute Care Services Ltd,SOCIAL SERVICES DAY CARE,Peoples Services,Home Care Services,A56019
London Borough of Sutton,18/07/2021,50059918,550.94,Absolute Care Services Ltd,SOCIAL SERVICES DAY CARE,Peoples Services,Home Care Services,A56019
London Borough of Sutton,01/08/2021,50059919,550.94,Absolute Care Services Ltd,SOCIAL SERVICES DAY CARE,Peoples Services,Home Care Services,A56019
London Borough of Sutton,08/08/2021,50059920,550.94,Absolute Care Services Ltd,SOCIAL SERVICES DAY CARE,Peoples Services,Home Care Services,A56019
London Borough of Sutton,15/08/2021,50059921,550.94,Absolute Care Services Ltd,SOCIAL SERVICES DAY CARE,Peoples Services,Home Care Services,A56019
London Borough of Sutton,22/08/2021,50059922,550.94,Absolute Care Services Ltd,SOCIAL SERVICES DAY CARE,Peoples Services,Home Care Services,A56019
London Borough of Sutton,29/08/2021,50059923,550.94,Absolute Care Services Ltd,SOCIAL SERVICES DAY CARE,Peoples Services,Home Care Services,A56019
London Borough of Sutton,05/09/2021,50059924,550.94,Absolute Care Services Ltd,SOCIAL SERVICES DAY CARE,Peoples Services,Home Care Services,A56019
London Borough of Sutton,12/09/2021,50059925,550.94,Absolute Care Services Ltd,SOCIAL SERVICES DAY CARE,Peoples Services,Home Care Services,A56019
London Borough of Sutton,19/09/2021,50059926,550.94,Absolute Care Services Ltd,SOCIAL SERVICES DAY CARE,Peoples Services,Home Care Services,A56019
London Borough of Sutton,29/08/2021,50059984,550.94,Absolute Care Services Ltd,SOCIAL SERVICES DAY CARE,Peoples Services,Home Care Services,A56019
London Borough of Sutton,20/06/2021,50060032,736.82,Absolute Care Services Ltd,SOCIAL SERVICES DAY CARE,Peoples Services,Home Care Services,A56019
London Borough of Sutton,20/06/2021,50060032,24,Absolute Care Services Ltd,SOCIAL SERVICES DAY CARE,Peoples Services,Home Care Services,A56019
London Borough of Sutton,11/07/2021,50060033,736.82,Absolute Care Services Ltd,SOCIAL SERVICES DAY CARE,Peoples Services,Home Care Services,A56019
London Borough of Sutton,11/07/2021,50060033,24,Absolute Care Services Ltd,SOCIAL SERVICES DAY CARE,Peoples Services,Home Care Services,A56019
London Borough of Sutton,18/07/2021,50060034,736.82,Absolute Care Services Ltd,SOCIAL SERVICES DAY CARE,Peoples Services,Home Care Services,A56019
London Borough of Sutton,18/07/2021,50060034,24,Absolute Care Services Ltd,SOCIAL SERVICES DAY CARE,Peoples Services,Home Care Services,A56019
London Borough of Sutton,25/07/2021,50060035,736.82,Absolute Care Services Ltd,SOCIAL SERVICES DAY CARE,Peoples Services,Home Care Services,A56019
London Borough of Sutton,25/07/2021,50060035,24,Absolute Care Services Ltd,SOCIAL SERVICES DAY CARE,Peoples Services,Home Care Services,A56019
London Borough of Sutton,01/08/2021,50060036,736.82,Absolute Care Services Ltd,SOCIAL SERVICES DAY CARE,Peoples Services,Home Care Services,A56019
London Borough of Sutton,01/08/2021,50060036,24,Absolute Care Services Ltd,SOCIAL SERVICES DAY CARE,Peoples Services,Home Care Services,A56019
London Borough of Sutton,08/08/2021,50060037,736.82,Absolute Care Services Ltd,SOCIAL SERVICES DAY CARE,Peoples Services,Home Care Services,A56019
London Borough of Sutton,08/08/2021,50060037,24,Absolute Care Services Ltd,SOCIAL SERVICES DAY CARE,Peoples Services,Home Care Services,A56019
London Borough of Sutton,15/08/2021,50060038,736.82,Absolute Care Services Ltd,SOCIAL SERVICES DAY CARE,Peoples Services,Home Care Services,A56019
London Borough of Sutton,15/08/2021,50060038,24,Absolute Care Services Ltd,SOCIAL SERVICES DAY CARE,Peoples Services,Home Care Services,A56019
London Borough of Sutton,22/08/2021,50060039,721.08,Absolute Care Services Ltd,SOCIAL SERVICES DAY CARE,Peoples Services,Home Care Services,A56019
London Borough of Sutton,22/08/2021,50060039,57.23,Absolute Care Services Ltd,SOCIAL SERVICES DAY CARE,Peoples Services,Home Care Services,A56019
London Borough of Sutton,29/08/2021,50060040,736.82,Absolute Care Services Ltd,SOCIAL SERVICES DAY CARE,Peoples Services,Home Care Services,A56019
London Borough of Sutton,29/08/2021,50060040,24,Absolute Care Services Ltd,SOCIAL SERVICES DAY CARE,Peoples Services,Home Care Services,A56019
London Borough of Sutton,05/09/2021,50060041,736.82,Absolute Care Services Ltd,SOCIAL SERVICES DAY CARE,Peoples Services,Home Care Services,A56019
London Borough of Sutton,05/09/2021,50060041,24,Absolute Care Services Ltd,SOCIAL SERVICES DAY CARE,Peoples Services,Home Care Services,A56019
London Borough of Sutton,12/09/2021,50060042,736.82,Absolute Care Services Ltd,SOCIAL SERVICES DAY CARE,Peoples Services,Home Care Services,A56019
London Borough of Sutton,12/09/2021,50060042,24,Absolute Care Services Ltd,SOCIAL SERVICES DAY CARE,Peoples Services,Home Care Services,A56019
London Borough of Sutton,19/09/2021,50060043,736.82,Absolute Care Services Ltd,SOCIAL SERVICES DAY CARE,Peoples Services,Home Care Services,A56019
London Borough of Sutton,19/09/2021,50060043,24,Absolute Care Services Ltd,SOCIAL SERVICES DAY CARE,Peoples Services,Home Care Services,A56019
London Borough of Sutton,25/07/2021,50060187,550.94,Absolute Care Services Ltd,SOCIAL SERVICES DAY CARE,Peoples Services,Home Care Services,A56019
London Borough of Sutton,25/07/2021,50060187,34.98,Absolute Care Services Ltd,SOCIAL SERVICES DAY CARE,Peoples Services,Home Care Services,A56019
London Borough of Sutton,20/06/2021,50060188,550.94,Absolute Care Services Ltd,SOCIAL SERVICES DAY CARE,Peoples Services,Home Care Services,A56019
London Borough of Sutton,20/06/2021,50060188,34.98,Absolute Care Services Ltd,SOCIAL SERVICES DAY CARE,Peoples Services,Home Care Services,A56019
London Borough of Sutton,11/07/2021,50060189,550.94,Absolute Care Services Ltd,SOCIAL SERVICES DAY CARE,Peoples Services,Home Care Services,A56019
London Borough of Sutton,11/07/2021,50060189,34.98,Absolute Care Services Ltd,SOCIAL SERVICES DAY CARE,Peoples Services,Home Care Services,A56019
London Borough of Sutton,18/07/2021,50060190,542.71,Absolute Care Services Ltd,SOCIAL SERVICES DAY CARE,Peoples Services,Home Care Services,A56019
London Borough of Sutton,18/07/2021,50060190,34.46,Absolute Care Services Ltd,SOCIAL SERVICES DAY CARE,Peoples Services,Home Care Services,A56019
London Borough of Sutton,01/08/2021,50060191,550.94,Absolute Care Services Ltd,SOCIAL SERVICES DAY CARE,Peoples Services,Home Care Services,A56019
London Borough of Sutton,01/08/2021,50060191,34.98,Absolute Care Services Ltd,SOCIAL SERVICES DAY CARE,Peoples Services,Home Care Services,A56019
London Borough of Sutton,08/08/2021,50060192,550.94,Absolute Care Services Ltd,SOCIAL SERVICES DAY CARE,Peoples Services,Home Care Services,A56019
London Borough of Sutton,08/08/2021,50060192,34.98,Absolute Care Services Ltd,SOCIAL SERVICES DAY CARE,Peoples Services,Home Care Services,A56019
London Borough of Sutton,15/08/2021,50060193,550.94,Absolute Care Services Ltd,SOCIAL SERVICES DAY CARE,Peoples Services,Home Care Services,A56019
London Borough of Sutton,15/08/2021,50060193,34.98,Absolute Care Services Ltd,SOCIAL SERVICES DAY CARE,Peoples Services,Home Care Services,A56019
London Borough of Sutton,22/08/2021,50060194,550.94,Absolute Care Services Ltd,SOCIAL SERVICES DAY CARE,Peoples Services,Home Care Services,A56019
London Borough of Sutton,22/08/2021,50060194,34.98,Absolute Care Services Ltd,SOCIAL SERVICES DAY CARE,Peoples Services,Home Care Services,A56019
London Borough of Sutton,29/08/2021,50060195,550.94,Absolute Care Services Ltd,SOCIAL SERVICES DAY CARE,Peoples Services,Home Care Services,A56019
London Borough of Sutton,29/08/2021,50060195,34.98,Absolute Care Services Ltd,SOCIAL SERVICES DAY CARE,Peoples Services,Home Care Services,A56019
London Borough of Sutton,05/09/2021,50060196,550.94,Absolute Care Services Ltd,SOCIAL SERVICES DAY CARE,Peoples Services,Home Care Services,A56019
London Borough of Sutton,05/09/2021,50060196,34.98,Absolute Care Services Ltd,SOCIAL SERVICES DAY CARE,Peoples Services,Home Care Services,A56019
London Borough of Sutton,12/09/2021,50060197,550.94,Absolute Care Services Ltd,SOCIAL SERVICES DAY CARE,Peoples Services,Home Care Services,A56019
London Borough of Sutton,12/09/2021,50060197,34.98,Absolute Care Services Ltd,SOCIAL SERVICES DAY CARE,Peoples Services,Home Care Services,A56019
London Borough of Sutton,19/09/2021,50060198,34.98,Absolute Care Services Ltd,SOCIAL SERVICES DAY CARE,Peoples Services,Home Care Services,A56019
London Borough of Sutton,19/09/2021,50060198,550.94,Absolute Care Services Ltd,SOCIAL SERVICES DAY CARE,Peoples Services,Home Care Services,A56019
London Borough of Sutton,25/07/2021,50060226,489.69,Absolute Care Services Ltd,SOCIAL SERVICES DAY CARE,Peoples Services,Home Care Services,A56019
London Borough of Sutton,25/07/2021,50060226,61.25,Absolute Care Services Ltd,SOCIAL SERVICES DAY CARE,Peoples Services,Home Care Services,A56019
London Borough of Sutton,20/06/2021,50060227,489.69,Absolute Care Services Ltd,SOCIAL SERVICES DAY CARE,Peoples Services,Home Care Services,A56019
London Borough of Sutton,20/06/2021,50060227,61.25,Absolute Care Services Ltd,SOCIAL SERVICES DAY CARE,Peoples Services,Home Care Services,A56019
London Borough of Sutton,11/07/2021,50060228,489.69,Absolute Care Services Ltd,SOCIAL SERVICES DAY CARE,Peoples Services,Home Care Services,A56019
London Borough of Sutton,11/07/2021,50060228,61.25,Absolute Care Services Ltd,SOCIAL SERVICES DAY CARE,Peoples Services,Home Care Services,A56019
London Borough of Sutton,18/07/2021,50060229,489.69,Absolute Care Services Ltd,SOCIAL SERVICES DAY CARE,Peoples Services,Home Care Services,A56019
London Borough of Sutton,18/07/2021,50060229,61.25,Absolute Care Services Ltd,SOCIAL SERVICES DAY CARE,Peoples Services,Home Care Services,A56019
London Borough of Sutton,25/08/2021,50055762,"4,671.40",Accomplish Group Ltd,SOCIAL SERVICES RESIDENTIAL,Peoples Services,Supported Living,A56088
London Borough of Sutton,25/08/2021,50055763,"3,080.00",Accomplish Group Ltd,SOCIAL SERVICES RESIDENTIAL,Peoples Services,Supported Living,A56088
London Borough of Sutton,31/08/2021,50053227,"12,500.00",Acorn Homes UK Ltd,CHILDREN'S SERVICES - FOSTERING & ADOPTION SERVICES,Peoples Services,Independent School Fees,A56002
London Borough of Sutton,03/09/2021,50050278,"2,903.20",Acorn Lodge,SOCIAL SERVICES RESIDENTIAL,Peoples Services,Residential Care - Ext Provider,A56114
London Borough of Sutton,03/09/2021,50050589,"3,115.36",Acorn Residential Home,SOCIAL SERVICES RESIDENTIAL,Peoples Services,Residential Care - Ext Provider,A56114
London Borough of Sutton,01/09/2021,20008443,"2,040.00",ADAM HTT LTD,TAXI AND COACH HIRE,Peoples Services,Contract Cleaning,A27010
London Borough of Sutton,08/09/2021,20008951,"11,567.72",ADAM HTT LTD,TAXI AND COACH HIRE,Peoples Services,Contract Cleaning,A27010
London Borough of Sutton,15/09/2021,20009403,"149,648.94",ADAM HTT LTD,TAXI AND COACH HIRE,Peoples Services,Contract Cleaning,A27010
London Borough of Sutton,22/09/2021,20009969,"175,476.60",ADAM HTT LTD,TAXI AND COACH HIRE,Peoples Services,Contract Cleaning,A27010
London Borough of Sutton,06/09/2021,20008695,"1,158.40",Adapted Vehicle Hire Ltd,SUNDRY SUPPLIER - EDUCATION,Peoples Services,Hire of Transport - Non Staff,A32000
London Borough of Sutton,01/09/2021,20009847,"9,920.00",Adapted4 Limited,SUNDRY SUPPLIER - FINANCE,Environment Housing and Neighbourhoods,Grants Given For Capital Purposes,C20004
London Borough of Sutton,19/08/2021,20008172,680.5,ADHD Wise UK Ltd,SUNDRY SUPPLIER - FINANCE,Peoples Services,Miscellaneous Expenses,A49000
London Borough of Sutton,23/08/2021,20007952,"1,645.00",Advance Property Services,SUNDRY SUPPLIER - HOUSING,Environment Housing and Neighbourhoods,Miscellaneous Expenses,A49000
London Borough of Sutton,31/08/2021,20008346,"2,916.67",Advocacy For All,LEGAL & PROFESSIONAL SERVICES,Peoples Services,Provider Contract Payments,A44290
London Borough of Sutton,31/08/2021,20008347,"12,916.67",Advocacy For All,LEGAL & PROFESSIONAL SERVICES,Peoples Services,Provider Contract Payments,A44290
London Borough of Sutton,25/08/2021,50052756,"3,494.01",Affinity Fostering Services Ltd,CHILDREN'S SERVICES - FOSTERING & ADOPTION SERVICES,Peoples Services,Foster Parents Support,A44110
London Borough of Sutton,25/08/2021,50052772,"3,494.01",Affinity Fostering Services Ltd,CHILDREN'S SERVICES - FOSTERING & ADOPTION SERVICES,Peoples Services,Foster Parents Support,A44110
London Borough of Sutton,25/08/2021,50052812,"3,317.31",Affinity Fostering Services Ltd,CHILDREN'S SERVICES - FOSTERING & ADOPTION SERVICES,Peoples Services,Foster Parents Support,A44110
London Borough of Sutton,25/08/2021,50052813,"3,317.31",Affinity Fostering Services Ltd,CHILDREN'S SERVICES - FOSTERING & ADOPTION SERVICES,Peoples Services,Foster Parents Support,A44110
London Borough of Sutton,06/09/2021,20008711,"8,247.31",Age UK Sutton,SOCIAL SERVICES - OTHER,Peoples Services,Provider Contract Payments,A44290
London Borough of Sutton,13/07/2021,20006981,"1,525.00",Ahad Group,REPROGRAPHICS & PHOTOGRAPHY,Health and Wellbeing,Provider Contract Payments,A44290
London Borough of Sutton,03/09/2021,50050603,"7,511.00",Leighton House Ltd,SOCIAL SERVICES RESIDENTIAL,Peoples Services,Residential Care - Ext Provider,A56114
London Borough of Sutton,03/09/2021,50050343,"8,400.16",Aitch Care Homes,SOCIAL SERVICES RESIDENTIAL,Peoples Services,Residential Care - Ext Provider,A56114
London Borough of Sutton,07/09/2021,20008800,"2,072.60",REDACTED - PERSONAL DATA,SUNDRY SUPPLIER - HOUSING,Environment Housing and Neighbourhoods,Miscellaneous Expenses,A49000
London Borough of Sutton,11/08/2021,20007397,530,All in Wallington,SUNDRY SUPPLIER - ENV SERVICES,Resources,"Grants, Contributions & Donations",A47005
London Borough of Sutton,01/09/2021,50049611,"12,300.00",All Saints Benhilton C Of E,GRANTS & EX GRATIA PAYMENTS,Peoples Services,Top-up Funding,A51016
London Borough of Sutton,06/09/2021,50051034,"154,210.18",All Saints Benhilton C Of E,GRANTS & EX GRATIA PAYMENTS,Peoples Services,Payments to Schools,A51013
London Borough of Sutton,06/09/2021,50051062,"10,914.75",All Saints Benhilton C Of E,GRANTS & EX GRATIA PAYMENTS,Peoples Services,Place Funding,A56110
London Borough of Sutton,07/09/2021,50053236,"1,640.00",All Saints Benhilton C Of E,GRANTS & EX GRATIA PAYMENTS,Peoples Services,Top Up Additional Support,A60015
London Borough of Sutton,01/09/2021,50049612,"24,986.67",All Saints Carshalton Primary School,GRANTS & EX GRATIA PAYMENTS,Peoples Services,Top-up Funding,A51016
London Borough of Sutton,06/09/2021,50051063,"9,095.63",All Saints Carshalton Primary School,GRANTS & EX GRATIA PAYMENTS,Peoples Services,Place Funding,A56110
London Borough of Sutton,03/09/2021,50050541,"4,454.16",Allied Care (Mhs) Ltd,SOCIAL SERVICES - OTHER,Peoples Services,Residential Care - Ext Provider,A56114
London Borough of Sutton,31/08/2021,20008492,826.38,Allied Publicity Services (Manchester) Ltd,REPROGRAPHICS & PHOTOGRAPHY,Health and Wellbeing,Mobility Scheme for the Disabled,A61015
London Borough of Sutton,31/07/2021,20007971,475.08,Allpay Ltd,OFFICE SERVICES,Resources,Other Supplies & Services,A44291
London Borough of Sutton,01/09/2021,20008592,"1,341.74",Allstar Business Solutions,FUEL AND VEHICLE SUPPLIES,Environment Housing and Neighbourhoods,Vehicles -  Fuel,A30015
London Borough of Sutton,03/09/2021,50050549,"5,202.00",Allswell Care Services Ltd,SOCIAL SERVICES RESIDENTIAL,Peoples Services,Residential Care - Ext Provider,A56114
London Borough of Sutton,03/09/2021,50050617,"6,370.00",Allswell Care Services Ltd,SOCIAL SERVICES RESIDENTIAL,Peoples Services,Residential Care - Ext Provider,A56114
London Borough of Sutton,03/09/2021,50050643,"5,202.00",Allswell Care Services Ltd,SOCIAL SERVICES RESIDENTIAL,Peoples Services,Residential Care - Ext Provider,A56114
London Borough of Sutton,09/08/2021,50055690,"1,625.24",Alpenbest Limited,SOCIAL SERVICES DAY CARE,Peoples Services,Home Care Services,A56019
London Borough of Sutton,09/08/2021,50055691,839.69,Alpenbest Limited,SOCIAL SERVICES DAY CARE,Peoples Services,Home Care Services,A56019
London Borough of Sutton,09/08/2021,50055692,521.93,Alpenbest Limited,SOCIAL SERVICES DAY CARE,Peoples Services,Home Care Services,A56019
London Borough of Sutton,09/08/2021,50055694,"1,449.31",Alpenbest Limited,SOCIAL SERVICES DAY CARE,Peoples Services,Home Care Services,A56019
London Borough of Sutton,09/08/2021,50055695,613.01,Alpenbest Limited,SOCIAL SERVICES DAY CARE,Peoples Services,Home Care Services,A56019
London Borough of Sutton,09/08/2021,50055696,"1,648.88",Alpenbest Limited,SOCIAL SERVICES DAY CARE,Peoples Services,Home Care Services,A56019
London Borough of Sutton,09/08/2021,50055697,"2,957.43",Alpenbest Limited,SOCIAL SERVICES DAY CARE,Peoples Services,Home Care Services,A56019
London Borough of Sutton,09/08/2021,50055697,"1,715.25",Alpenbest Limited,SOCIAL SERVICES DAY CARE,Peoples Services,Home Care Services,A56019
London Borough of Sutton,09/08/2021,50055698,739.12,Alpenbest Limited,SOCIAL SERVICES DAY CARE,Peoples Services,Home Care Services,A56019
London Borough of Sutton,09/08/2021,50055699,"1,604.71",Alpenbest Limited,SOCIAL SERVICES DAY CARE,Peoples Services,Home Care Services,A56019
London Borough of Sutton,09/08/2021,50055701,854.43,Alpenbest Limited,SOCIAL SERVICES DAY CARE,Peoples Services,Home Care Services,A56019
London Borough of Sutton,09/08/2021,50055702,852.64,Alpenbest Limited,SOCIAL SERVICES DAY CARE,Peoples Services,Home Care Services,A56019
London Borough of Sutton,09/08/2021,50055707,582.8,Alpenbest Limited,SOCIAL SERVICES DAY CARE,Peoples Services,Home Care Services,A56019
London Borough of Sutton,08/08/2021,50055737,"3,173.56",Alpenbest Limited,SOCIAL SERVICES DAY CARE,Peoples Services,Home Care Services,A56019
London Borough of Sutton,08/08/2021,50055737,"1,947.13",Alpenbest Limited,SOCIAL SERVICES DAY CARE,Peoples Services,Home Care Services,A56019
London Borough of Sutton,08/08/2021,50055738,689.79,Alpenbest Limited,SOCIAL SERVICES DAY CARE,Peoples Services,Home Care Services,A56019
London Borough of Sutton,08/08/2021,50055739,846.29,Alpenbest Limited,SOCIAL SERVICES DAY CARE,Peoples Services,Home Care Services,A56019
London Borough of Sutton,08/08/2021,50055739,13.82,Alpenbest Limited,SOCIAL SERVICES DAY CARE,Peoples Services,Home Care Services,A56019
London Borough of Sutton,08/08/2021,50055741,715.22,Alpenbest Limited,SOCIAL SERVICES DAY CARE,Peoples Services,Home Care Services,A56019
London Borough of Sutton,08/08/2021,50055742,846.29,Alpenbest Limited,SOCIAL SERVICES DAY CARE,Peoples Services,Home Care Services,A56019
London Borough of Sutton,08/08/2021,50055743,513.21,Alpenbest Limited,SOCIAL SERVICES DAY CARE,Peoples Services,Home Care Services,A56019
London Borough of Sutton,08/08/2021,50055746,587.53,Alpenbest Limited,SOCIAL SERVICES DAY CARE,Peoples Services,Home Care Services,A56019
London Borough of Sutton,08/08/2021,50055747,"1,489.16",Alpenbest Limited,SOCIAL SERVICES DAY CARE,Peoples Services,Home Care Services,A56019
London Borough of Sutton,08/08/2021,50055748,"2,427.44",Alpenbest Limited,SOCIAL SERVICES DAY CARE,Peoples Services,Home Care Services,A56019
London Borough of Sutton,08/08/2021,50055749,753.54,Alpenbest Limited,SOCIAL SERVICES DAY CARE,Peoples Services,Home Care Services,A56019
London Borough of Sutton,08/08/2021,50055751,699.76,Alpenbest Limited,SOCIAL SERVICES DAY CARE,Peoples Services,Home Care Services,A56019
London Borough of Sutton,08/08/2021,50056358,"1,663.33",Alpenbest Limited,SOCIAL SERVICES DAY CARE,Peoples Services,Home Care Services,A56019
London Borough of Sutton,08/08/2021,50057865,"1,592.76",Alpenbest Limited,SOCIAL SERVICES DAY CARE,Peoples Services,Home Care Services,A56019
London Borough of Sutton,08/08/2021,50057904,745.6,Alpenbest Limited,SOCIAL SERVICES DAY CARE,Peoples Services,Home Care Services,A56019
London Borough of Sutton,14/06/2021,50057996,"1,638.81",Alpenbest Limited,SOCIAL SERVICES DAY CARE,Peoples Services,Home Care Services,A56019
London Borough of Sutton,08/08/2021,50057997,"1,638.81",Alpenbest Limited,SOCIAL SERVICES DAY CARE,Peoples Services,Home Care Services,A56019
London Borough of Sutton,19/04/2021,50058669,475.04,Alpenbest Limited,SOCIAL SERVICES DAY CARE,Peoples Services,Home Care Services,A56019
London Borough of Sutton,19/04/2021,50058669,345.03,Alpenbest Limited,SOCIAL SERVICES DAY CARE,Peoples Services,Home Care Services,A56019
London Borough of Sutton,19/04/2021,50060312,576.39,Alpenbest Limited,SOCIAL SERVICES DAY CARE,Peoples Services,Home Care Services,A56019
London Borough of Sutton,19/04/2021,50060312,393.72,Alpenbest Limited,SOCIAL SERVICES DAY CARE,Peoples Services,Home Care Services,A56019
London Borough of Sutton,01/06/2021,50060630,"1,160.28",Alpenbest Limited,SOCIAL SERVICES DAY CARE,Peoples Services,Home Care Services,A56019
London Borough of Sutton,14/06/2021,50060631,"1,631.61",Alpenbest Limited,SOCIAL SERVICES DAY CARE,Peoples Services,Home Care Services,A56019
London Borough of Sutton,19/04/2021,50060633,379.9,Alpenbest Limited,SOCIAL SERVICES DAY CARE,Peoples Services,Home Care Services,A56019
London Borough of Sutton,19/04/2021,50060633,748.22,Alpenbest Limited,SOCIAL SERVICES DAY CARE,Peoples Services,Home Care Services,A56019
London Borough of Sutton,01/06/2021,50060634,"1,321.70",Alpenbest Limited,SOCIAL SERVICES DAY CARE,Peoples Services,Home Care Services,A56019
London Borough of Sutton,04/08/2021,50054571,836,Ambient Support Limited,SOCIAL SERVICES RESIDENTIAL,Peoples Services,Supported Living,A56088
London Borough of Sutton,07/09/2021,50054572,836,Ambient Support Limited,SOCIAL SERVICES RESIDENTIAL,Peoples Services,Supported Living,A56088
London Borough of Sutton,09/07/2021,50054573,836,Ambient Support Limited,SOCIAL SERVICES RESIDENTIAL,Peoples Services,Supported Living,A56088
London Borough of Sutton,01/08/2021,50052729,"4,495.00",Anchor Foster Care Services Ltd,CHILDREN'S SERVICES - FOSTERING & ADOPTION SERVICES,Peoples Services,Foster Parents Support,A44110
London Borough of Sutton,03/09/2021,50050393,"2,662.40",Anchor Trust,SOCIAL SERVICES RESIDENTIAL,Peoples Services,Residential Care - Ext Provider,A56114
London Borough of Sutton,06/09/2021,50049731,546,REDACTED - PERSONAL DATA,"SOCIAL SERVICES - DOLS, GUM & BIA ASSESSMENTS",Peoples Services,Place Funding,A56110
London Borough of Sutton,01/09/2021,50052800,"3,476.43",Ansacare Fostering Agency Ltd,CHILDREN'S SERVICES - FOSTERING & ADOPTION SERVICES,Peoples Services,Foster Parents Support,A44110
London Borough of Sutton,01/09/2021,50052801,"3,476.43",Ansacare Fostering Agency Ltd,CHILDREN'S SERVICES - FOSTERING & ADOPTION SERVICES,Peoples Services,Foster Parents Support,A44110
London Borough of Sutton,13/08/2021,20008028,"50,480.64",Aon UK Limited,FINANCIAL / INSURANCE INSTNS,Resources,General Insurance (Excl Premises & Transport),A44260
London Borough of Sutton,02/09/2021,20008626,725.2,Aquasition (UK) Ltd,BUSINESS & COMPUTER SYSTEMS,Resources,Other Supplies & Services,A44291
London Borough of Sutton,02/09/2021,20008627,"25,091.00",Aquasition (UK) Ltd,BUSINESS & COMPUTER SYSTEMS,Resources,Other Supplies & Services,A44291
London Borough of Sutton,31/08/2021,20008586,"14,108.00",Architecture PLB Ltd,CONSULTING ARCHITECTS ENGINEER,Environment Housing and Neighbourhoods,External Fees and Consultants,C20000
London Borough of Sutton,15/08/2021,50052773,"5,200.00",Area Camden Ltd,CHILDREN'S SERVICES - RESIDENTIAL,Peoples Services,Residential Care-Children,A56115
London Borough of Sutton,18/09/2021,20009669,550,Ascedit Lifts Limited,SUNDRY SUPPLIER - FINANCE,Environment Housing and Neighbourhoods,Grants Given For Capital Purposes,C20004
London Borough of Sutton,03/09/2021,50050283,"3,994.48",Aspen Place,SOCIAL SERVICES DAY CARE,Peoples Services,Nursing Care - Ext Provider,A56025
London Borough of Sutton,03/09/2021,50050650,"5,492.48",Aspens Charities,SOCIAL SERVICES RESIDENTIAL,Peoples Services,Residential Care - Ext Provider,A56114
London Borough of Sutton,01/09/2021,50052799,"8,248.18",Aspirational Support Ltd,SOCIAL SERVICES - OTHER,Peoples Services,Approved Lodgings,A61000
London Borough of Sutton,31/07/2021,50050708,"2,480.00",Aspirations Care Ltd,SOCIAL SERVICES DAY CARE,Peoples Services,Home Care Services,A56019
London Borough of Sutton,31/07/2021,50050708,"7,356.30",Aspirations Care Ltd,SOCIAL SERVICES DAY CARE,Peoples Services,Home Care Services,A56019
London Borough of Sutton,30/06/2021,50050879,"2,400.00",Aspirations Care Ltd,SOCIAL SERVICES DAY CARE,Peoples Services,Home Care Services,A56019
London Borough of Sutton,30/06/2021,50050879,"7,119.00",Aspirations Care Ltd,SOCIAL SERVICES DAY CARE,Peoples Services,Home Care Services,A56019
London Borough of Sutton,31/08/2021,50050880,"2,480.00",Aspirations Care Ltd,SOCIAL SERVICES DAY CARE,Peoples Services,Home Care Services,A56019
London Borough of Sutton,31/08/2021,50050880,"7,356.30",Aspirations Care Ltd,SOCIAL SERVICES DAY CARE,Peoples Services,Home Care Services,A56019
London Borough of Sutton,01/08/2021,50052775,"1,770.75",Aspirations Fostering Limited,FOSTER PARENTS,Peoples Services,Foster Parents Support,A44110
London Borough of Sutton,26/08/2021,20008549,"66,090.25",Assura Property Management,SUNDRY SUPPLIER - ENV SERVICES,Corporate Balance Sheet,CIL Holding Account,B50225
London Borough of Sutton,01/09/2021,20008503,"1,410.00",Athona Ltd,TEMP STAFF & CONSULTANCY,Peoples Services,Agency Staff - Other,A10505
London Borough of Sutton,01/08/2021,50052743,"4,351.07",Audax Supported Living CIC,CHILDREN'S SERVICES - RESIDENTIAL,Peoples Services,Approved Lodgings,A61000
London Borough of Sutton,03/09/2021,50050292,"4,580.72",Autism & Aspergers Care Services,SOCIAL SERVICES RESIDENTIAL,Peoples Services,Residential Care - Ext Provider,A56114
London Borough of Sutton,01/09/2021,50049613,"46,352.33",Avenue Primary Acadamy,GRANTS & EX GRATIA PAYMENTS,Peoples Services,Top-up Funding,A51016
London Borough of Sutton,01/09/2021,50049613,"16,800.00",Avenue Primary Acadamy,GRANTS & EX GRATIA PAYMENTS,Peoples Services,Top-up individual funding,A60033
London Borough of Sutton,01/09/2021,50049613,"73,062.54",Avenue Primary Acadamy,GRANTS & EX GRATIA PAYMENTS,Peoples Services,Top-up Funding,A51016
London Borough of Sutton,06/09/2021,50051064,"12,558.00",Avenue Primary Acadamy,GRANTS & EX GRATIA PAYMENTS,Peoples Services,Place Funding,A56110
London Borough of Sutton,07/09/2021,50053243,"1,450.00",Avenue Primary Acadamy,GRANTS & EX GRATIA PAYMENTS,Peoples Services,Top-up Funding,A51016
London Borough of Sutton,10/09/2021,50053264,900,Avenue Primary Acadamy,GRANTS & EX GRATIA PAYMENTS,Peoples Services,Top-up Funding,A51016
London Borough of Sutton,01/09/2021,50051825,"1,430.00",REDACTED - PERSONAL DATA,SUNDRY SUPPLIER - EDUCATION,Peoples Services,Miscellaneous Expenses,A49000
London Borough of Sutton,31/08/2021,20008579,900,Ayai Care Limited,SOCIAL SERVICES DAY CARE,Peoples Services,Home Care Services,A56019
London Borough of Sutton,31/08/2021,20008584,"12,532.87",Ayai Care Limited,SOCIAL SERVICES DAY CARE,Peoples Services,Home Care Services,A56019
London Borough of Sutton,14/09/2021,50054698,"27,152.57",Ayai Care Limited,SOCIAL SERVICES DAY CARE,Peoples Services,Supported Living,A56088
London Borough of Sutton,06/09/2021,50049725,"9,309.30",The Adventure Pre-School,GRANTS & EX GRATIA PAYMENTS,Peoples Services,Place Funding,A56110
London Borough of Sutton,20/07/2021,20008832,"5,500.00",Baily Garner LLP,LEGAL & PROFESSIONAL SERVICES,Environment Housing and Neighbourhoods,External Fees and Consultants,C20000
London Borough of Sutton,22/07/2021,20008850,"3,055.00",Baily Garner LLP,LEGAL & PROFESSIONAL SERVICES,Environment Housing and Neighbourhoods,External Fees and Consultants,C20000
London Borough of Sutton,13/09/2021,20009111,"4,270.00",Balmont Ltd,CONSTRUCTION INDUSTRY,Health and Wellbeing,"Property Repairs, Maintenance & Alterations",A20010
London Borough of Sutton,13/09/2021,20009112,"1,850.00",Balmont Ltd,CONSTRUCTION INDUSTRY,Health and Wellbeing,"Property Repairs, Maintenance & Alterations",A20010
London Borough of Sutton,13/09/2021,20009113,"4,904.00",Balmont Ltd,CONSTRUCTION INDUSTRY,Health and Wellbeing,"Property Repairs, Maintenance & Alterations",A20010
London Borough of Sutton,13/09/2021,20009114,"3,180.00",Balmont Ltd,CONSTRUCTION INDUSTRY,Health and Wellbeing,"Property Repairs, Maintenance & Alterations",A20010
London Borough of Sutton,13/09/2021,20009115,"1,720.00",Balmont Ltd,CONSTRUCTION INDUSTRY,Health and Wellbeing,"Property Repairs, Maintenance & Alterations",A20010
London Borough of Sutton,13/09/2021,20009116,"1,589.76",Balmont Ltd,CONSTRUCTION INDUSTRY,Health and Wellbeing,Provider Contract Payments,A44290
London Borough of Sutton,06/09/2021,50049664,"2,175.60",Bandon Hill Pre-School,GRANTS & EX GRATIA PAYMENTS,Peoples Services,Place Funding,A56110
London Borough of Sutton,06/09/2021,50049728,"2,184.00",Bandon Hill Pre-School,GRANTS & EX GRATIA PAYMENTS,Peoples Services,Place Funding,A56110
London Borough of Sutton,01/09/2021,50049614,"19,059.61",Bandon Hill Primary,GRANTS & EX GRATIA PAYMENTS,Peoples Services,Top-up individual funding,A60033
London Borough of Sutton,01/09/2021,50049614,"199,063.20",Bandon Hill Primary,GRANTS & EX GRATIA PAYMENTS,Peoples Services,Top-up Funding,A51016
London Borough of Sutton,01/09/2021,50049615,"17,833.33",Bandon Hill Primary,GRANTS & EX GRATIA PAYMENTS,Peoples Services,Top-up Funding,A51016
London Borough of Sutton,01/09/2021,50049616,"21,633.33",Bandon Hill Primary,GRANTS & EX GRATIA PAYMENTS,Peoples Services,Top-up Funding,A51016
London Borough of Sutton,06/09/2021,50051065,"9,828.00",Bandon Hill Primary,GRANTS & EX GRATIA PAYMENTS,Peoples Services,Place Funding,A56110
London Borough of Sutton,07/09/2021,50053244,"4,958.33",Bandon Hill Primary,GRANTS & EX GRATIA PAYMENTS,Peoples Services,Top-up Funding,A51016
London Borough of Sutton,07/09/2021,50053245,"-4,739.60",Bandon Hill Primary,GRANTS & EX GRATIA PAYMENTS,Peoples Services,Top-up Funding,A51016
London Borough of Sutton,07/09/2021,50053246,"-2,833.33",Bandon Hill Primary,GRANTS & EX GRATIA PAYMENTS,Peoples Services,Top-up Funding,A51016
London Borough of Sutton,30/09/2021,50060638,586,Bandon Hill Primary,GRANTS & EX GRATIA PAYMENTS,Peoples Services,Payments to Schools,A51013
London Borough of Sutton,31/08/2021,50052712,"3,560.97",Banya,SOCIAL SERVICES RESIDENTIAL,Peoples Services,Foster Parents Support,A44110
London Borough of Sutton,31/08/2021,50052776,"2,258.75",Banya,SOCIAL SERVICES RESIDENTIAL,Peoples Services,Foster Parents Support,A44110
London Borough of Sutton,31/08/2021,50052804,"3,560.97",Banya,SOCIAL SERVICES RESIDENTIAL,Peoples Services,Foster Parents Support,A44110
London Borough of Sutton,03/09/2021,50050270,-735.68,Barchester Healthcare Homes Ltd,SOCIAL SERVICES RESIDENTIAL,Peoples Services,Nursing Care - 3rd party top up payment,A56023
London Borough of Sutton,03/09/2021,50050270,"5,200.00",Barchester Healthcare Homes Ltd,SOCIAL SERVICES RESIDENTIAL,Peoples Services,Nursing Care - Ext Provider,A56025
London Borough of Sutton,18/08/2021,50049972,833,Barnardo's,CHILDREN'S SERVICES - RESIDENTIAL,Peoples Services,Provider Contract Payments,A44290
London Borough of Sutton,18/08/2021,50049986,808.5,Barnardo's,CHILDREN'S SERVICES - RESIDENTIAL,Peoples Services,Provider Contract Payments,A44290
London Borough of Sutton,18/08/2021,50049987,503.5,Barnardo's,CHILDREN'S SERVICES - RESIDENTIAL,Peoples Services,Provider Contract Payments,A44290
London Borough of Sutton,01/09/2021,50049618,"3,413.33",Beddington Infants School,GRANTS & EX GRATIA PAYMENTS,Peoples Services,Top-up Funding,A51016
London Borough of Sutton,06/09/2021,50051028,"100,189.77",Beddington Infants School,GRANTS & EX GRATIA PAYMENTS,Peoples Services,Payments to Schools,A51013
London Borough of Sutton,06/09/2021,50051067,"11,466.00",Beddington Infants School,GRANTS & EX GRATIA PAYMENTS,Peoples Services,Place Funding,A56110
London Borough of Sutton,01/09/2021,50049619,"3,346.67",Beddington Park Primary (Academy) ,GRANTS & EX GRATIA PAYMENTS,Peoples Services,Top-up Funding,A51016
London Borough of Sutton,06/09/2021,50051068,"8,463.00",Beddington Park Primary (Academy) ,GRANTS & EX GRATIA PAYMENTS,Peoples Services,Place Funding,A56110
London Borough of Sutton,26/08/2021,20008253,990,BedZed Residents Association,SUNDRY SUPPLIER - ENV SERVICES,Resources,"Grants, Contributions & Donations",A47005
London Borough of Sutton,31/08/2021,20008366,"1,515.21",Beeches Tree Care,AGRICULTURAL & ESTATE SERVICES,Environment Housing and Neighbourhoods,Maintenance of trees,A28003
London Borough of Sutton,31/08/2021,20008376,813.83,Beeches Tree Care,AGRICULTURAL & ESTATE SERVICES,Environment Housing and Neighbourhoods,Tree Works,A56042
London Borough of Sutton,01/09/2021,20008418,793.56,Beeches Tree Care,AGRICULTURAL & ESTATE SERVICES,Environment Housing and Neighbourhoods,Tree Works,A56042
London Borough of Sutton,01/09/2021,20008423,"1,011.00",Beeches Tree Care,AGRICULTURAL & ESTATE SERVICES,Environment Housing and Neighbourhoods,Tree Works,A56042
London Borough of Sutton,01/09/2021,20008489,585,Beeches Tree Care,AGRICULTURAL & ESTATE SERVICES,Environment Housing and Neighbourhoods,Purchases and Repairs Fixtures & Fittings,A25005
London Borough of Sutton,20/08/2021,20008490,552.61,Beeches Tree Care,AGRICULTURAL & ESTATE SERVICES,Environment Housing and Neighbourhoods,Tree Works,A56042
London Borough of Sutton,02/09/2021,20008501,"4,838.84",Beeches Tree Care,AGRICULTURAL & ESTATE SERVICES,Environment Housing and Neighbourhoods,Maintenance of trees,A28003
London Borough of Sutton,03/09/2021,20008640,"4,752.00",Beeches Tree Care,AGRICULTURAL & ESTATE SERVICES,Environment Housing and Neighbourhoods,Equipment And Materials Purchase,A40000
London Borough of Sutton,06/09/2021,20008709,"4,000.00",Beeches Tree Care,AGRICULTURAL & ESTATE SERVICES,Environment Housing and Neighbourhoods,Plants and Shrubs,A28004
London Borough of Sutton,07/09/2021,20008848,959.72,Beeches Tree Care,AGRICULTURAL & ESTATE SERVICES,Environment Housing and Neighbourhoods,Maintenance of trees,A28003
London Borough of Sutton,08/09/2021,20008984,"5,486.32",Beeches Tree Care,AGRICULTURAL & ESTATE SERVICES,Environment Housing and Neighbourhoods,Tree Works,A56042
London Borough of Sutton,09/09/2021,20009001,"1,009.02",Beeches Tree Care,AGRICULTURAL & ESTATE SERVICES,Environment Housing and Neighbourhoods,Maintenance of trees,A28003
London Borough of Sutton,14/09/2021,20009278,"1,123.76",Beeches Tree Care,AGRICULTURAL & ESTATE SERVICES,Environment Housing and Neighbourhoods,Parks and Open Spaces - Trees Maintenance,A56128
London Borough of Sutton,15/09/2021,20009369,549,Beeches Tree Care,AGRICULTURAL & ESTATE SERVICES,Environment Housing and Neighbourhoods,Tree Works,A56042
London Borough of Sutton,16/09/2021,20009370,"3,898.24",Beeches Tree Care,AGRICULTURAL & ESTATE SERVICES,Environment Housing and Neighbourhoods,Tree Works,A56042
London Borough of Sutton,16/09/2021,20009371,"1,274.80",Beeches Tree Care,AGRICULTURAL & ESTATE SERVICES,Environment Housing and Neighbourhoods,Tree Works,A56042
London Borough of Sutton,20/09/2021,20009562,566.45,Beeches Tree Care,AGRICULTURAL & ESTATE SERVICES,Environment Housing and Neighbourhoods,Tree Works,A56042
London Borough of Sutton,20/09/2021,20009563,996.95,Beeches Tree Care,AGRICULTURAL & ESTATE SERVICES,Environment Housing and Neighbourhoods,Highway Trees - Maintenance,A28005
London Borough of Sutton,21/09/2021,20009617,980.85,Beeches Tree Care,AGRICULTURAL & ESTATE SERVICES,Environment Housing and Neighbourhoods,Tree Works,A56042
London Borough of Sutton,23/09/2021,20009796,"5,055.73",Beeches Tree Care,AGRICULTURAL & ESTATE SERVICES,Environment Housing and Neighbourhoods,Highway Trees - Maintenance,A28005
London Borough of Sutton,27/09/2021,20009979,479.87,Beeches Tree Care,AGRICULTURAL & ESTATE SERVICES,Environment Housing and Neighbourhoods,Tree Works,A56042
London Borough of Sutton,27/09/2021,20009983,869.18,Beeches Tree Care,AGRICULTURAL & ESTATE SERVICES,Environment Housing and Neighbourhoods,Tree Works,A56042
London Borough of Sutton,27/09/2021,20010022,"4,112.51",Beeches Tree Care,AGRICULTURAL & ESTATE SERVICES,Environment Housing and Neighbourhoods,Maintenance of trees,A28003
London Borough of Sutton,13/09/2021,20010092,956.7,Beeches Tree Care,AGRICULTURAL & ESTATE SERVICES,Environment Housing and Neighbourhoods,Tree Works,A56042
London Borough of Sutton,06/09/2021,50049729,"4,004.00",Belmont Village Playgroup,GRANTS & EX GRATIA PAYMENTS,Peoples Services,Place Funding,A56110
London Borough of Sutton,12/07/2021,50049104,884,Best at Home Domiciliary Care Services Ltd,SOCIAL SERVICES RESIDENTIAL,Peoples Services,Home Care Services,A56019
London Borough of Sutton,26/07/2021,50049106,884,Best at Home Domiciliary Care Services Ltd,SOCIAL SERVICES RESIDENTIAL,Peoples Services,Home Care Services,A56019
London Borough of Sutton,12/07/2021,50049137,772,Best at Home Domiciliary Care Services Ltd,SOCIAL SERVICES RESIDENTIAL,Peoples Services,Home Care Services,A56019
London Borough of Sutton,26/07/2021,50049138,772,Best at Home Domiciliary Care Services Ltd,SOCIAL SERVICES RESIDENTIAL,Peoples Services,Home Care Services,A56019
London Borough of Sutton,12/07/2021,50049142,772,Best at Home Domiciliary Care Services Ltd,SOCIAL SERVICES RESIDENTIAL,Peoples Services,Home Care Services,A56019
London Borough of Sutton,26/07/2021,50049143,772,Best at Home Domiciliary Care Services Ltd,SOCIAL SERVICES RESIDENTIAL,Peoples Services,Home Care Services,A56019
London Borough of Sutton,12/07/2021,50049158,912,Best at Home Domiciliary Care Services Ltd,SOCIAL SERVICES RESIDENTIAL,Peoples Services,Home Care Services,A56019
London Borough of Sutton,26/07/2021,50049159,912,Best at Home Domiciliary Care Services Ltd,SOCIAL SERVICES RESIDENTIAL,Peoples Services,Home Care Services,A56019
London Borough of Sutton,18/07/2021,50050846,772,Best at Home Domiciliary Care Services Ltd,SOCIAL SERVICES RESIDENTIAL,Peoples Services,Home Care Services,A56019
London Borough of Sutton,18/07/2021,50050855,912,Best at Home Domiciliary Care Services Ltd,SOCIAL SERVICES RESIDENTIAL,Peoples Services,Home Care Services,A56019
London Borough of Sutton,18/07/2021,50050860,772,Best at Home Domiciliary Care Services Ltd,SOCIAL SERVICES RESIDENTIAL,Peoples Services,Home Care Services,A56019
London Borough of Sutton,18/07/2021,50050866,884,Best at Home Domiciliary Care Services Ltd,SOCIAL SERVICES RESIDENTIAL,Peoples Services,Home Care Services,A56019
London Borough of Sutton,23/08/2021,50055647,884,Best at Home Domiciliary Care Services Ltd,SOCIAL SERVICES RESIDENTIAL,Peoples Services,Home Care Services,A56019
London Borough of Sutton,23/08/2021,50055655,912,Best at Home Domiciliary Care Services Ltd,SOCIAL SERVICES RESIDENTIAL,Peoples Services,Home Care Services,A56019
London Borough of Sutton,23/08/2021,50055659,772,Best at Home Domiciliary Care Services Ltd,SOCIAL SERVICES RESIDENTIAL,Peoples Services,Home Care Services,A56019
London Borough of Sutton,23/08/2021,50055670,772,Best at Home Domiciliary Care Services Ltd,SOCIAL SERVICES RESIDENTIAL,Peoples Services,Home Care Services,A56019
London Borough of Sutton,23/08/2021,50055687,400,Best at Home Domiciliary Care Services Ltd,SOCIAL SERVICES RESIDENTIAL,Peoples Services,Home Care Services,A56019
London Borough of Sutton,23/08/2021,50055687,400,Best at Home Domiciliary Care Services Ltd,SOCIAL SERVICES RESIDENTIAL,Peoples Services,Home Care Services,A56019
London Borough of Sutton,09/08/2021,50056483,912,Best at Home Domiciliary Care Services Ltd,SOCIAL SERVICES RESIDENTIAL,Peoples Services,Home Care Services,A56019
London Borough of Sutton,02/08/2021,50056488,912,Best at Home Domiciliary Care Services Ltd,SOCIAL SERVICES RESIDENTIAL,Peoples Services,Home Care Services,A56019
London Borough of Sutton,09/08/2021,50056509,884,Best at Home Domiciliary Care Services Ltd,SOCIAL SERVICES RESIDENTIAL,Peoples Services,Home Care Services,A56019
London Borough of Sutton,02/08/2021,50056511,772,Best at Home Domiciliary Care Services Ltd,SOCIAL SERVICES RESIDENTIAL,Peoples Services,Home Care Services,A56019
London Borough of Sutton,09/08/2021,50056512,772,Best at Home Domiciliary Care Services Ltd,SOCIAL SERVICES RESIDENTIAL,Peoples Services,Home Care Services,A56019
London Borough of Sutton,02/08/2021,50058018,772,Best at Home Domiciliary Care Services Ltd,SOCIAL SERVICES RESIDENTIAL,Peoples Services,Home Care Services,A56019
London Borough of Sutton,16/08/2021,50058021,884,Best at Home Domiciliary Care Services Ltd,SOCIAL SERVICES RESIDENTIAL,Peoples Services,Home Care Services,A56019
London Borough of Sutton,02/08/2021,50058022,884,Best at Home Domiciliary Care Services Ltd,SOCIAL SERVICES RESIDENTIAL,Peoples Services,Home Care Services,A56019
London Borough of Sutton,16/08/2021,50058029,370,Best at Home Domiciliary Care Services Ltd,SOCIAL SERVICES RESIDENTIAL,Peoples Services,Home Care Services,A56019
London Borough of Sutton,16/08/2021,50058029,400,Best at Home Domiciliary Care Services Ltd,SOCIAL SERVICES RESIDENTIAL,Peoples Services,Home Care Services,A56019
London Borough of Sutton,16/08/2021,50058062,912,Best at Home Domiciliary Care Services Ltd,SOCIAL SERVICES RESIDENTIAL,Peoples Services,Home Care Services,A56019
London Borough of Sutton,16/08/2021,50058065,772,Best at Home Domiciliary Care Services Ltd,SOCIAL SERVICES RESIDENTIAL,Peoples Services,Home Care Services,A56019
London Borough of Sutton,31/08/2021,20008497,"9,433.00",Bestcourt UK Ltd,ACCOMMODATION BED & BREAKFAST,Environment Housing and Neighbourhoods,Bed & Breakfast,A56000
London Borough of Sutton,25/08/2021,20008478,"2,307.00",Bevan Brittan LLP,LEGAL & PROFESSIONAL SERVICES,Environment Housing and Neighbourhoods,External Legal Fees,C20008
London Borough of Sutton,31/08/2021,20008625,675,Bevan Brittan LLP,LEGAL & PROFESSIONAL SERVICES,Environment Housing and Neighbourhoods,External Legal Fees,C20008
London Borough of Sutton,01/09/2021,50053221,"21,347.66",Beyond Autism,CHILDREN'S SERVICES - RESIDENTIAL,Peoples Services,Independent School Fees,A56002
London Borough of Sutton,01/09/2021,50053222,"21,987.94",Beyond Autism,CHILDREN'S SERVICES - RESIDENTIAL,Peoples Services,Independent School Fees,A56002
London Borough of Sutton,01/09/2021,50053223,"21,347.66",Beyond Autism,CHILDREN'S SERVICES - RESIDENTIAL,Peoples Services,Independent School Fees,A56002
London Borough of Sutton,01/09/2021,50053224,"29,930.99",Beyond Autism,CHILDREN'S SERVICES - RESIDENTIAL,Peoples Services,Independent School Fees,A56002
London Borough of Sutton,01/09/2021,50053225,"21,347.66",Beyond Autism,CHILDREN'S SERVICES - RESIDENTIAL,Peoples Services,Independent School Fees,A56002
London Borough of Sutton,01/09/2021,50053226,"21,347.66",Beyond Autism,CHILDREN'S SERVICES - RESIDENTIAL,Peoples Services,Independent School Fees,A56002
London Borough of Sutton,14/09/2021,20009282,"2,070.00",Bhagirthiben,SUNDRY SUPPLIER - HOUSING,Environment Housing and Neighbourhoods,Miscellaneous Expenses,A49000
London Borough of Sutton,06/09/2021,50049818,"5,016.11",Bizzy Bees Day Nursery,GRANTS & EX GRATIA PAYMENTS,Peoples Services,Place Funding,A56110
London Borough of Sutton,01/07/2021,50049382,"15,250.00",Blossom House Lower School,GRANTS & EX GRATIA PAYMENTS,Peoples Services,Independent School Fees,A56002
London Borough of Sutton,01/07/2021,50049383,"15,950.00",Blossom House Lower School,GRANTS & EX GRATIA PAYMENTS,Peoples Services,Independent School Fees,A56002
London Borough of Sutton,01/07/2021,50049384,"16,750.00",Blossom House Lower School,GRANTS & EX GRATIA PAYMENTS,Peoples Services,Independent School Fees,A56002
London Borough of Sutton,01/07/2021,50049385,"9,416.66",Blossom House Lower School,GRANTS & EX GRATIA PAYMENTS,Peoples Services,Independent School Fees,A56002
London Borough of Sutton,01/07/2021,50049386,"14,850.00",Blossom House Lower School,GRANTS & EX GRATIA PAYMENTS,Peoples Services,Independent School Fees,A56002
London Borough of Sutton,01/07/2021,50049387,"16,750.00",Blossom House Lower School,GRANTS & EX GRATIA PAYMENTS,Peoples Services,Independent School Fees,A56002
London Borough of Sutton,01/07/2021,50049388,"16,750.00",Blossom House Lower School,GRANTS & EX GRATIA PAYMENTS,Peoples Services,Independent School Fees,A56002
London Borough of Sutton,01/07/2021,50049389,"14,850.00",Blossom House Lower School,GRANTS & EX GRATIA PAYMENTS,Peoples Services,Independent School Fees,A56002
London Borough of Sutton,01/07/2021,50049390,"26,583.33",Blossom House Lower School,GRANTS & EX GRATIA PAYMENTS,Peoples Services,Independent School Fees,A56002
London Borough of Sutton,01/07/2021,50049392,"15,250.00",Blossom House Lower School,GRANTS & EX GRATIA PAYMENTS,Peoples Services,Independent School Fees,A56002
London Borough of Sutton,01/07/2021,50049393,"16,750.00",Blossom House Lower School,GRANTS & EX GRATIA PAYMENTS,Peoples Services,Independent School Fees,A56002
London Borough of Sutton,01/07/2021,50049395,"13,150.00",Blossom House Lower School,GRANTS & EX GRATIA PAYMENTS,Peoples Services,Independent School Fees,A56002
London Borough of Sutton,01/07/2021,50049396,"10,563.33",Blossom House Lower School,GRANTS & EX GRATIA PAYMENTS,Peoples Services,Independent School Fees,A56002
London Borough of Sutton,01/07/2021,50049397,"12,750.00",Blossom House Lower School,GRANTS & EX GRATIA PAYMENTS,Peoples Services,Independent School Fees,A56002
London Borough of Sutton,01/07/2021,50049399,"22,450.00",Blossom House Lower School,GRANTS & EX GRATIA PAYMENTS,Peoples Services,Independent School Fees,A56002
London Borough of Sutton,01/07/2021,50049400,"15,250.00",Blossom House Lower School,GRANTS & EX GRATIA PAYMENTS,Peoples Services,Independent School Fees,A56002
London Borough of Sutton,13/07/2021,50049401,"17,450.00",Blossom House Lower School,GRANTS & EX GRATIA PAYMENTS,Peoples Services,Independent School Fees,A56002
London Borough of Sutton,09/09/2021,50053262,"5,386.67",Blossom House Lower School,GRANTS & EX GRATIA PAYMENTS,Peoples Services,Independent School Fees,A56002
London Borough of Sutton,06/09/2021,50049798,546,Boadicea Rose (Billy Bears Playdays),GRANTS & EX GRATIA PAYMENTS,Peoples Services,Place Funding,A56110
London Borough of Sutton,08/09/2021,20008935,"-17,066.92",Bottomline Technologies Ltd,OFFICE SERVICES,Corporate Balance Sheet,Lloyds General Account,B23011
London Borough of Sutton,30/06/2021,20009029,"14,222.44",Bottomline Technologies Ltd,OFFICE SERVICES,Resources,IT Software Maintenance,A45045
London Borough of Sutton,31/08/2021,20008393,"1,093.75",Brand Narrative,TEMP STAFF & CONSULTANCY,Environment Housing and Neighbourhoods,Waste Contractor Payment,A56057
London Borough of Sutton,02/09/2021,20008664,"3,431.44",Brandawear Ltd,SUNDRY SUPPLIER - EDUCATION,Health and Wellbeing,Clothing & Uniforms,A42005
London Borough of Sutton,07/09/2021,20008872,"2,031.25",Breastfeeding Network,SUNDRY SUPPLIER - EDUCATION,Health and Wellbeing,Subscriptions,A47010
London Borough of Sutton,27/08/2021,20008706,"97,342.99",Breyer Group Plc,CONSTRUCTION INDUSTRY,Environment Housing and Neighbourhoods,Payments to Contractors,C14000
London Borough of Sutton,23/08/2021,20008744,"38,984.86",Breyer Group Plc,CONSTRUCTION INDUSTRY,Environment Housing and Neighbourhoods,Payments to Contractors,C14000
London Borough of Sutton,20/09/2021,20009651,"40,184.98",Breyer Group Plc,CONSTRUCTION INDUSTRY,Environment Housing and Neighbourhoods,Payments to Contractors,C14000
London Borough of Sutton,02/09/2021,50049362,"7,627.29",Bridge House Care Centre,SOCIAL SERVICES RESIDENTIAL,Peoples Services,Other Income - Outside Scope,A92127
London Borough of Sutton,02/09/2021,50049363,"7,761.93",Bridge House Care Centre,SOCIAL SERVICES RESIDENTIAL,Peoples Services,Contract Cleaning,A27010
London Borough of Sutton,03/09/2021,50050335,"3,612.00",Bridge House Care Centre,SOCIAL SERVICES RESIDENTIAL,Peoples Services,Nursing Care - Ext Provider,A56025
London Borough of Sutton,03/09/2021,50050335,-735.68,Bridge House Care Centre,SOCIAL SERVICES RESIDENTIAL,Peoples Services,Nursing Care - 3rd party top up payment,A56023
London Borough of Sutton,03/09/2021,50050350,"-1,393.60",Bridge House Care Centre,SOCIAL SERVICES RESIDENTIAL,Peoples Services,Nursing Care - 3rd party top up payment,A56023
London Borough of Sutton,03/09/2021,50050350,"6,735.34",Bridge House Care Centre,SOCIAL SERVICES RESIDENTIAL,Peoples Services,Nursing Care - Ext Provider,A56025
London Borough of Sutton,03/09/2021,50050405,"3,555.32",Bridge House Care Centre,SOCIAL SERVICES RESIDENTIAL,Peoples Services,Nursing Care - Ext Provider,A56025
London Borough of Sutton,03/09/2021,50050405,-632.64,Bridge House Care Centre,SOCIAL SERVICES RESIDENTIAL,Peoples Services,Nursing Care - 3rd party top up payment,A56023
London Borough of Sutton,03/09/2021,50050423,"4,274.35",Bridge House Care Centre,SOCIAL SERVICES RESIDENTIAL,Peoples Services,Nursing Care - Ext Provider,A56025
London Borough of Sutton,03/09/2021,50050423,-647.63,Bridge House Care Centre,SOCIAL SERVICES RESIDENTIAL,Peoples Services,Nursing Care Short Term,A56026
London Borough of Sutton,03/09/2021,50050423,-750.4,Bridge House Care Centre,SOCIAL SERVICES RESIDENTIAL,Peoples Services,Nursing Care - 3rd party top up payment,A56023
London Borough of Sutton,03/09/2021,50050464,"3,472.64",Bridge House Care Centre,SOCIAL SERVICES RESIDENTIAL,Peoples Services,Nursing Care - Ext Provider,A56025
London Borough of Sutton,03/09/2021,50050464,-632.64,Bridge House Care Centre,SOCIAL SERVICES RESIDENTIAL,Peoples Services,Nursing Care - 3rd party top up payment,A56023
London Borough of Sutton,03/09/2021,50050468,"3,626.72",Bridge House Care Centre,SOCIAL SERVICES RESIDENTIAL,Peoples Services,Nursing Care Short Term,A56026
London Borough of Sutton,03/09/2021,50050468,-750.4,Bridge House Care Centre,SOCIAL SERVICES RESIDENTIAL,Peoples Services,Nursing Care - 3rd party top up payment,A56023
London Borough of Sutton,03/09/2021,50050520,"2,075.08",Bridge House Care Centre,SOCIAL SERVICES RESIDENTIAL,Peoples Services,Nursing Care - Ext Provider,A56025
London Borough of Sutton,03/09/2021,50050579,"3,611.68",Bridge House Care Centre,SOCIAL SERVICES RESIDENTIAL,Peoples Services,Nursing Care - Ext Provider,A56025
London Borough of Sutton,03/09/2021,50050579,-735.68,Bridge House Care Centre,SOCIAL SERVICES RESIDENTIAL,Peoples Services,Nursing Care - 3rd party top up payment,A56023
London Borough of Sutton,03/09/2021,50050592,"3,612.00",Bridge House Care Centre,SOCIAL SERVICES RESIDENTIAL,Peoples Services,Nursing Care - Ext Provider,A56025
London Borough of Sutton,03/09/2021,50050592,-735.68,Bridge House Care Centre,SOCIAL SERVICES RESIDENTIAL,Peoples Services,Nursing Care - 3rd party top up payment,A56023
London Borough of Sutton,03/09/2021,50050598,"3,502.24",Bridge House Care Centre,SOCIAL SERVICES RESIDENTIAL,Peoples Services,Nursing Care - Ext Provider,A56025
London Borough of Sutton,03/09/2021,50050598,-662.24,Bridge House Care Centre,SOCIAL SERVICES RESIDENTIAL,Peoples Services,Nursing Care - 3rd party top up payment,A56023
London Borough of Sutton,03/09/2021,50050599,"3,586.28",Bridge House Care Centre,SOCIAL SERVICES RESIDENTIAL,Peoples Services,Nursing Care - Ext Provider,A56025
London Borough of Sutton,03/09/2021,50050599,-662.24,Bridge House Care Centre,SOCIAL SERVICES RESIDENTIAL,Peoples Services,Nursing Care - 3rd party top up payment,A56023
London Borough of Sutton,03/09/2021,50050621,"3,626.72",Bridge House Care Centre,SOCIAL SERVICES RESIDENTIAL,Peoples Services,Nursing Care - Ext Provider,A56025
London Borough of Sutton,03/09/2021,50050621,-750.4,Bridge House Care Centre,SOCIAL SERVICES RESIDENTIAL,Peoples Services,Nursing Care - 3rd party top up payment,A56023
London Borough of Sutton,03/09/2021,50050649,"3,612.00",Bridge House Care Centre,SOCIAL SERVICES RESIDENTIAL,Peoples Services,Nursing Care - Ext Provider,A56025
London Borough of Sutton,03/09/2021,50050649,-735.68,Bridge House Care Centre,SOCIAL SERVICES RESIDENTIAL,Peoples Services,Nursing Care - 3rd party top up payment,A56023
London Borough of Sutton,03/09/2021,50050658,"3,626.72",Bridge House Care Centre,SOCIAL SERVICES RESIDENTIAL,Peoples Services,Nursing Care Short Term,A56026
London Borough of Sutton,03/09/2021,50050658,-750.4,Bridge House Care Centre,SOCIAL SERVICES RESIDENTIAL,Peoples Services,Nursing Care - 3rd party top up payment,A56023
London Borough of Sutton,03/09/2021,50050667,"3,626.72",Bridge House Care Centre,SOCIAL SERVICES RESIDENTIAL,Peoples Services,Nursing Care - Ext Provider,A56025
London Borough of Sutton,03/09/2021,50050667,-750.4,Bridge House Care Centre,SOCIAL SERVICES RESIDENTIAL,Peoples Services,Nursing Care - 3rd party top up payment,A56023
London Borough of Sutton,03/09/2021,50050669,"3,626.72",Bridge House Care Centre,SOCIAL SERVICES RESIDENTIAL,Peoples Services,Nursing Care - Ext Provider,A56025
London Borough of Sutton,03/09/2021,50050671,-735.68,Bridge House Care Centre,SOCIAL SERVICES RESIDENTIAL,Peoples Services,Nursing Care - 3rd party top up payment,A56023
London Borough of Sutton,03/09/2021,50050671,"3,611.68",Bridge House Care Centre,SOCIAL SERVICES RESIDENTIAL,Peoples Services,Nursing Care - Ext Provider,A56025
London Borough of Sutton,03/09/2021,50050675,-750.4,Bridge House Care Centre,SOCIAL SERVICES RESIDENTIAL,Peoples Services,Nursing Care - 3rd party top up payment,A56023
London Borough of Sutton,01/08/2021,50052691,"3,498.57",Bridging Gaps Limited,CHILDREN'S SERVICES - FOSTERING & ADOPTION SERVICES,Peoples Services,Foster Parents Support,A44110
London Borough of Sutton,01/09/2021,50049455,"3,588.09",Bright Futures Care Ltd,CHILDREN'S SERVICES - FOSTERING & ADOPTION SERVICES,Peoples Services,Independent School Fees,A56002
London Borough of Sutton,02/08/2021,50052674,"21,521.88",Bright Futures Care Ltd,CHILDREN'S SERVICES - FOSTERING & ADOPTION SERVICES,Peoples Services,Residential Care-Children,A56115
London Borough of Sutton,01/08/2021,50052737,"3,321.38",Brighter Futures Foster Care Ltd,CHILDREN'S SERVICES - FOSTERING & ADOPTION SERVICES,Peoples Services,Foster Parents Support,A44110
London Borough of Sutton,01/08/2021,50052738,"2,745.67",Brighter Futures Foster Care Ltd,CHILDREN'S SERVICES - FOSTERING & ADOPTION SERVICES,Peoples Services,Foster Parents Support,A44110
London Borough of Sutton,01/08/2021,50052792,"3,321.34",Brighter Futures Foster Care Ltd,CHILDREN'S SERVICES - FOSTERING & ADOPTION SERVICES,Peoples Services,Foster Parents Support,A44110
London Borough of Sutton,03/09/2021,20008868,"1,097.60",British Gas,UTILITIES,Health and Wellbeing,Electricity,A21000
London Borough of Sutton,03/09/2021,50050331,-746,British Home & Hospital For Incurables,SOCIAL SERVICES RESIDENTIAL,Peoples Services,Nursing Care - Client Cont ( Net paymt ),A56024
London Borough of Sutton,03/09/2021,50050331,"2,497.88",British Home & Hospital For Incurables,SOCIAL SERVICES RESIDENTIAL,Peoples Services,Nursing Care - Ext Provider,A56025
London Borough of Sutton,27/08/2021,20008803,"17,995.60",British Telecommunications Plc,UTILITIES,Resources,Telephones,A45020
London Borough of Sutton,03/09/2021,50050304,"3,752.64",Broadlands Nursing Home,SOCIAL SERVICES RESIDENTIAL,Peoples Services,Nursing Care - Ext Provider,A56025
London Borough of Sutton,03/09/2021,50050304,-632.64,Broadlands Nursing Home,SOCIAL SERVICES RESIDENTIAL,Peoples Services,Nursing Care - 3rd party top up payment,A56023
London Borough of Sutton,03/09/2021,50050444,"3,586.28",Broadlands Nursing Home,SOCIAL SERVICES RESIDENTIAL,Peoples Services,Nursing Care - Ext Provider,A56025
London Borough of Sutton,03/09/2021,50050444,-662.24,Broadlands Nursing Home,SOCIAL SERVICES RESIDENTIAL,Peoples Services,Nursing Care - 3rd party top up payment,A56023
London Borough of Sutton,03/09/2021,50050501,"3,626.72",Broadlands Nursing Home,SOCIAL SERVICES RESIDENTIAL,Peoples Services,Nursing Care - Ext Provider,A56025
London Borough of Sutton,03/09/2021,50050501,-750.4,Broadlands Nursing Home,SOCIAL SERVICES RESIDENTIAL,Peoples Services,Nursing Care - 3rd party top up payment,A56023
London Borough of Sutton,03/09/2021,50050503,"3,626.72",Broadlands Nursing Home,SOCIAL SERVICES RESIDENTIAL,Peoples Services,Nursing Care - Ext Provider,A56025
London Borough of Sutton,03/09/2021,50050503,-750.4,Broadlands Nursing Home,SOCIAL SERVICES RESIDENTIAL,Peoples Services,Nursing Care - 3rd party top up payment,A56023
London Borough of Sutton,03/09/2021,50050556,"3,543.04",Broadlands Nursing Home,SOCIAL SERVICES RESIDENTIAL,Peoples Services,Nursing Care - Ext Provider,A56025
London Borough of Sutton,03/09/2021,50050556,-632.64,Broadlands Nursing Home,SOCIAL SERVICES RESIDENTIAL,Peoples Services,Nursing Care - 3rd party top up payment,A56023
London Borough of Sutton,28/08/2021,20008890,"11,117.00",Brown Jacobson LLP ,FINANCIAL / INSURANCE INSTNS,Resources,External Legal Fees,C20008
London Borough of Sutton,02/06/2021,20008896,"2,372.50",Brown Jacobson LLP ,FINANCIAL / INSURANCE INSTNS,Resources,External Legal Fees,C20008
London Borough of Sutton,28/05/2021,20008898,"2,500.00",Brown Jacobson LLP ,FINANCIAL / INSURANCE INSTNS,Resources,External Legal Fees,C20008
London Borough of Sutton,27/07/2021,20008899,"11,415.50",Brown Jacobson LLP ,FINANCIAL / INSURANCE INSTNS,Resources,External Legal Fees,C20008
London Borough of Sutton,28/06/2021,20008900,"3,756.50",Brown Jacobson LLP ,FINANCIAL / INSURANCE INSTNS,Resources,External Legal Fees,C20008
London Borough of Sutton,01/04/2021,20008901,"1,902.50",Brown Jacobson LLP ,FINANCIAL / INSURANCE INSTNS,Resources,External Legal Fees,C20008
London Borough of Sutton,28/07/2021,20008903,"71,889.14",Brown Jacobson LLP ,FINANCIAL / INSURANCE INSTNS,Resources,External Legal Fees,C20008
London Borough of Sutton,28/07/2021,20008903,"1,002.90",Brown Jacobson LLP ,FINANCIAL / INSURANCE INSTNS,Resources,External Legal Fees,C20008
London Borough of Sutton,18/05/2021,20008904,"9,750.00",Brown Jacobson LLP ,FINANCIAL / INSURANCE INSTNS,Resources,External Legal Fees,C20008
London Borough of Sutton,24/02/2021,20008905,584,Brown Jacobson LLP ,FINANCIAL / INSURANCE INSTNS,Resources,External Legal Fees,C20008
London Borough of Sutton,06/09/2021,50049670,"2,486.40",Bumpsa Daisies Nurserys,GRANTS & EX GRATIA PAYMENTS,Peoples Services,Place Funding,A56110
London Borough of Sutton,06/09/2021,50049737,"7,276.50",Bumpsa Daisies Nurserys,GRANTS & EX GRATIA PAYMENTS,Peoples Services,Place Funding,A56110
London Borough of Sutton,03/09/2021,50050276,"3,800.00",Burlington Care (ASC) Ltd,SOCIAL SERVICES RESIDENTIAL,Peoples Services,Residential Care - Ext Provider,A56114
London Borough of Sutton,06/09/2021,50049740,"8,229.38",Busy Bees Day Nurseries Ltd ,GRANTS & EX GRATIA PAYMENTS,Peoples Services,Place Funding,A56110
London Borough of Sutton,06/09/2021,50049672,621.6,Busy Bees Day Nurseries Ltd ,GRANTS & EX GRATIA PAYMENTS,Peoples Services,Place Funding,A56110
London Borough of Sutton,06/09/2021,50049739,"10,187.10",Busy Bees Day Nurseries Ltd ,GRANTS & EX GRATIA PAYMENTS,Peoples Services,Place Funding,A56110
London Borough of Sutton,19/08/2021,20007855,895,Butter Hill Residents Association,SUNDRY SUPPLIER - ENV SERVICES,Resources,"Grants, Contributions & Donations",A47005
London Borough of Sutton,03/09/2021,50050316,"7,824.28",Butterfly's Care Homes Ltd,SOCIAL SERVICES RESIDENTIAL,Peoples Services,Residential Care - Ext Provider,A56114
London Borough of Sutton,14/09/2021,20009310,"404,295.99",Buxton Building Contractors Ltd,CONSTRUCTION INDUSTRY,Environment Housing and Neighbourhoods,Payments to Contractors,C14000
London Borough of Sutton,16/09/2021,20009368,"-4,042.96",Buxton Building Contractors Ltd,CONSTRUCTION INDUSTRY,Resources,Fees And Charges (VATable),A92310
London Borough of Sutton,01/09/2021,50052739,"2,975.69",By The Bridge Ltd,CHILDREN'S SERVICES - FOSTERING & ADOPTION SERVICES,Peoples Services,Foster Parents Support,A44110
London Borough of Sutton,01/09/2021,50052740,"4,667.05",By The Bridge Ltd,CHILDREN'S SERVICES - FOSTERING & ADOPTION SERVICES,Peoples Services,Foster Parents Support,A44110
London Borough of Sutton,01/09/2021,50052741,"5,892.48",By The Bridge Ltd,CHILDREN'S SERVICES - FOSTERING & ADOPTION SERVICES,Peoples Services,Foster Parents Support,A44110
London Borough of Sutton,01/09/2021,50052798,"2,975.69",By The Bridge Ltd,CHILDREN'S SERVICES - FOSTERING & ADOPTION SERVICES,Peoples Services,Foster Parents Support,A44110
London Borough of Sutton,01/08/2021,50052678,"6,377.14",Caldecott Fostering Ltd,CHILDREN'S SERVICES - FOSTERING & ADOPTION SERVICES,Peoples Services,Foster Parents Support,A44110
London Borough of Sutton,01/07/2021,50049381,"5,271.67",Canbury School LTD,GRANTS & EX GRATIA PAYMENTS,Peoples Services,Independent School Fees,A56002
London Borough of Sutton,24/06/2021,20008879,"7,393.23",Canon (UK) Ltd,REPROGRAPHICS & PHOTOGRAPHY,Resources,IT Hardware Maintenance,A45008
London Borough of Sutton,03/09/2021,50050676,-922.32,Canterbury Oast Trust,SOCIAL SERVICES RESIDENTIAL,Peoples Services,Residential Care - Client Cont ( Net Paymt ),A56113
London Borough of Sutton,03/09/2021,50050676,204.72,Canterbury Oast Trust,SOCIAL SERVICES RESIDENTIAL,Peoples Services,One to One Care,A56108
London Borough of Sutton,03/09/2021,50050676,"3,913.56",Canterbury Oast Trust,SOCIAL SERVICES RESIDENTIAL,Peoples Services,Residential Care - Ext Provider,A56114
London Borough of Sutton,22/09/2020,20009968,"1,516.00",Capital Hair and Beauty,ACADEMIC - STUDENT FEES,Health and Wellbeing,Equipment And Materials Purchase,A40000
London Borough of Sutton,31/08/2021,50052722,"5,695.10",Capstone Foster Care (South East) Ltd,CHILDREN'S SERVICES - FOSTERING & ADOPTION SERVICES,Peoples Services,Foster Parents Support,A44110
London Borough of Sutton,31/08/2021,50052752,"3,627.00",Capstone Foster Care (South East) Ltd,CHILDREN'S SERVICES - FOSTERING & ADOPTION SERVICES,Peoples Services,Foster Parents Support,A44110
London Borough of Sutton,26/08/2021,50049608,"6,591.83",Care Advocates Ltd,MANAGEMENT & TRAINING SERVICES,Peoples Services,Supported Living,A56088
London Borough of Sutton,26/08/2021,50054565,"9,116.21",Care Advocates Ltd,MANAGEMENT & TRAINING SERVICES,Peoples Services,Supported Living,A56088
London Borough of Sutton,03/09/2021,50050419,"3,200.00",Care Concern Group,SOCIAL SERVICES RESIDENTIAL,Peoples Services,Residential Care - Ext Provider,A56114
London Borough of Sutton,03/09/2021,50050532,"3,631.80",Care Direct Uk Ltd ,SOCIAL SERVICES RESIDENTIAL,Peoples Services,Residential Care - Ext Provider,A56114
London Borough of Sutton,09/08/2021,50051518,"1,400.00",Care More Ltd,SOCIAL SERVICES RESIDENTIAL,Peoples Services,Home Care Services,A56019
London Borough of Sutton,09/08/2021,50051520,"1,484.00",Care More Ltd,SOCIAL SERVICES RESIDENTIAL,Peoples Services,Home Care Services,A56019
London Borough of Sutton,09/08/2021,50051524,798,Care More Ltd,SOCIAL SERVICES RESIDENTIAL,Peoples Services,Home Care Services,A56019
London Borough of Sutton,09/08/2021,50051543,685,Care More Ltd,SOCIAL SERVICES RESIDENTIAL,Peoples Services,Home Care Services,A56019
London Borough of Sutton,09/08/2021,50051556,"1,400.00",Care More Ltd,SOCIAL SERVICES RESIDENTIAL,Peoples Services,Home Care Services,A56019
London Borough of Sutton,09/08/2021,50051557,974,Care More Ltd,SOCIAL SERVICES RESIDENTIAL,Peoples Services,Home Care Services,A56019
London Borough of Sutton,09/08/2021,50051559,742,Care More Ltd,SOCIAL SERVICES RESIDENTIAL,Peoples Services,Home Care Services,A56019
London Borough of Sutton,09/08/2021,50051569,"1,848.00",Care More Ltd,SOCIAL SERVICES RESIDENTIAL,Peoples Services,Home Care Services,A56019
London Borough of Sutton,09/08/2021,50051569,117,Care More Ltd,SOCIAL SERVICES RESIDENTIAL,Peoples Services,Home Care Services,A56019
London Borough of Sutton,09/08/2021,50051570,648.5,Care More Ltd,SOCIAL SERVICES RESIDENTIAL,Peoples Services,Home Care Services,A56019
London Borough of Sutton,09/08/2021,50051574,667,Care More Ltd,SOCIAL SERVICES RESIDENTIAL,Peoples Services,Home Care Services,A56019
London Borough of Sutton,09/08/2021,50051578,"1,400.00",Care More Ltd,SOCIAL SERVICES RESIDENTIAL,Peoples Services,Home Care Services,A56019
London Borough of Sutton,09/08/2021,50051580,"1,134.00",Care More Ltd,SOCIAL SERVICES RESIDENTIAL,Peoples Services,Home Care Services,A56019
London Borough of Sutton,09/08/2021,50051581,"1,652.00",Care More Ltd,SOCIAL SERVICES RESIDENTIAL,Peoples Services,Home Care Services,A56019
London Borough of Sutton,09/08/2021,50051582,"1,218.00",Care More Ltd,SOCIAL SERVICES RESIDENTIAL,Peoples Services,Home Care Services,A56019
London Borough of Sutton,09/08/2021,50051588,800.5,Care More Ltd,SOCIAL SERVICES RESIDENTIAL,Peoples Services,Home Care Services,A56019
London Borough of Sutton,09/08/2021,50051589,"1,134.00",Care More Ltd,SOCIAL SERVICES RESIDENTIAL,Peoples Services,Home Care Services,A56019
London Borough of Sutton,09/08/2021,50051591,"1,680.00",Care More Ltd,SOCIAL SERVICES RESIDENTIAL,Peoples Services,Home Care Services,A56019
London Borough of Sutton,09/08/2021,50051601,"1,848.00",Care More Ltd,SOCIAL SERVICES RESIDENTIAL,Peoples Services,Home Care Services,A56019
London Borough of Sutton,09/08/2021,50051613,567,Care More Ltd,SOCIAL SERVICES RESIDENTIAL,Peoples Services,Home Care Services,A56019
London Borough of Sutton,09/08/2021,50051614,781,Care More Ltd,SOCIAL SERVICES RESIDENTIAL,Peoples Services,Home Care Services,A56019
London Borough of Sutton,09/08/2021,50051615,554.5,Care More Ltd,SOCIAL SERVICES RESIDENTIAL,Peoples Services,Home Care Services,A56019
London Borough of Sutton,09/08/2021,50051617,684,Care More Ltd,SOCIAL SERVICES RESIDENTIAL,Peoples Services,Home Care Services,A56019
London Borough of Sutton,09/08/2021,50051618,884.5,Care More Ltd,SOCIAL SERVICES RESIDENTIAL,Peoples Services,Home Care Services,A56019
London Borough of Sutton,09/08/2021,50051619,51.5,Care More Ltd,SOCIAL SERVICES RESIDENTIAL,Peoples Services,Home Care Services,A56019
London Borough of Sutton,09/08/2021,50051619,"1,761.25",Care More Ltd,SOCIAL SERVICES RESIDENTIAL,Peoples Services,Home Care Services,A56019
London Borough of Sutton,09/08/2021,50051620,859,Care More Ltd,SOCIAL SERVICES RESIDENTIAL,Peoples Services,Home Care Services,A56019
London Borough of Sutton,09/08/2021,50051623,567,Care More Ltd,SOCIAL SERVICES RESIDENTIAL,Peoples Services,Home Care Services,A56019
London Borough of Sutton,09/08/2021,50051626,"1,484.00",Care More Ltd,SOCIAL SERVICES RESIDENTIAL,Peoples Services,Home Care Services,A56019
London Borough of Sutton,09/08/2021,50051628,221.25,Care More Ltd,SOCIAL SERVICES RESIDENTIAL,Peoples Services,Home Care Services,A56019
London Borough of Sutton,09/08/2021,50051628,285.25,Care More Ltd,SOCIAL SERVICES RESIDENTIAL,Peoples Services,Home Care Services,A56019
London Borough of Sutton,14/09/2021,50053270,"5,000.00",Care More Ltd,SOCIAL SERVICES RESIDENTIAL,Peoples Services,Contract Cleaning,A27010
London Borough of Sutton,23/08/2021,50056361,684,Care More Ltd,SOCIAL SERVICES RESIDENTIAL,Peoples Services,Home Care Services,A56019
London Borough of Sutton,23/08/2021,50056363,884.5,Care More Ltd,SOCIAL SERVICES RESIDENTIAL,Peoples Services,Home Care Services,A56019
London Borough of Sutton,23/08/2021,50056364,"1,652.00",Care More Ltd,SOCIAL SERVICES RESIDENTIAL,Peoples Services,Home Care Services,A56019
London Borough of Sutton,23/08/2021,50056372,742,Care More Ltd,SOCIAL SERVICES RESIDENTIAL,Peoples Services,Home Care Services,A56019
London Borough of Sutton,23/08/2021,50056394,"1,400.00",Care More Ltd,SOCIAL SERVICES RESIDENTIAL,Peoples Services,Home Care Services,A56019
London Borough of Sutton,23/08/2021,50056395,974,Care More Ltd,SOCIAL SERVICES RESIDENTIAL,Peoples Services,Home Care Services,A56019
London Borough of Sutton,23/08/2021,50056404,"1,848.00",Care More Ltd,SOCIAL SERVICES RESIDENTIAL,Peoples Services,Home Care Services,A56019
London Borough of Sutton,23/08/2021,50056404,117,Care More Ltd,SOCIAL SERVICES RESIDENTIAL,Peoples Services,Home Care Services,A56019
London Borough of Sutton,23/08/2021,50056407,594,Care More Ltd,SOCIAL SERVICES RESIDENTIAL,Peoples Services,Home Care Services,A56019
London Borough of Sutton,23/08/2021,50056426,"1,134.00",Care More Ltd,SOCIAL SERVICES RESIDENTIAL,Peoples Services,Home Care Services,A56019
London Borough of Sutton,23/08/2021,50056427,567,Care More Ltd,SOCIAL SERVICES RESIDENTIAL,Peoples Services,Home Care Services,A56019
London Borough of Sutton,23/08/2021,50056428,506,Care More Ltd,SOCIAL SERVICES RESIDENTIAL,Peoples Services,Home Care Services,A56019
London Borough of Sutton,23/08/2021,50056431,"1,458.50",Care More Ltd,SOCIAL SERVICES RESIDENTIAL,Peoples Services,Home Care Services,A56019
London Borough of Sutton,23/08/2021,50056432,542,Care More Ltd,SOCIAL SERVICES RESIDENTIAL,Peoples Services,Home Care Services,A56019
London Borough of Sutton,23/08/2021,50056440,781,Care More Ltd,SOCIAL SERVICES RESIDENTIAL,Peoples Services,Home Care Services,A56019
London Borough of Sutton,23/08/2021,50056441,554.5,Care More Ltd,SOCIAL SERVICES RESIDENTIAL,Peoples Services,Home Care Services,A56019
London Borough of Sutton,23/08/2021,50056443,39,Care More Ltd,SOCIAL SERVICES RESIDENTIAL,Peoples Services,Home Care Services,A56019
London Borough of Sutton,23/08/2021,50056443,"1,764.00",Care More Ltd,SOCIAL SERVICES RESIDENTIAL,Peoples Services,Home Care Services,A56019
London Borough of Sutton,23/08/2021,50056444,846.5,Care More Ltd,SOCIAL SERVICES RESIDENTIAL,Peoples Services,Home Care Services,A56019
London Borough of Sutton,23/08/2021,50056445,"1,134.00",Care More Ltd,SOCIAL SERVICES RESIDENTIAL,Peoples Services,Home Care Services,A56019
London Borough of Sutton,23/08/2021,50056447,"1,484.00",Care More Ltd,SOCIAL SERVICES RESIDENTIAL,Peoples Services,Home Care Services,A56019
London Borough of Sutton,23/08/2021,50056457,"1,484.00",Care More Ltd,SOCIAL SERVICES RESIDENTIAL,Peoples Services,Home Care Services,A56019
London Borough of Sutton,23/08/2021,50056459,"1,400.00",Care More Ltd,SOCIAL SERVICES RESIDENTIAL,Peoples Services,Home Care Services,A56019
London Borough of Sutton,23/08/2021,50056460,800.5,Care More Ltd,SOCIAL SERVICES RESIDENTIAL,Peoples Services,Home Care Services,A56019
London Borough of Sutton,23/08/2021,50056461,685,Care More Ltd,SOCIAL SERVICES RESIDENTIAL,Peoples Services,Home Care Services,A56019
London Borough of Sutton,23/08/2021,50057965,"1,218.00",Care More Ltd,SOCIAL SERVICES RESIDENTIAL,Peoples Services,Home Care Services,A56019
London Borough of Sutton,23/08/2021,50057967,"1,119.00",Care More Ltd,SOCIAL SERVICES RESIDENTIAL,Peoples Services,Home Care Services,A56019
London Borough of Sutton,23/08/2021,50057991,"1,848.00",Care More Ltd,SOCIAL SERVICES RESIDENTIAL,Peoples Services,Home Care Services,A56019
London Borough of Sutton,23/08/2021,50057995,742,Care More Ltd,SOCIAL SERVICES RESIDENTIAL,Peoples Services,Home Care Services,A56019
London Borough of Sutton,14/07/2021,50060289,958.96,Care More Ltd,SOCIAL SERVICES RESIDENTIAL,Peoples Services,Home Care Services,A56019
London Borough of Sutton,23/08/2021,50060294,622.5,Care More Ltd,SOCIAL SERVICES RESIDENTIAL,Peoples Services,Home Care Services,A56019
London Borough of Sutton,09/08/2021,50060295,622.5,Care More Ltd,SOCIAL SERVICES RESIDENTIAL,Peoples Services,Home Care Services,A56019
London Borough of Sutton,23/08/2021,50060296,960,Care More Ltd,SOCIAL SERVICES RESIDENTIAL,Peoples Services,Home Care Services,A56019
London Borough of Sutton,28/06/2021,50060297,960,Care More Ltd,SOCIAL SERVICES RESIDENTIAL,Peoples Services,Home Care Services,A56019
London Borough of Sutton,09/08/2021,50060298,960,Care More Ltd,SOCIAL SERVICES RESIDENTIAL,Peoples Services,Home Care Services,A56019
London Borough of Sutton,12/07/2021,50060299,960,Care More Ltd,SOCIAL SERVICES RESIDENTIAL,Peoples Services,Home Care Services,A56019
London Borough of Sutton,04/05/2021,50060303,958.96,Care More Ltd,SOCIAL SERVICES RESIDENTIAL,Peoples Services,Home Care Services,A56019
London Borough of Sutton,27/07/2021,50060304,622.5,Care More Ltd,SOCIAL SERVICES RESIDENTIAL,Peoples Services,Home Care Services,A56019
London Borough of Sutton,01/06/2021,50060311,958.96,Care More Ltd,SOCIAL SERVICES RESIDENTIAL,Peoples Services,Home Care Services,A56019
London Borough of Sutton,06/04/2021,50060624,695,Care More Ltd,SOCIAL SERVICES RESIDENTIAL,Peoples Services,Home Care Services,A56019
London Borough of Sutton,06/04/2021,50060624,315,Care More Ltd,SOCIAL SERVICES RESIDENTIAL,Peoples Services,Home Care Services,A56019
London Borough of Sutton,03/09/2021,50050448,-662.24,Care UK Homecare Ltd,SOCIAL SERVICES RESIDENTIAL,Peoples Services,Nursing Care - 3rd party top up payment,A56023
London Borough of Sutton,03/09/2021,50050448,"3,586.28",Care UK Homecare Ltd,SOCIAL SERVICES RESIDENTIAL,Peoples Services,Nursing Care - Ext Provider,A56025
London Borough of Sutton,03/09/2021,50050508,-425.6,Care UK Homecare Ltd,SOCIAL SERVICES RESIDENTIAL,Peoples Services,Residential Care - Client Cont ( Net Paymt ),A56113
London Borough of Sutton,03/09/2021,50050508,"4,600.00",Care UK Homecare Ltd,SOCIAL SERVICES RESIDENTIAL,Peoples Services,Residential Care - Ext Provider,A56114
London Borough of Sutton,01/09/2021,50051547,"4,060.00",Care Unlimited Domcare Ltd,SOCIAL SERVICES DAY CARE,Peoples Services,Supported Living,A56088
London Borough of Sutton,01/09/2021,50051548,"4,060.00",Care Unlimited Domcare Ltd,SOCIAL SERVICES DAY CARE,Peoples Services,Supported Living,A56088
London Borough of Sutton,01/09/2021,50051549,"4,060.00",Care Unlimited Domcare Ltd,SOCIAL SERVICES DAY CARE,Peoples Services,Supported Living,A56088
London Borough of Sutton,01/09/2021,50051607,"4,060.00",Care Unlimited Domcare Ltd,SOCIAL SERVICES DAY CARE,Peoples Services,Supported Living,A56088
London Borough of Sutton,31/08/2021,50060280,"4,732.00",Care Unlimited Domcare Ltd,SOCIAL SERVICES DAY CARE,Peoples Services,Supported Living,A56088
London Borough of Sutton,03/09/2021,50050487,-750.4,Care Unlimited Group Ltd,SOCIAL SERVICES DAY CARE,Peoples Services,Nursing Care - 3rd party top up payment,A56023
London Borough of Sutton,03/09/2021,50050487,"3,626.72",Care Unlimited Group Ltd,SOCIAL SERVICES DAY CARE,Peoples Services,Nursing Care - Ext Provider,A56025
London Borough of Sutton,03/09/2021,50050513,"3,612.00",Care Unlimited Group Ltd,SOCIAL SERVICES DAY CARE,Peoples Services,Nursing Care - Ext Provider,A56025
London Borough of Sutton,03/09/2021,50050513,-735.68,Care Unlimited Group Ltd,SOCIAL SERVICES DAY CARE,Peoples Services,Nursing Care - 3rd party top up payment,A56023
London Borough of Sutton,03/09/2021,50050547,"-3,096.24",Care Unlimited Group Ltd,SOCIAL SERVICES DAY CARE,Peoples Services,Nursing Care - 3rd party top up payment,A56023
London Borough of Sutton,03/09/2021,50050547,"6,192.48",Care Unlimited Group Ltd,SOCIAL SERVICES DAY CARE,Peoples Services,Nursing Care - Ext Provider,A56025
London Borough of Sutton,03/09/2021,50050625,"3,626.72",Care Unlimited Group Ltd,SOCIAL SERVICES DAY CARE,Peoples Services,Nursing Care - Ext Provider,A56025
London Borough of Sutton,03/09/2021,50050625,-750.4,Care Unlimited Group Ltd,SOCIAL SERVICES DAY CARE,Peoples Services,Nursing Care - 3rd party top up payment,A56023
London Borough of Sutton,31/08/2021,20008552,975,Caremark (Sutton),SOCIAL SERVICES DAY CARE,Peoples Services,Home Care Services,A56019
London Borough of Sutton,06/09/2021,20008768,554,Caremark (Sutton),SOCIAL SERVICES DAY CARE,Peoples Services,Home Care Services,A56019
London Borough of Sutton,06/09/2021,20008772,670,Caremark (Sutton),SOCIAL SERVICES DAY CARE,Peoples Services,One to One Care,A56108
London Borough of Sutton,21/09/2021,20009667,700,Caremark (Sutton),SOCIAL SERVICES DAY CARE,Peoples Services,Home Care Services,A56019
London Borough of Sutton,21/09/2021,20009767,666,Caremark (Sutton),SOCIAL SERVICES DAY CARE,Peoples Services,One to One Care,A56108
London Borough of Sutton,21/09/2021,20010027,840,Caremark (Sutton),SOCIAL SERVICES DAY CARE,Peoples Services,Home Care Services,A56019
London Borough of Sutton,16/09/2021,50053755,"5,000.00",Caremark (Sutton),SOCIAL SERVICES DAY CARE,Peoples Services,Contract Cleaning,A27010
London Borough of Sutton,16/09/2021,50053756,"4,200.00",Caremark (Sutton),SOCIAL SERVICES DAY CARE,Peoples Services,Contract Cleaning,A27010
London Borough of Sutton,21/09/2021,50056568,625,Caremark (Sutton),SOCIAL SERVICES DAY CARE,Peoples Services,Miscellaneous Expenses,A49000
London Borough of Sutton,05/08/2021,20008780,"8,057.85",Caremore Group Ltd,CHILDREN'S SERVICES - FOSTERING & ADOPTION SERVICES,Peoples Services,Approved Lodgings,A61000
London Borough of Sutton,03/09/2021,50050471,"5,676.16",Caretech Community Services Ltd,SOCIAL SERVICES RESIDENTIAL,Peoples Services,Residential Care - Ext Provider,A56114
London Borough of Sutton,03/09/2021,50050471,-608.8,Caretech Community Services Ltd,SOCIAL SERVICES RESIDENTIAL,Peoples Services,Residential Care - Client Cont ( Net Paymt ),A56113
London Borough of Sutton,03/09/2021,50050561,"5,531.60",Caretech Community Services Ltd,SOCIAL SERVICES RESIDENTIAL,Peoples Services,Residential Care - Ext Provider,A56114
London Borough of Sutton,03/09/2021,50050605,"5,534.00",Caretech Community Services Ltd,SOCIAL SERVICES RESIDENTIAL,Peoples Services,Residential Care - Ext Provider,A56114
London Borough of Sutton,03/09/2021,50050605,-494.6,Caretech Community Services Ltd,SOCIAL SERVICES RESIDENTIAL,Peoples Services,Residential Care - Client Cont ( Net Paymt ),A56113
London Borough of Sutton,03/09/2021,50050618,"5,534.00",Caretech Community Services Ltd,SOCIAL SERVICES RESIDENTIAL,Peoples Services,Residential Care - Ext Provider,A56114
London Borough of Sutton,03/09/2021,50050618,-425.6,Caretech Community Services Ltd,SOCIAL SERVICES RESIDENTIAL,Peoples Services,Residential Care - Client Cont ( Net Paymt ),A56113
London Borough of Sutton,29/09/2021,50060529,"723,031.33",Carew Academy,CHILDREN'S SERVICES - RESIDENTIAL,Peoples Services,Top-up Funding,A51016
London Borough of Sutton,30/08/2021,50052742,"4,904.64",Caridon Young Living Ltd,CHILDREN'S SERVICES - RESIDENTIAL,Peoples Services,Approved Lodgings,A61000
London Borough of Sutton,30/08/2021,50052817,"5,458.21",Caridon Young Living Ltd,CHILDREN'S SERVICES - RESIDENTIAL,Peoples Services,Approved Lodgings,A61000
London Borough of Sutton,30/08/2021,50052818,"4,904.64",Caridon Young Living Ltd,CHILDREN'S SERVICES - RESIDENTIAL,Peoples Services,Approved Lodgings,A61000
London Borough of Sutton,14/09/2021,50054730,"2,772.91",Care  Support Partners Ltd,SOCIAL SERVICES RESIDENTIAL,Peoples Services,Supported Living,A56088
London Borough of Sutton,14/09/2021,50054738,"3,073.58",Care  Support Partners Ltd,SOCIAL SERVICES RESIDENTIAL,Peoples Services,Supported Living,A56088
London Borough of Sutton,05/08/2021,50049526,558.25,Carlene House,SOCIAL SERVICES RESIDENTIAL,Peoples Services,Supported Living,A56088
London Borough of Sutton,01/08/2021,50049527,"1,609.30",Carlene House,SOCIAL SERVICES RESIDENTIAL,Peoples Services,Supported Living,A56088
London Borough of Sutton,01/07/2021,50049606,"1,524.60",Carlene House,SOCIAL SERVICES RESIDENTIAL,Peoples Services,Supported Living,A56088
London Borough of Sutton,05/08/2021,50049607,"1,524.60",Carlene House,SOCIAL SERVICES RESIDENTIAL,Peoples Services,Supported Living,A56088
London Borough of Sutton,03/09/2021,50050310,"5,478.12",Carlene House,SOCIAL SERVICES RESIDENTIAL,Peoples Services,Residential Care - Ext Provider,A56114
London Borough of Sutton,03/09/2021,50050313,"5,478.12",Carlene House,SOCIAL SERVICES RESIDENTIAL,Peoples Services,Residential Care - Ext Provider,A56114
London Borough of Sutton,03/09/2021,50050411,"5,478.12",Carlene House,SOCIAL SERVICES RESIDENTIAL,Peoples Services,Residential Care - Ext Provider,A56114
London Borough of Sutton,03/09/2021,50050529,"5,478.12",Carlene House,SOCIAL SERVICES RESIDENTIAL,Peoples Services,Residential Care - Ext Provider,A56114
London Borough of Sutton,03/09/2021,50050611,"5,478.12",Carlene House,SOCIAL SERVICES RESIDENTIAL,Peoples Services,Residential Care - Ext Provider,A56114
London Borough of Sutton,03/09/2021,50050691,"5,478.12",Carlene House,SOCIAL SERVICES RESIDENTIAL,Peoples Services,Residential Care - Ext Provider,A56114
London Borough of Sutton,03/09/2021,50050694,"5,478.12",Carlene House,SOCIAL SERVICES RESIDENTIAL,Peoples Services,Residential Care - Ext Provider,A56114
London Borough of Sutton,01/08/2021,50050717,"4,023.25",Carlene House,SOCIAL SERVICES RESIDENTIAL,Peoples Services,Supported Living,A56088
London Borough of Sutton,06/09/2021,50049669,621.6,REDACTED - PERSONAL DATA,GRANTS & EX GRATIA PAYMENTS,Peoples Services,Place Funding,A56110
London Borough of Sutton,06/09/2021,50049735,819,REDACTED - PERSONAL DATA,GRANTS & EX GRATIA PAYMENTS,Peoples Services,Place Funding,A56110
London Borough of Sutton,01/09/2021,50049621,"13,096.66",Carshalton Boys Sports College (Academy),GRANTS & EX GRATIA PAYMENTS,Peoples Services,Top-up Funding,A51016
London Borough of Sutton,09/09/2021,20009202,"1,000.00",REDACTED - PERSONAL DATA,SUNDRY SUPPLIER - FINANCE,Environment Housing and Neighbourhoods,Staff Development And Training,A15022
London Borough of Sutton,26/08/2021,50051021,750,REDACTED - PERSONAL DATA,ACCOMMODATION - OTHER,Peoples Services,Education Allowance,A60008
London Borough of Sutton,23/09/2021,50058206,750,REDACTED - PERSONAL DATA,ACCOMMODATION - OTHER,Peoples Services,Education Allowance,A60008
London Borough of Sutton,05/07/2021,20005336,"30,833.33",Caysh Housing Project,SOCIAL SERVICES RESIDENTIAL,Peoples Services,Approved Lodgings,A61000
London Borough of Sutton,31/07/2021,20006811,"30,833.33",Caysh Housing Project,SOCIAL SERVICES RESIDENTIAL,Peoples Services,Approved Lodgings,A61000
London Borough of Sutton,20/08/2021,20007883,"30,833.33",Caysh Housing Project,SOCIAL SERVICES RESIDENTIAL,Peoples Services,Approved Lodgings,A61000
London Borough of Sutton,31/08/2021,20008916,"1,407.71",Caysh Housing Project,SOCIAL SERVICES RESIDENTIAL,Peoples Services,Approved Lodgings,A61000
London Borough of Sutton,31/08/2021,20008917,"1,387.56",Caysh Housing Project,SOCIAL SERVICES RESIDENTIAL,Peoples Services,Approved Lodgings,A61000
London Borough of Sutton,31/08/2021,20008918,"1,489.55",Caysh Housing Project,SOCIAL SERVICES RESIDENTIAL,Peoples Services,Approved Lodgings,A61000
London Borough of Sutton,31/08/2021,20008920,"1,306.34",Caysh Housing Project,SOCIAL SERVICES RESIDENTIAL,Peoples Services,Approved Lodgings,A61000
London Borough of Sutton,31/08/2021,20008921,"2,087.23",Caysh Housing Project,SOCIAL SERVICES RESIDENTIAL,Peoples Services,Approved Lodgings,A61000
London Borough of Sutton,10/09/2021,20009251,"30,833.33",Caysh Housing Project,SOCIAL SERVICES RESIDENTIAL,Peoples Services,Approved Lodgings,A61000
London Borough of Sutton,01/08/2021,50052726,"5,804.44",Channels & Choices Theraputic Fostering Ltd,CHILDREN'S SERVICES - FOSTERING & ADOPTION SERVICES,Peoples Services,Foster Parents Support,A44110
London Borough of Sutton,03/09/2021,50050467,"3,586.28",Charlton Park Care Home ,SOCIAL SERVICES RESIDENTIAL,Peoples Services,Nursing Care - Ext Provider,A56025
London Borough of Sutton,03/09/2021,50050467,-662.24,Charlton Park Care Home ,SOCIAL SERVICES RESIDENTIAL,Peoples Services,Nursing Care - 3rd party top up payment,A56023
London Borough of Sutton,06/09/2021,50049744,"4,542.72",Cheam Baptist Church Pre-School,GRANTS & EX GRATIA PAYMENTS,Peoples Services,Place Funding,A56110
London Borough of Sutton,01/09/2021,50049623,"13,246.67",Cheam Common Infants School -ACADEMY,GRANTS & EX GRATIA PAYMENTS,Peoples Services,Top-up Funding,A51016
London Borough of Sutton,06/09/2021,50051070,"28,392.00",Cheam Common Infants School -ACADEMY,GRANTS & EX GRATIA PAYMENTS,Peoples Services,Place Funding,A56110
London Borough of Sutton,01/09/2021,50049624,"14,166.66",Cheam Common Junior Academy,GRANTS & EX GRATIA PAYMENTS,Peoples Services,Top-up Funding,A51016
London Borough of Sutton,01/09/2021,50049626,"80,661.59",Cheam High School (Academy),GRANTS & EX GRATIA PAYMENTS,Peoples Services,Top-up Funding,A51016
London Borough of Sutton,01/09/2021,50049626,"24,877.80",Cheam High School (Academy),GRANTS & EX GRATIA PAYMENTS,Peoples Services,Top-up Funding,A51016
London Borough of Sutton,01/09/2021,50049642,"28,842.23",Cheam High School (Academy),GRANTS & EX GRATIA PAYMENTS,Peoples Services,Top-up Funding,A51016
London Borough of Sutton,01/09/2021,50049642,"9,389.00",Cheam High School (Academy),GRANTS & EX GRATIA PAYMENTS,Peoples Services,Top-up individual funding,A60033
London Borough of Sutton,01/09/2021,50049642,"272,251.60",Cheam High School (Academy),GRANTS & EX GRATIA PAYMENTS,Peoples Services,Top-up Funding,A51016
London Borough of Sutton,06/09/2021,50051139,"3,211.00",Cheam High School (Academy),GRANTS & EX GRATIA PAYMENTS,Peoples Services,Pupil Growth,A51014
London Borough of Sutton,01/09/2021,50049627,"23,783.32",Cheam Park Farm Primary School,GRANTS & EX GRATIA PAYMENTS,Peoples Services,Top-up Funding,A51016
London Borough of Sutton,06/09/2021,50051072,"12,612.60",Cheam Park Farm Primary School,GRANTS & EX GRATIA PAYMENTS,Peoples Services,Place Funding,A56110
London Borough of Sutton,03/09/2021,50050360,-632.64,Chegworth Nursing Home Bayswift Ltd,SOCIAL SERVICES RESIDENTIAL,Peoples Services,Nursing Care - 3rd party top up payment,A56023
London Borough of Sutton,03/09/2021,50050360,"3,800.00",Chegworth Nursing Home Bayswift Ltd,SOCIAL SERVICES RESIDENTIAL,Peoples Services,Nursing Care - Ext Provider,A56025
London Borough of Sutton,03/09/2021,50050372,"4,026.72",Chegworth Nursing Home Bayswift Ltd,SOCIAL SERVICES RESIDENTIAL,Peoples Services,Nursing Care - Ext Provider,A56025
London Borough of Sutton,03/09/2021,50050372,-750.4,Chegworth Nursing Home Bayswift Ltd,SOCIAL SERVICES RESIDENTIAL,Peoples Services,Nursing Care - 3rd party top up payment,A56023
London Borough of Sutton,03/09/2021,50050406,"3,555.32",Chegworth Nursing Home Bayswift Ltd,SOCIAL SERVICES RESIDENTIAL,Peoples Services,Nursing Care - Ext Provider,A56025
London Borough of Sutton,03/09/2021,50050406,-632.64,Chegworth Nursing Home Bayswift Ltd,SOCIAL SERVICES RESIDENTIAL,Peoples Services,Nursing Care - 3rd party top up payment,A56023
London Borough of Sutton,03/09/2021,50050418,"2,800.00",Chegworth Nursing Home Bayswift Ltd,SOCIAL SERVICES RESIDENTIAL,Peoples Services,Nursing Care Short Term,A56026
London Borough of Sutton,03/09/2021,50050427,"3,555.32",Chegworth Nursing Home Bayswift Ltd,SOCIAL SERVICES RESIDENTIAL,Peoples Services,Nursing Care - Ext Provider,A56025
London Borough of Sutton,03/09/2021,50050427,-632.64,Chegworth Nursing Home Bayswift Ltd,SOCIAL SERVICES RESIDENTIAL,Peoples Services,Nursing Care - 3rd party top up payment,A56023
London Borough of Sutton,03/09/2021,50050559,-735.68,Chegworth Nursing Home Bayswift Ltd,SOCIAL SERVICES RESIDENTIAL,Peoples Services,Nursing Care - 3rd party top up payment,A56023
London Borough of Sutton,03/09/2021,50050559,"3,612.00",Chegworth Nursing Home Bayswift Ltd,SOCIAL SERVICES RESIDENTIAL,Peoples Services,Nursing Care - Ext Provider,A56025
London Borough of Sutton,03/09/2021,50050566,-750.4,Chegworth Nursing Home Bayswift Ltd,SOCIAL SERVICES RESIDENTIAL,Peoples Services,Nursing Care - 3rd party top up payment,A56023
London Borough of Sutton,03/09/2021,50050566,"4,000.00",Chegworth Nursing Home Bayswift Ltd,SOCIAL SERVICES RESIDENTIAL,Peoples Services,Nursing Care - Ext Provider,A56025
London Borough of Sutton,03/09/2021,50050583,-662.24,Chegworth Nursing Home Bayswift Ltd,SOCIAL SERVICES RESIDENTIAL,Peoples Services,Nursing Care - 3rd party top up payment,A56023
London Borough of Sutton,03/09/2021,50050583,"4,800.00",Chegworth Nursing Home Bayswift Ltd,SOCIAL SERVICES RESIDENTIAL,Peoples Services,Nursing Care Short Term,A56026
London Borough of Sutton,03/09/2021,50050601,"3,575.68",Chegworth Nursing Home Bayswift Ltd,SOCIAL SERVICES RESIDENTIAL,Peoples Services,Nursing Care - Ext Provider,A56025
London Borough of Sutton,03/09/2021,50050601,-735.68,Chegworth Nursing Home Bayswift Ltd,SOCIAL SERVICES RESIDENTIAL,Peoples Services,Nursing Care - 3rd party top up payment,A56023
London Borough of Sutton,03/09/2021,50050636,"3,643.84",Chegworth Nursing Home Bayswift Ltd,SOCIAL SERVICES RESIDENTIAL,Peoples Services,Nursing Care - Ext Provider,A56025
London Borough of Sutton,03/09/2021,50050636,-735.68,Chegworth Nursing Home Bayswift Ltd,SOCIAL SERVICES RESIDENTIAL,Peoples Services,Nursing Care - 3rd party top up payment,A56023
London Borough of Sutton,03/09/2021,50050692,"3,612.00",Chegworth Nursing Home Bayswift Ltd,SOCIAL SERVICES RESIDENTIAL,Peoples Services,Nursing Care - Ext Provider,A56025
London Borough of Sutton,03/09/2021,50050692,-735.68,Chegworth Nursing Home Bayswift Ltd,SOCIAL SERVICES RESIDENTIAL,Peoples Services,Nursing Care - 3rd party top up payment,A56023
London Borough of Sutton,14/08/2021,20009452,"13,725.00",Chelsea Studios Ltd,ACCOMMODATION BED & BREAKFAST,Environment Housing and Neighbourhoods,Temporary Protection - Homeless Persons,A62028
London Borough of Sutton,03/09/2021,50050555,"2,790.40",Cherry Lodge,SOCIAL SERVICES RESIDENTIAL,Peoples Services,Residential Care - Ext Provider,A56114
London Borough of Sutton,03/09/2021,50050555,-462.28,Cherry Lodge,SOCIAL SERVICES RESIDENTIAL,Peoples Services,Residential Care - Client Cont ( Net Paymt ),A56113
London Borough of Sutton,03/09/2021,50050571,"3,360.00",Cherry Lodge,SOCIAL SERVICES RESIDENTIAL,Peoples Services,Residential Care - Ext Provider,A56114
London Borough of Sutton,03/09/2021,50050412,-735.68,CHHG Ltd,SOCIAL SERVICES RESIDENTIAL,Peoples Services,Nursing Care - 3rd party top up payment,A56023
London Borough of Sutton,03/09/2021,50050412,"3,812.00",CHHG Ltd,SOCIAL SERVICES RESIDENTIAL,Peoples Services,Nursing Care - Ext Provider,A56025
London Borough of Sutton,03/09/2021,50050437,"4,800.00",CHHG Ltd,SOCIAL SERVICES RESIDENTIAL,Peoples Services,Nursing Care - Ext Provider,A56025
London Borough of Sutton,03/09/2021,50050437,-632.64,CHHG Ltd,SOCIAL SERVICES RESIDENTIAL,Peoples Services,Nursing Care - 3rd party top up payment,A56023
London Borough of Sutton,03/09/2021,50050536,"3,676.72",CHHG Ltd,SOCIAL SERVICES RESIDENTIAL,Peoples Services,Residential Care - Ext Provider,A56114
London Borough of Sutton,01/08/2021,50052749,"3,514.51",Children of Colour,CHILDREN'S SERVICES - FOSTERING & ADOPTION SERVICES,Peoples Services,Foster Parents Support,A44110
London Borough of Sutton,01/08/2021,50052750,"3,340.91",Children of Colour,CHILDREN'S SERVICES - FOSTERING & ADOPTION SERVICES,Peoples Services,Foster Parents Support,A44110
London Borough of Sutton,01/08/2021,50052784,"3,427.71",Children of Colour,CHILDREN'S SERVICES - FOSTERING & ADOPTION SERVICES,Peoples Services,Foster Parents Support,A44110
London Borough of Sutton,06/08/2021,50052793,"16,272.52",Children's Trust,CHILDREN'S SERVICES - DAY CARE,Peoples Services,Residential Care-Children,A56115
London Borough of Sutton,06/09/2021,50049745,"1,911.00",Chiltern Day Nursery,GRANTS & EX GRATIA PAYMENTS,Peoples Services,Place Funding,A56110
London Borough of Sutton,03/09/2021,50050381,"7,526.32",Choice Care Group (Surrey) Ltd,SOCIAL SERVICES RESIDENTIAL,Peoples Services,Residential Care - Ext Provider,A56114
London Borough of Sutton,03/09/2021,50050391,"7,511.00",Choice Care Group (Surrey) Ltd,SOCIAL SERVICES RESIDENTIAL,Peoples Services,Residential Care - Ext Provider,A56114
London Borough of Sutton,03/09/2021,50050391,-356.8,Choice Care Group (Surrey) Ltd,SOCIAL SERVICES RESIDENTIAL,Peoples Services,Residential Care - Client Cont ( Net Paymt ),A56113
London Borough of Sutton,03/09/2021,50050521,"7,240.00",Choice Care Group (Surrey) Ltd,SOCIAL SERVICES RESIDENTIAL,Peoples Services,Residential Care - Ext Provider,A56114
London Borough of Sutton,03/09/2021,50050562,"8,368.28",Choice Care Group (Surrey) Ltd,SOCIAL SERVICES RESIDENTIAL,Peoples Services,Residential Care - Ext Provider,A56114
London Borough of Sutton,23/09/2021,50056550,"1,849.04",Choice Care Group (Surrey) Ltd,SOCIAL SERVICES RESIDENTIAL,Peoples Services,Other Income - Outside Scope,A92127
London Borough of Sutton,23/09/2021,50056551,"1,888.68",Choice Care Group (Surrey) Ltd,SOCIAL SERVICES RESIDENTIAL,Peoples Services,Contract Cleaning,A27010
London Borough of Sutton,03/09/2021,50050386,"5,509.00",Choice Support,GRANTS & EX GRATIA PAYMENTS,Peoples Services,Residential Care - Ext Provider,A56114
London Borough of Sutton,14/09/2021,50054695,"1,634.05",Choice Support,GRANTS & EX GRATIA PAYMENTS,Peoples Services,Supported Living,A56088
London Borough of Sutton,14/09/2021,50054695,"2,342.05",Choice Support,GRANTS & EX GRATIA PAYMENTS,Peoples Services,Supported Living,A56088
London Borough of Sutton,14/09/2021,50054699,"1,154.05",Choice Support,GRANTS & EX GRATIA PAYMENTS,Peoples Services,Supported Living,A56088
London Borough of Sutton,14/09/2021,50054699,"2,851.20",Choice Support,GRANTS & EX GRATIA PAYMENTS,Peoples Services,Supported Living,A56088
London Borough of Sutton,14/09/2021,50054700,"1,643.05",Choice Support,GRANTS & EX GRATIA PAYMENTS,Peoples Services,Supported Living,A56088
London Borough of Sutton,14/09/2021,50054700,"2,579.65",Choice Support,GRANTS & EX GRATIA PAYMENTS,Peoples Services,Supported Living,A56088
London Borough of Sutton,14/09/2021,50054701,"1,643.05",Choice Support,GRANTS & EX GRATIA PAYMENTS,Peoples Services,Supported Living,A56088
London Borough of Sutton,14/09/2021,50054701,"2,409.95",Choice Support,GRANTS & EX GRATIA PAYMENTS,Peoples Services,Supported Living,A56088
London Borough of Sutton,14/09/2021,50054702,"1,643.05",Choice Support,GRANTS & EX GRATIA PAYMENTS,Peoples Services,Supported Living,A56088
London Borough of Sutton,14/09/2021,50054702,"5,023.55",Choice Support,GRANTS & EX GRATIA PAYMENTS,Peoples Services,Supported Living,A56088
London Borough of Sutton,14/09/2021,50054703,556.33,Choice Support,GRANTS & EX GRATIA PAYMENTS,Peoples Services,Supported Living,A56088
London Borough of Sutton,14/09/2021,50054703,"3,556.55",Choice Support,GRANTS & EX GRATIA PAYMENTS,Peoples Services,Supported Living,A56088
London Borough of Sutton,14/09/2021,50054708,"1,643.05",Choice Support,GRANTS & EX GRATIA PAYMENTS,Peoples Services,Supported Living,A56088
London Borough of Sutton,14/09/2021,50054708,"2,409.95",Choice Support,GRANTS & EX GRATIA PAYMENTS,Peoples Services,Supported Living,A56088
London Borough of Sutton,14/09/2021,50054709,"1,643.05",Choice Support,GRANTS & EX GRATIA PAYMENTS,Peoples Services,Supported Living,A56088
London Borough of Sutton,14/09/2021,50054709,"2,647.55",Choice Support,GRANTS & EX GRATIA PAYMENTS,Peoples Services,Supported Living,A56088
London Borough of Sutton,14/09/2021,50054710,468.9,Choice Support,GRANTS & EX GRATIA PAYMENTS,Peoples Services,Supported Living,A56088
London Borough of Sutton,14/09/2021,50054710,124.25,Choice Support,GRANTS & EX GRATIA PAYMENTS,Peoples Services,Supported Living,A56088
London Borough of Sutton,14/09/2021,50054710,"1,598.70",Choice Support,GRANTS & EX GRATIA PAYMENTS,Peoples Services,Supported Living,A56088
London Borough of Sutton,14/09/2021,50054710,"2,274.17",Choice Support,GRANTS & EX GRATIA PAYMENTS,Peoples Services,Supported Living,A56088
London Borough of Sutton,14/09/2021,50054711,919.28,Choice Support,GRANTS & EX GRATIA PAYMENTS,Peoples Services,Supported Living,A56088
London Borough of Sutton,14/09/2021,50054711,"6,079.12",Choice Support,GRANTS & EX GRATIA PAYMENTS,Peoples Services,Supported Living,A56088
London Borough of Sutton,14/09/2021,50054712,468.9,Choice Support,GRANTS & EX GRATIA PAYMENTS,Peoples Services,Supported Living,A56088
London Borough of Sutton,14/09/2021,50054712,124.25,Choice Support,GRANTS & EX GRATIA PAYMENTS,Peoples Services,Supported Living,A56088
London Borough of Sutton,14/09/2021,50054712,"1,564.75",Choice Support,GRANTS & EX GRATIA PAYMENTS,Peoples Services,Supported Living,A56088
London Borough of Sutton,14/09/2021,50054712,"2,211.73",Choice Support,GRANTS & EX GRATIA PAYMENTS,Peoples Services,Supported Living,A56088
London Borough of Sutton,14/09/2021,50054713,431.75,Choice Support,GRANTS & EX GRATIA PAYMENTS,Peoples Services,Supported Living,A56088
London Borough of Sutton,14/09/2021,50054713,"5,543.58",Choice Support,GRANTS & EX GRATIA PAYMENTS,Peoples Services,Supported Living,A56088
London Borough of Sutton,14/09/2021,50054716,"3,937.37",Choice Support,GRANTS & EX GRATIA PAYMENTS,Peoples Services,Supported Living,A56088
London Borough of Sutton,14/09/2021,50054716,"1,634.05",Choice Support,GRANTS & EX GRATIA PAYMENTS,Peoples Services,Supported Living,A56088
London Borough of Sutton,14/09/2021,50054717,844.33,Choice Support,GRANTS & EX GRATIA PAYMENTS,Peoples Services,Supported Living,A56088
London Borough of Sutton,14/09/2021,50054717,"3,937.37",Choice Support,GRANTS & EX GRATIA PAYMENTS,Peoples Services,Supported Living,A56088
London Borough of Sutton,14/09/2021,50054718,"3,326.40",Choice Support,GRANTS & EX GRATIA PAYMENTS,Peoples Services,Supported Living,A56088
London Borough of Sutton,14/09/2021,50054721,"1,643.05",Choice Support,GRANTS & EX GRATIA PAYMENTS,Peoples Services,Supported Living,A56088
London Borough of Sutton,14/09/2021,50054721,"3,054.85",Choice Support,GRANTS & EX GRATIA PAYMENTS,Peoples Services,Supported Living,A56088
London Borough of Sutton,14/09/2021,50054722,"1,634.05",Choice Support,GRANTS & EX GRATIA PAYMENTS,Peoples Services,Supported Living,A56088
London Borough of Sutton,14/09/2021,50054722,"3,292.45",Choice Support,GRANTS & EX GRATIA PAYMENTS,Peoples Services,Supported Living,A56088
London Borough of Sutton,14/09/2021,50054731,"1,634.05",Choice Support,GRANTS & EX GRATIA PAYMENTS,Peoples Services,Supported Living,A56088
London Borough of Sutton,14/09/2021,50054731,"2,856.22",Choice Support,GRANTS & EX GRATIA PAYMENTS,Peoples Services,Supported Living,A56088
London Borough of Sutton,14/09/2021,50054732,468.9,Choice Support,GRANTS & EX GRATIA PAYMENTS,Peoples Services,Supported Living,A56088
London Borough of Sutton,14/09/2021,50054732,114.08,Choice Support,GRANTS & EX GRATIA PAYMENTS,Peoples Services,Supported Living,A56088
London Borough of Sutton,14/09/2021,50054732,"2,323.03",Choice Support,GRANTS & EX GRATIA PAYMENTS,Peoples Services,Supported Living,A56088
London Borough of Sutton,14/09/2021,50054732,"1,771.72",Choice Support,GRANTS & EX GRATIA PAYMENTS,Peoples Services,Supported Living,A56088
London Borough of Sutton,14/09/2021,50054733,844.33,Choice Support,GRANTS & EX GRATIA PAYMENTS,Peoples Services,Supported Living,A56088
London Borough of Sutton,14/09/2021,50054733,"1,384.88",Choice Support,GRANTS & EX GRATIA PAYMENTS,Peoples Services,Supported Living,A56088
London Borough of Sutton,14/09/2021,50054733,"2,701.85",Choice Support,GRANTS & EX GRATIA PAYMENTS,Peoples Services,Supported Living,A56088
London Borough of Sutton,14/09/2021,50054734,468.9,Choice Support,GRANTS & EX GRATIA PAYMENTS,Peoples Services,Supported Living,A56088
London Borough of Sutton,14/09/2021,50054734,114.08,Choice Support,GRANTS & EX GRATIA PAYMENTS,Peoples Services,Supported Living,A56088
London Borough of Sutton,14/09/2021,50054734,"1,820.75",Choice Support,GRANTS & EX GRATIA PAYMENTS,Peoples Services,Supported Living,A56088
London Borough of Sutton,14/09/2021,50054734,"2,044.28",Choice Support,GRANTS & EX GRATIA PAYMENTS,Peoples Services,Supported Living,A56088
London Borough of Sutton,14/09/2021,50054735,"1,643.05",Choice Support,GRANTS & EX GRATIA PAYMENTS,Peoples Services,Supported Living,A56088
London Borough of Sutton,14/09/2021,50054735,"2,579.65",Choice Support,GRANTS & EX GRATIA PAYMENTS,Peoples Services,Supported Living,A56088
London Borough of Sutton,14/09/2021,50054742,468.9,Choice Support,GRANTS & EX GRATIA PAYMENTS,Peoples Services,Supported Living,A56088
London Borough of Sutton,14/09/2021,50054742,124.25,Choice Support,GRANTS & EX GRATIA PAYMENTS,Peoples Services,Supported Living,A56088
London Borough of Sutton,14/09/2021,50054742,"1,573.58",Choice Support,GRANTS & EX GRATIA PAYMENTS,Peoples Services,Supported Living,A56088
London Borough of Sutton,14/09/2021,50054742,"2,240.23",Choice Support,GRANTS & EX GRATIA PAYMENTS,Peoples Services,Supported Living,A56088
London Borough of Sutton,14/09/2021,50054743,"1,643.05",Choice Support,GRANTS & EX GRATIA PAYMENTS,Peoples Services,Supported Living,A56088
London Borough of Sutton,14/09/2021,50054743,"3,054.85",Choice Support,GRANTS & EX GRATIA PAYMENTS,Peoples Services,Supported Living,A56088
London Borough of Sutton,14/09/2021,50054744,468.9,Choice Support,GRANTS & EX GRATIA PAYMENTS,Peoples Services,Supported Living,A56088
London Borough of Sutton,14/09/2021,50054744,124.25,Choice Support,GRANTS & EX GRATIA PAYMENTS,Peoples Services,Supported Living,A56088
London Borough of Sutton,14/09/2021,50054744,"1,547.78",Choice Support,GRANTS & EX GRATIA PAYMENTS,Peoples Services,Supported Living,A56088
London Borough of Sutton,14/09/2021,50054744,"2,002.63",Choice Support,GRANTS & EX GRATIA PAYMENTS,Peoples Services,Supported Living,A56088
London Borough of Sutton,06/09/2021,50049675,"1,864.80",Christchurch Fledgelings Pre-School,GRANTS & EX GRATIA PAYMENTS,Peoples Services,Place Funding,A56110
London Borough of Sutton,06/09/2021,50049746,"4,914.00",Christchurch Fledgelings Pre-School,GRANTS & EX GRATIA PAYMENTS,Peoples Services,Place Funding,A56110
London Borough of Sutton,30/09/2021,50060640,780,Christchurch New Malden CofE Primary,GRANTS & EX GRATIA PAYMENTS,Peoples Services,Payments to Schools,A51013
London Borough of Sutton,30/09/2021,50060641,600,Christchurch New Malden CofE Primary,GRANTS & EX GRATIA PAYMENTS,Peoples Services,Payments to Schools,A51013
London Borough of Sutton,08/09/2021,20009237,997.1,Christopher Millar,GRANTS & EX GRATIA PAYMENTS,Environment Housing and Neighbourhoods,Temporary Protection - Homeless Persons,A62028
London Borough of Sutton,01/09/2021,50049617,"36,133.31",Barrow Hedges Primary School Academy,GRANTS & EX GRATIA PAYMENTS,Peoples Services,Top-up Funding,A51016
London Borough of Sutton,06/09/2021,50051066,"11,954.25",Barrow Hedges Primary School Academy,GRANTS & EX GRATIA PAYMENTS,Peoples Services,Place Funding,A56110
London Borough of Sutton,19/08/2021,20007868,"1,166.60",City & Guilds,SUBSCRIPTIONS & PUBLICATIONS,Health and Wellbeing,Examination Fees,A44200
London Borough of Sutton,31/08/2021,20008618,"1,848.33",City Sprint UK (Excel) Ltd,DELIVERY AND COURIER SERVICES,Health and Wellbeing,Hire of Transport - Non Staff,A32000
London Borough of Sutton,01/09/2021,20008658,"11,963.00",Cityglen Ltd ,ACCOMMODATION BED & BREAKFAST,Environment Housing and Neighbourhoods,Bed & Breakfast,A56000
London Borough of Sutton,31/08/2021,20008484,848,Civica UK Ltd,BUSINESS & COMPUTER SYSTEMS,Resources,Registration & Licence Fees Payable,A44267
London Borough of Sutton,15/09/2021,20009363,"3,600.00",REDACTED - PERSONAL DATA,SUNDRY SUPPLIER - HOUSING,Environment Housing and Neighbourhoods,Miscellaneous Expenses,A49000
London Borough of Sutton,03/09/2021,50050323,"4,388.56",Claremont Care Svs Ltd,SOCIAL SERVICES RESIDENTIAL,Peoples Services,Nursing Care - Ext Provider,A56025
London Borough of Sutton,03/09/2021,50050354,-974,Claremont Care Svs Ltd,SOCIAL SERVICES RESIDENTIAL,Peoples Services,Nursing Care - 3rd party top up payment,A56023
London Borough of Sutton,03/09/2021,50050354,"4,374.00",Claremont Care Svs Ltd,SOCIAL SERVICES RESIDENTIAL,Peoples Services,Nursing Care - Ext Provider,A56025
London Borough of Sutton,03/09/2021,50050354,-632.64,Claremont Care Svs Ltd,SOCIAL SERVICES RESIDENTIAL,Peoples Services,Nursing Care - 3rd party top up payment,A56023
London Borough of Sutton,03/09/2021,50050505,-735.68,Claremont Care Svs Ltd,SOCIAL SERVICES RESIDENTIAL,Peoples Services,Nursing Care - 3rd party top up payment,A56023
London Borough of Sutton,03/09/2021,50050505,"5,200.00",Claremont Care Svs Ltd,SOCIAL SERVICES RESIDENTIAL,Peoples Services,Nursing Care - Ext Provider,A56025
London Borough of Sutton,03/09/2021,50050551,"3,515.04",Claremont Care Svs Ltd,SOCIAL SERVICES RESIDENTIAL,Peoples Services,Nursing Care - Ext Provider,A56025
London Borough of Sutton,03/09/2021,50050551,-632.64,Claremont Care Svs Ltd,SOCIAL SERVICES RESIDENTIAL,Peoples Services,Nursing Care - 3rd party top up payment,A56023
London Borough of Sutton,03/09/2021,50050288,-735.68,Bondcare (London) Ltd,SOCIAL SERVICES RESIDENTIAL,Peoples Services,Nursing Care - 3rd party top up payment,A56023
London Borough of Sutton,03/09/2021,50050288,"3,612.00",Bondcare (London) Ltd,SOCIAL SERVICES RESIDENTIAL,Peoples Services,Nursing Care - Ext Provider,A56025
London Borough of Sutton,26/08/2021,50051015,689.58,Clarion Housing Association Ltd,ACCOMMODATION BED & BREAKFAST,Peoples Services,Approved Lodgings,A61000
London Borough of Sutton,23/09/2021,50058201,689.58,Clarion Housing Association Ltd,ACCOMMODATION BED & BREAKFAST,Peoples Services,Approved Lodgings,A61000
London Borough of Sutton,18/09/2021,50056556,"1,260.00",Clark SLT Of Clark Interventions Limited,CHILDREN'S SERVICES - SEN SERVICES,Peoples Services,Special Educational Needs,A51015
London Borough of Sutton,28/07/2021,50053220,750,Classroom Teachers Ltd,ACADEMIC INSTNS - OTHER,Peoples Services,Independent School Fees,A56002
London Borough of Sutton,08/09/2021,50053253,750,Classroom Teachers Ltd,ACADEMIC INSTNS - OTHER,Peoples Services,Independent School Fees,A56002
London Borough of Sutton,15/09/2021,50054686,750,Classroom Teachers Ltd,ACADEMIC INSTNS - OTHER,Peoples Services,Independent School Fees,A56002
London Borough of Sutton,22/09/2021,50060511,750,Classroom Teachers Ltd,ACADEMIC INSTNS - OTHER,Peoples Services,Independent School Fees,A56002
London Borough of Sutton,27/08/2021,50049207,504.75,Clovecare Ltd,SOCIAL SERVICES RESIDENTIAL,Peoples Services,Home Care Services,A56019
London Borough of Sutton,27/08/2021,50049214,638.2,Clovecare Ltd,SOCIAL SERVICES RESIDENTIAL,Peoples Services,Home Care Services,A56019
London Borough of Sutton,27/08/2021,50049215,639.06,Clovecare Ltd,SOCIAL SERVICES RESIDENTIAL,Peoples Services,Home Care Services,A56019
London Borough of Sutton,27/08/2021,50049225,849.92,Clovecare Ltd,SOCIAL SERVICES RESIDENTIAL,Peoples Services,Home Care Services,A56019
London Borough of Sutton,27/08/2021,50049249,642.55,Clovecare Ltd,SOCIAL SERVICES RESIDENTIAL,Peoples Services,Home Care Services,A56019
London Borough of Sutton,27/08/2021,50049253,852.6,Clovecare Ltd,SOCIAL SERVICES RESIDENTIAL,Peoples Services,Home Care Services,A56019
London Borough of Sutton,27/08/2021,50049270,625.79,Clovecare Ltd,SOCIAL SERVICES RESIDENTIAL,Peoples Services,Home Care Services,A56019
London Borough of Sutton,27/08/2021,50049274,850.4,Clovecare Ltd,SOCIAL SERVICES RESIDENTIAL,Peoples Services,Home Care Services,A56019
London Borough of Sutton,03/09/2021,50050608,"3,094.00",Cloyda Limited,SOCIAL SERVICES RESIDENTIAL,Peoples Services,Residential Care - Ext Provider,A56114
London Borough of Sutton,03/09/2021,50050390,"7,036.00",Cmg Homes Ltd,SOCIAL SERVICES RESIDENTIAL,Peoples Services,Residential Care - Ext Provider,A56114
London Borough of Sutton,03/09/2021,50050390,-611,Cmg Homes Ltd,SOCIAL SERVICES RESIDENTIAL,Peoples Services,Residential Care - Client Cont ( Net Paymt ),A56113
London Borough of Sutton,03/09/2021,50050552,"5,416.92",Cmg Homes Ltd,SOCIAL SERVICES RESIDENTIAL,Peoples Services,Residential Care - Ext Provider,A56114
London Borough of Sutton,03/09/2021,50050552,-425.6,Cmg Homes Ltd,SOCIAL SERVICES RESIDENTIAL,Peoples Services,Residential Care - Client Cont ( Net Paymt ),A56113
London Borough of Sutton,03/09/2021,50050686,"10,647.52",Cmg Homes Ltd,SOCIAL SERVICES RESIDENTIAL,Peoples Services,Residential Care - Ext Provider,A56114
London Borough of Sutton,14/09/2021,50054704,"3,060.00",Cmg Homes Ltd,SOCIAL SERVICES RESIDENTIAL,Peoples Services,Supported Living,A56088
London Borough of Sutton,14/09/2021,50054707,"3,544.28",Cmg Homes Ltd,SOCIAL SERVICES RESIDENTIAL,Peoples Services,Supported Living,A56088
London Borough of Sutton,14/09/2021,50054723,"4,444.28",Cmg Homes Ltd,SOCIAL SERVICES RESIDENTIAL,Peoples Services,Supported Living,A56088
London Borough of Sutton,14/09/2021,50054746,"3,353.78",Cmg Homes Ltd,SOCIAL SERVICES RESIDENTIAL,Peoples Services,Supported Living,A56088
London Borough of Sutton,03/09/2021,50050293,"4,080.72",Coast Care Homes Ltd,SOCIAL SERVICES RESIDENTIAL,Peoples Services,Residential Care - Ext Provider,A56114
London Borough of Sutton,03/09/2021,50050294,"5,045.80",Cognithan Ltd,SOCIAL SERVICES RESIDENTIAL,Peoples Services,Residential Care - Ext Provider,A56114
London Borough of Sutton,30/04/2021,20002002,"9,918.08",Cognus Ltd,LEGAL & PROFESSIONAL SERVICES,Peoples Services,Professional Fees,A44066
London Borough of Sutton,01/09/2021,20008403,"267,791.67",Cognus Ltd,LEGAL & PROFESSIONAL SERVICES,Peoples Services,Special Educational Needs,A51015
London Borough of Sutton,01/09/2021,20008404,"207,361.31",Cognus Ltd,LEGAL & PROFESSIONAL SERVICES,Peoples Services,Consultancy Services,A56007
London Borough of Sutton,01/09/2021,20008404,"213,735.89",Cognus Ltd,LEGAL & PROFESSIONAL SERVICES,Peoples Services,Consultancy Services,A56007
London Borough of Sutton,31/08/2021,20008405,"30,000.00",Cognus Ltd,LEGAL & PROFESSIONAL SERVICES,Peoples Services,Consultancy Services,A56007
London Borough of Sutton,07/09/2021,20008845,"10,000.00",Cognus Ltd,LEGAL & PROFESSIONAL SERVICES,Resources,Provider Contract Payments,A44290
London Borough of Sutton,07/09/2021,20008846,"71,737.00",Cognus Ltd,LEGAL & PROFESSIONAL SERVICES,Peoples Services,Consultancy Services,A56007
London Borough of Sutton,07/09/2021,20008847,"10,000.00",Cognus Ltd,LEGAL & PROFESSIONAL SERVICES,Peoples Services,Consultancy Services,A56007
London Borough of Sutton,07/09/2021,20008907,"159,531.00",Cognus Ltd,LEGAL & PROFESSIONAL SERVICES,Peoples Services,Consultancy Services,A56007
London Borough of Sutton,06/09/2021,50049747,"11,174.63",Collingwood School Ltd,GRANTS & EX GRATIA PAYMENTS,Peoples Services,Place Funding,A56110
London Borough of Sutton,28/07/2021,20006525,"5,447.50",Communities First Foundation,,Environment Housing and Neighbourhoods,External Fees and Consultants,C20000
London Borough of Sutton,01/08/2021,50052692,"3,321.34",Compass Fostering London Ltd,CHILDREN'S SERVICES - FOSTERING & ADOPTION SERVICES,Peoples Services,Foster Parents Support,A44110
London Borough of Sutton,01/08/2021,50052693,"3,498.35",Compass Fostering London Ltd,CHILDREN'S SERVICES - FOSTERING & ADOPTION SERVICES,Peoples Services,Foster Parents Support,A44110
London Borough of Sutton,01/08/2021,50052694,"3,409.69",Compass Fostering London Ltd,CHILDREN'S SERVICES - FOSTERING & ADOPTION SERVICES,Peoples Services,Foster Parents Support,A44110
London Borough of Sutton,01/08/2021,50052695,"3,409.69",Compass Fostering London Ltd,CHILDREN'S SERVICES - FOSTERING & ADOPTION SERVICES,Peoples Services,Foster Parents Support,A44110
London Borough of Sutton,01/08/2021,50052696,"5,338.20",Compass Fostering London Ltd,CHILDREN'S SERVICES - FOSTERING & ADOPTION SERVICES,Peoples Services,Foster Parents Support,A44110
London Borough of Sutton,01/08/2021,50052725,"2,723.66",Compass Fostering London Ltd,CHILDREN'S SERVICES - FOSTERING & ADOPTION SERVICES,Peoples Services,Foster Parents Support,A44110
London Borough of Sutton,31/08/2021,50052755,"2,346.30",Compass Fostering London Ltd,CHILDREN'S SERVICES - FOSTERING & ADOPTION SERVICES,Peoples Services,Foster Parents Support,A44110
London Borough of Sutton,31/08/2021,50052778,"2,247.08",Compass Fostering London Ltd,CHILDREN'S SERVICES - FOSTERING & ADOPTION SERVICES,Peoples Services,Foster Parents Support,A44110
London Borough of Sutton,01/08/2021,50052788,"3,498.35",Compass Fostering London Ltd,CHILDREN'S SERVICES - FOSTERING & ADOPTION SERVICES,Peoples Services,Foster Parents Support,A44110
London Borough of Sutton,01/08/2021,50052727,"4,010.16",Compass Fostering South Ltd,CHILDREN'S SERVICES - FOSTERING & ADOPTION SERVICES,Peoples Services,Foster Parents Support,A44110
London Borough of Sutton,01/08/2021,50052728,"3,206.02",Compass Fostering South Ltd,CHILDREN'S SERVICES - FOSTERING & ADOPTION SERVICES,Peoples Services,Foster Parents Support,A44110
London Borough of Sutton,01/08/2021,50052681,"3,237.02",Compass Fostering West Ltd,CHILDREN'S SERVICES - FOSTERING & ADOPTION SERVICES,Peoples Services,Foster Parents Support,A44110
London Borough of Sutton,31/08/2021,20009157,626.95,Cooper & Co Chemist,TCES RETAILERS (PHARMACYS),Health and Wellbeing,Provider Contract Payments,A44290
London Borough of Sutton,06/09/2021,50049697,"1,864.80",Co-operative Childcare,GRANTS & EX GRATIA PAYMENTS,Peoples Services,Place Funding,A56110
London Borough of Sutton,06/09/2021,50049777,"15,561.00",Co-operative Childcare,GRANTS & EX GRATIA PAYMENTS,Peoples Services,Place Funding,A56110
London Borough of Sutton,26/07/2021,50052679,"18,112.72",Cornerways Childrens Services Ltd,CHILDREN'S SERVICES - FOSTERING & ADOPTION SERVICES,Peoples Services,Residential Care-Children,A56115
London Borough of Sutton,03/09/2021,50050275,"3,626.72",Country Court Care Homes 2 Ltd,SOCIAL SERVICES RESIDENTIAL,Peoples Services,Respite Care,A56116
London Borough of Sutton,29/08/2021,20008933,"7,308.00",Crafty Critters Club Ltd,TEMP STAFF & CONSULTANCY,Peoples Services,Other Supplies & Services,A44291
London Borough of Sutton,11/08/2021,50052720,"6,957.29",Credo Care Limited,CHILDREN'S SERVICE - OTHER,Peoples Services,Foster Parents Support,A44110
London Borough of Sutton,20/07/2021,50049411,"16,967.90",Cressey Oasis Education Ltd,CHILDREN'S SERVICES - RESIDENTIAL,Peoples Services,Independent School Fees,A56002
London Borough of Sutton,20/07/2021,50049412,"17,545.36",Cressey Oasis Education Ltd,CHILDREN'S SERVICES - RESIDENTIAL,Peoples Services,Independent School Fees,A56002
London Borough of Sutton,20/07/2021,50049415,"28,583.80",Cressey Oasis Education Ltd,CHILDREN'S SERVICES - RESIDENTIAL,Peoples Services,Independent School Fees,A56002
London Borough of Sutton,20/07/2021,50049416,"19,526.88",Cressey Oasis Education Ltd,CHILDREN'S SERVICES - RESIDENTIAL,Peoples Services,Independent School Fees,A56002
London Borough of Sutton,20/07/2021,50049417,"20,780.46",Cressey Oasis Education Ltd,CHILDREN'S SERVICES - RESIDENTIAL,Peoples Services,Independent School Fees,A56002
London Borough of Sutton,20/07/2021,50049418,"17,331.84",Cressey Oasis Education Ltd,CHILDREN'S SERVICES - RESIDENTIAL,Peoples Services,Independent School Fees,A56002
London Borough of Sutton,20/07/2021,50049419,"16,066.70",Cressey Oasis Education Ltd,CHILDREN'S SERVICES - RESIDENTIAL,Peoples Services,Independent School Fees,A56002
London Borough of Sutton,20/07/2021,50049420,"20,497.00",Cressey Oasis Education Ltd,CHILDREN'S SERVICES - RESIDENTIAL,Peoples Services,Independent School Fees,A56002
London Borough of Sutton,20/07/2021,50049421,"20,497.00",Cressey Oasis Education Ltd,CHILDREN'S SERVICES - RESIDENTIAL,Peoples Services,Independent School Fees,A56002
London Borough of Sutton,20/07/2021,50049422,"21,025.33",Cressey Oasis Education Ltd,CHILDREN'S SERVICES - RESIDENTIAL,Peoples Services,Independent School Fees,A56002
London Borough of Sutton,20/07/2021,50049423,"26,816.82",Cressey Oasis Education Ltd,CHILDREN'S SERVICES - RESIDENTIAL,Peoples Services,Independent School Fees,A56002
London Borough of Sutton,20/07/2021,50049424,"19,507.84",Cressey Oasis Education Ltd,CHILDREN'S SERVICES - RESIDENTIAL,Peoples Services,Independent School Fees,A56002
London Borough of Sutton,20/07/2021,50049425,"18,824.10",Cressey Oasis Education Ltd,CHILDREN'S SERVICES - RESIDENTIAL,Peoples Services,Independent School Fees,A56002
London Borough of Sutton,20/07/2021,50049426,"19,297.04",Cressey Oasis Education Ltd,CHILDREN'S SERVICES - RESIDENTIAL,Peoples Services,Independent School Fees,A56002
London Borough of Sutton,20/07/2021,50049427,"27,201.36",Cressey Oasis Education Ltd,CHILDREN'S SERVICES - RESIDENTIAL,Peoples Services,Independent School Fees,A56002
London Borough of Sutton,23/09/2021,50058208,850,Fusions Hatfield Hotels Ltd,CARE LEAVERS,Peoples Services,Education Allowance,A60008
London Borough of Sutton,03/09/2021,50050306,"4,070.40",CRNH Ltd ,SOCIAL SERVICES RESIDENTIAL,Peoples Services,Nursing Care - Ext Provider,A56025
London Borough of Sutton,03/09/2021,50050306,-662.24,CRNH Ltd ,SOCIAL SERVICES RESIDENTIAL,Peoples Services,Nursing Care - 3rd party top up payment,A56023
London Borough of Sutton,03/09/2021,50050364,-632.64,CRNH Ltd ,SOCIAL SERVICES RESIDENTIAL,Peoples Services,Nursing Care - 3rd party top up payment,A56023
London Borough of Sutton,03/09/2021,50050378,-735.68,CRNH Ltd ,SOCIAL SERVICES RESIDENTIAL,Peoples Services,Nursing Care - 3rd party top up payment,A56023
London Borough of Sutton,03/09/2021,50050378,"3,612.00",CRNH Ltd ,SOCIAL SERVICES RESIDENTIAL,Peoples Services,Nursing Care Short Term,A56026
London Borough of Sutton,03/09/2021,50050404,"3,502.08",CRNH Ltd ,SOCIAL SERVICES RESIDENTIAL,Peoples Services,Nursing Care - Ext Provider,A56025
London Borough of Sutton,03/09/2021,50050404,-632.64,CRNH Ltd ,SOCIAL SERVICES RESIDENTIAL,Peoples Services,Nursing Care - 3rd party top up payment,A56023
London Borough of Sutton,03/09/2021,50050408,"3,555.32",CRNH Ltd ,SOCIAL SERVICES RESIDENTIAL,Peoples Services,Nursing Care - Ext Provider,A56025
London Borough of Sutton,03/09/2021,50050408,-662.24,CRNH Ltd ,SOCIAL SERVICES RESIDENTIAL,Peoples Services,Nursing Care - 3rd party top up payment,A56023
London Borough of Sutton,03/09/2021,50050446,"3,612.00",CRNH Ltd ,SOCIAL SERVICES RESIDENTIAL,Peoples Services,Nursing Care - Ext Provider,A56025
London Borough of Sutton,03/09/2021,50050446,-735.68,CRNH Ltd ,SOCIAL SERVICES RESIDENTIAL,Peoples Services,Nursing Care - 3rd party top up payment,A56023
London Borough of Sutton,03/09/2021,50050523,"3,545.44",CRNH Ltd ,SOCIAL SERVICES RESIDENTIAL,Peoples Services,Nursing Care - Ext Provider,A56025
London Borough of Sutton,03/09/2021,50050523,-735.68,CRNH Ltd ,SOCIAL SERVICES RESIDENTIAL,Peoples Services,Nursing Care - 3rd party top up payment,A56023
London Borough of Sutton,03/09/2021,50050544,-735.68,CRNH Ltd ,SOCIAL SERVICES RESIDENTIAL,Peoples Services,Nursing Care - 3rd party top up payment,A56023
London Borough of Sutton,03/09/2021,50050544,"3,612.00",CRNH Ltd ,SOCIAL SERVICES RESIDENTIAL,Peoples Services,Nursing Care - Ext Provider,A56025
London Borough of Sutton,03/09/2021,50050580,"3,612.00",CRNH Ltd ,SOCIAL SERVICES RESIDENTIAL,Peoples Services,Nursing Care - Ext Provider,A56025
London Borough of Sutton,03/09/2021,50050580,-735.68,CRNH Ltd ,SOCIAL SERVICES RESIDENTIAL,Peoples Services,Nursing Care - 3rd party top up payment,A56023
London Borough of Sutton,03/09/2021,50050696,"3,556.00",CRNH Ltd ,SOCIAL SERVICES RESIDENTIAL,Peoples Services,Nursing Care - Ext Provider,A56025
London Borough of Sutton,03/09/2021,50050429,-662.24,Cross Care Services Ltd,SOCIAL SERVICES RESIDENTIAL,Peoples Services,Nursing Care - 3rd party top up payment,A56023
London Borough of Sutton,03/09/2021,50050429,"3,171.44",Cross Care Services Ltd,SOCIAL SERVICES RESIDENTIAL,Peoples Services,Nursing Care - Ext Provider,A56025
London Borough of Sutton,03/09/2021,50050524,"3,612.00",Cross Care Services Ltd,SOCIAL SERVICES RESIDENTIAL,Peoples Services,Nursing Care - Ext Provider,A56025
London Borough of Sutton,03/09/2021,50050524,-735.68,Cross Care Services Ltd,SOCIAL SERVICES RESIDENTIAL,Peoples Services,Nursing Care - 3rd party top up payment,A56023
London Borough of Sutton,03/09/2021,50050546,"3,502.08",Cross Care Services Ltd,SOCIAL SERVICES RESIDENTIAL,Peoples Services,Nursing Care - Ext Provider,A56025
London Borough of Sutton,03/09/2021,50050602,"3,611.68",Cross Care Services Ltd,SOCIAL SERVICES RESIDENTIAL,Peoples Services,Nursing Care - Ext Provider,A56025
London Borough of Sutton,03/09/2021,50050602,-735.68,Cross Care Services Ltd,SOCIAL SERVICES RESIDENTIAL,Peoples Services,Nursing Care - 3rd party top up payment,A56023
London Borough of Sutton,03/09/2021,50050619,-662.24,Cross Care Services Ltd,SOCIAL SERVICES RESIDENTIAL,Peoples Services,Nursing Care - 3rd party top up payment,A56023
London Borough of Sutton,03/09/2021,50050619,"3,502.24",Cross Care Services Ltd,SOCIAL SERVICES RESIDENTIAL,Peoples Services,Nursing Care Short Term,A56026
London Borough of Sutton,03/09/2021,50050661,"3,612.00",Cross Care Services Ltd,SOCIAL SERVICES RESIDENTIAL,Peoples Services,Nursing Care - Ext Provider,A56025
London Borough of Sutton,03/09/2021,50050661,-735.68,Cross Care Services Ltd,SOCIAL SERVICES RESIDENTIAL,Peoples Services,Nursing Care - 3rd party top up payment,A56023
London Borough of Sutton,03/09/2021,50050666,"3,612.00",Cross Care Services Ltd,SOCIAL SERVICES RESIDENTIAL,Peoples Services,Nursing Care - Ext Provider,A56025
London Borough of Sutton,03/09/2021,50050666,-735.68,Cross Care Services Ltd,SOCIAL SERVICES RESIDENTIAL,Peoples Services,Nursing Care - 3rd party top up payment,A56023
London Borough of Sutton,03/09/2021,50050507,"2,634.68",Crossways Community,SOCIAL SERVICES RESIDENTIAL,Peoples Services,Residential Care - Ext Provider,A56114
London Borough of Sutton,03/09/2021,50050528,"-2,042.44",Crossways Community,SOCIAL SERVICES RESIDENTIAL,Peoples Services,Nursing Care - 3rd party top up payment,A56023
London Borough of Sutton,03/09/2021,50050528,"4,168.24",Crossways Community,SOCIAL SERVICES RESIDENTIAL,Peoples Services,Residential Care - Ext Provider,A56114
London Borough of Sutton,31/08/2021,20008722,"1,200.00",Croydon Aparthotel Ltd,ACCOMMODATION BED & BREAKFAST,Environment Housing and Neighbourhoods,Bed & Breakfast,A56000
London Borough of Sutton,09/02/2021,20002968,"34,055.69",LONDON BOROUGH OF CROYDON,CENTRAL & LOCAL GOVERNMENT,Environment Housing and Neighbourhoods,Idverde - Contract Payment,A56100
London Borough of Sutton,10/09/2021,50055085,"3,193.00",LONDON BOROUGH OF CROYDON,CENTRAL & LOCAL GOVERNMENT,Peoples Services,Foster Parents Support,A44110
London Borough of Sutton,10/09/2021,50055086,"3,046.99",LONDON BOROUGH OF CROYDON,CENTRAL & LOCAL GOVERNMENT,Peoples Services,Foster Parents Support,A44110
London Borough of Sutton,10/09/2021,50055089,"2,821.00",LONDON BOROUGH OF CROYDON,CENTRAL & LOCAL GOVERNMENT,Peoples Services,Foster Parents Support,A44110
London Borough of Sutton,10/09/2021,50055090,"3,193.00",LONDON BOROUGH OF CROYDON,CENTRAL & LOCAL GOVERNMENT,Peoples Services,Foster Parents Support,A44110
London Borough of Sutton,10/09/2021,50055091,"3,193.00",LONDON BOROUGH OF CROYDON,CENTRAL & LOCAL GOVERNMENT,Peoples Services,Foster Parents Support,A44110
London Borough of Sutton,23/09/2021,50058211,"1,946.51",LONDON BOROUGH OF CROYDON,CENTRAL & LOCAL GOVERNMENT,Peoples Services,Approved Lodgings,A61000
London Borough of Sutton,30/06/2021,20008324,"7,665.00",Croydon Court Ltd,ACCOMMODATION BED & BREAKFAST,Environment Housing and Neighbourhoods,Bed & Breakfast,A56000
London Borough of Sutton,31/08/2021,20008743,"4,530.00",Croydon Court Ltd,ACCOMMODATION BED & BREAKFAST,Environment Housing and Neighbourhoods,Bed & Breakfast,A56000
London Borough of Sutton,03/09/2021,50050326,"7,200.00",CSS Ltd ,SOCIAL SERVICES RESIDENTIAL,Peoples Services,Residential Care - Ext Provider,A56114
London Borough of Sutton,05/09/2021,50053333,600,CSS Ltd ,SOCIAL SERVICES RESIDENTIAL,Peoples Services,Day Care Services,A56021
London Borough of Sutton,11/08/2021,20008202,900,Cuddlington Bowling Club,SUNDRY SUPPLIER - ENV SERVICES,Resources,"Grants, Contributions & Donations",A47005
London Borough of Sutton,01/09/2021,50049628,"4,700.00",Culvers House Primary School,GRANTS & EX GRATIA PAYMENTS,Peoples Services,Top-up Funding,A51016
London Borough of Sutton,06/09/2021,50051032,"161,839.44",Culvers House Primary School,GRANTS & EX GRATIA PAYMENTS,Peoples Services,Payments to Schools,A51013
London Borough of Sutton,06/09/2021,50051073,"6,496.88",Culvers House Primary School,GRANTS & EX GRATIA PAYMENTS,Peoples Services,Place Funding,A56110
London Borough of Sutton,16/09/2021,50053758,"1,176.05",Curado Limited,GRANTS & EX GRATIA PAYMENTS,Peoples Services,Contract Cleaning,A27010
London Borough of Sutton,11/09/2021,20008644,805,REDACTED - PERSONAL DATA,GRANTS & EX GRATIA PAYMENTS,Environment Housing and Neighbourhoods,Temporary Protection - Homeless Persons,A62028
London Borough of Sutton,09/09/2021,20009212,"1,800.00",REDACTED - PERSONAL DATA,SUNDRY SUPPLIER - HOUSING,Environment Housing and Neighbourhoods,Miscellaneous Expenses,A49000
London Borough of Sutton,02/09/2021,20008502,"1,209.00",REDACTED - PERSONAL DATA,GRANTS & EX GRATIA PAYMENTS,Environment Housing and Neighbourhoods,Temporary Protection - Homeless Persons,A62028
London Borough of Sutton,12/09/2021,50058927,672,Day and Nite Services,SOCIAL SERVICES DAY CARE,Peoples Services,Home Care Services,A56019
London Borough of Sutton,12/09/2021,50058927,96,Day and Nite Services,SOCIAL SERVICES DAY CARE,Peoples Services,Home Care Services,A56019
London Borough of Sutton,19/09/2021,50058928,672,Day and Nite Services,SOCIAL SERVICES DAY CARE,Peoples Services,Home Care Services,A56019
London Borough of Sutton,19/09/2021,50058928,96,Day and Nite Services,SOCIAL SERVICES DAY CARE,Peoples Services,Home Care Services,A56019
London Borough of Sutton,29/08/2021,50058929,672,Day and Nite Services,SOCIAL SERVICES DAY CARE,Peoples Services,Home Care Services,A56019
London Borough of Sutton,29/08/2021,50058929,96,Day and Nite Services,SOCIAL SERVICES DAY CARE,Peoples Services,Home Care Services,A56019
London Borough of Sutton,05/09/2021,50058930,768,Day and Nite Services,SOCIAL SERVICES DAY CARE,Peoples Services,Home Care Services,A56019
London Borough of Sutton,05/09/2021,50058930,96,Day and Nite Services,SOCIAL SERVICES DAY CARE,Peoples Services,Home Care Services,A56019
London Borough of Sutton,05/09/2021,50058965,640,Day and Nite Services,SOCIAL SERVICES DAY CARE,Peoples Services,Home Care Services,A56019
London Borough of Sutton,12/09/2021,50058966,560,Day and Nite Services,SOCIAL SERVICES DAY CARE,Peoples Services,Home Care Services,A56019
London Borough of Sutton,19/09/2021,50058967,560,Day and Nite Services,SOCIAL SERVICES DAY CARE,Peoples Services,Home Care Services,A56019
London Borough of Sutton,29/08/2021,50058968,560,Day and Nite Services,SOCIAL SERVICES DAY CARE,Peoples Services,Home Care Services,A56019
London Borough of Sutton,12/09/2021,50059029,504,Day and Nite Services,SOCIAL SERVICES DAY CARE,Peoples Services,Home Care Services,A56019
London Borough of Sutton,19/09/2021,50059030,504,Day and Nite Services,SOCIAL SERVICES DAY CARE,Peoples Services,Home Care Services,A56019
London Borough of Sutton,01/09/2021,50051867,615.6,REDACTED - PERSONAL DATA,SOCIAL SERVICES - DIRECT PAYMENTS,Peoples Services,Miscellaneous Expenses,A49000
London Borough of Sutton,24/09/2021,20009933,693,Deasy Management Ltd,SUNDRY SUPPLIER - ENV SERVICES,Environment Housing and Neighbourhoods,Fees-General-OS Scope,A92129
London Borough of Sutton,07/07/2021,20008519,995,Democracy Counts Ltd,BUSINESS & COMPUTER SYSTEMS,Chief Executive,Registration & Licence Fees Payable,A44267
London Borough of Sutton,03/09/2021,50050357,"2,918.00",Denville Hall 2012,SOCIAL SERVICES RESIDENTIAL,Peoples Services,Residential Care - Ext Provider,A56114
London Borough of Sutton,25/08/2021,20008203,"43,013.89",Department of Health and Social Care  ,SUNDRY SUPPLIER - ASC,Peoples Services,First Aid Equipment,A40010
London Borough of Sutton,25/08/2021,20008214,"120,794.57",Department of Health and Social Care  ,SUNDRY SUPPLIER - ASC,Peoples Services,Contract Cleaning,A27010
London Borough of Sutton,03/09/2021,50050265,"3,060.00",Devaglade Trading Limited  ,SOCIAL SERVICES RESIDENTIAL,Peoples Services,Residential Care - Ext Provider,A56114
London Borough of Sutton,01/09/2021,50049629,"32,773.35",Devonshire Primary School,GRANTS & EX GRATIA PAYMENTS,Peoples Services,Top-up Funding,A51016
London Borough of Sutton,06/09/2021,50051025,"249,204.61",Devonshire Primary School,GRANTS & EX GRATIA PAYMENTS,Peoples Services,Payments to Schools,A51013
London Borough of Sutton,06/09/2021,50051074,"14,196.00",Devonshire Primary School,GRANTS & EX GRATIA PAYMENTS,Peoples Services,Place Funding,A56110
London Borough of Sutton,28/09/2021,50059705,"1,472.00",Devonshire Primary School,GRANTS & EX GRATIA PAYMENTS,Peoples Services,Recharge-Teaching Staff,A10600
London Borough of Sutton,28/09/2021,50059708,"2,208.00",Devonshire Primary School,GRANTS & EX GRATIA PAYMENTS,Peoples Services,Recharge-Teaching Staff,A10600
London Borough of Sutton,28/09/2021,50059709,"2,666.16",Devonshire Primary School,GRANTS & EX GRATIA PAYMENTS,Peoples Services,Recharge-Teaching Staff,A10600
London Borough of Sutton,30/09/2021,50060639,586,Devonshire Primary School,GRANTS & EX GRATIA PAYMENTS,Peoples Services,Payments to Schools,A51013
London Borough of Sutton,03/09/2021,50050438,"-6,306.43",Direct Care And Support Services,ACCOMMODATION - OTHER,Peoples Services,Residential Care Respite,A56018
London Borough of Sutton,03/09/2021,50050438,"8,400.00",Direct Care And Support Services,ACCOMMODATION - OTHER,Peoples Services,Residential Care Respite,A56018
London Borough of Sutton,01/09/2021,50054357,"3,210.16",Direct Care And Support Services,ACCOMMODATION - OTHER,Peoples Services,Home Care Services,A56019
London Borough of Sutton,17/07/2021,50054358,"2,271.20",Direct Care And Support Services,ACCOMMODATION - OTHER,Peoples Services,Supported Living,A56088
London Borough of Sutton,06/08/2021,50054566,"1,315.40",Direct Care And Support Services,ACCOMMODATION - OTHER,Peoples Services,Supported Living,A56088
London Borough of Sutton,10/08/2021,50054567,"2,161.00",Direct Care And Support Services,ACCOMMODATION - OTHER,Peoples Services,Supported Living,A56088
London Borough of Sutton,10/08/2021,50054570,"2,149.00",Direct Care And Support Services,ACCOMMODATION - OTHER,Peoples Services,Supported Living,A56088
London Borough of Sutton,10/08/2021,50054579,"2,290.24",Direct Care And Support Services,ACCOMMODATION - OTHER,Peoples Services,Supported Living,A56088
London Borough of Sutton,13/08/2021,50054580,"2,232.44",Direct Care And Support Services,ACCOMMODATION - OTHER,Peoples Services,Supported Living,A56088
London Borough of Sutton,20/08/2021,50054581,"4,470.88",Direct Care And Support Services,ACCOMMODATION - OTHER,Peoples Services,Supported Living,A56088
London Borough of Sutton,20/07/2021,50054582,"4,470.88",Direct Care And Support Services,ACCOMMODATION - OTHER,Peoples Services,Supported Living,A56088
London Borough of Sutton,17/08/2021,50054583,"2,271.20",Direct Care And Support Services,ACCOMMODATION - OTHER,Peoples Services,Supported Living,A56088
London Borough of Sutton,01/09/2021,50054584,"3,210.16",Direct Care And Support Services,ACCOMMODATION - OTHER,Peoples Services,Home Care Services,A56019
London Borough of Sutton,12/09/2021,50054587,"5,514.48",Direct Care And Support Services,ACCOMMODATION - OTHER,Peoples Services,Supported Living,A56088
London Borough of Sutton,06/09/2021,50049678,621.6,Dolphin Day Nursery,GRANTS & EX GRATIA PAYMENTS,Peoples Services,Place Funding,A56110
London Borough of Sutton,06/09/2021,50049750,"2,184.00",Dolphin Day Nursery,GRANTS & EX GRATIA PAYMENTS,Peoples Services,Place Funding,A56110
London Borough of Sutton,06/09/2021,50049751,819,REDACTED - PERSONAL DATA,GRANTS & EX GRATIA PAYMENTS,Peoples Services,Place Funding,A56110
London Borough of Sutton,06/09/2021,50051027,"194,534.43",Dorchester Primary School,GRANTS & EX GRATIA PAYMENTS,Peoples Services,Payments to Schools,A51013
London Borough of Sutton,06/09/2021,50051075,"13,377.00",Dorchester Primary School,GRANTS & EX GRATIA PAYMENTS,Peoples Services,Place Funding,A56110
London Borough of Sutton,02/09/2021,20008575,"3,100.00",Dramabuds,ENTERTAINMENTS INDUSTRY,Peoples Services,Other Supplies & Services,A44291
London Borough of Sutton,02/09/2021,20008591,378.15,DSI Billing Services Ltd,OFFICE SERVICES,Resources,Postage & Couriers,A45015
London Borough of Sutton,02/09/2021,20008591,378.16,DSI Billing Services Ltd,OFFICE SERVICES,Resources,Postage & Couriers,A45015
London Borough of Sutton,01/08/2021,20008190,"2,463.21",Dunfield & Mead Ltd,CHILDREN'S SERVICES - RESIDENTIAL,Peoples Services,Living Allowance,A56016
London Borough of Sutton,06/09/2021,50052684,755.34,Dunfield & Mead Ltd,CHILDREN'S SERVICES - RESIDENTIAL,Peoples Services,Accommodation - Supported Living,A62001
London Borough of Sutton,01/08/2021,50052686,"4,018.92",Dunfield & Mead Ltd,CHILDREN'S SERVICES - RESIDENTIAL,Peoples Services,Accommodation - Supported Living,A62001
London Borough of Sutton,01/08/2021,50052687,"4,018.92",Dunfield & Mead Ltd,CHILDREN'S SERVICES - RESIDENTIAL,Peoples Services,Accommodation - Supported Living,A62001
London Borough of Sutton,01/08/2021,50052688,"4,018.92",Dunfield & Mead Ltd,CHILDREN'S SERVICES - RESIDENTIAL,Peoples Services,Accommodation - Supported Living,A62001
London Borough of Sutton,01/08/2021,50052721,"1,555.71",Dunfield & Mead Ltd,CHILDREN'S SERVICES - RESIDENTIAL,Peoples Services,Accommodation - Supported Living,A62001
London Borough of Sutton,01/08/2021,50052730,"4,351.07",Dunfield & Mead Ltd,CHILDREN'S SERVICES - RESIDENTIAL,Peoples Services,Accommodation - Supported Living,A62001
London Borough of Sutton,01/08/2021,50052736,"4,351.07",Dunfield & Mead Ltd,CHILDREN'S SERVICES - RESIDENTIAL,Peoples Services,Approved Lodgings,A61000
London Borough of Sutton,03/09/2021,50050635,"3,071.92",Dunheved Lodge,SOCIAL SERVICES RESIDENTIAL,Peoples Services,Residential Care - Ext Provider,A56114
London Borough of Sutton,03/09/2021,50050635,"3,016.00",Dunheved Lodge,SOCIAL SERVICES RESIDENTIAL,Peoples Services,One to One Care,A56108
London Borough of Sutton,01/09/2021,50052709,"3,742.12",Dynamic Care Ltd,SOCIAL SERVICES RESIDENTIAL,Peoples Services,Approved Lodgings,A61000
London Borough of Sutton,09/09/2021,50052723,"3,505.34",Dynamic Care Ltd,SOCIAL SERVICES RESIDENTIAL,Peoples Services,Approved Lodgings,A61000
London Borough of Sutton,01/09/2021,50052777,"5,768.91",Dynamic Care Ltd,SOCIAL SERVICES RESIDENTIAL,Peoples Services,Approved Lodgings,A61000
London Borough of Sutton,18/09/2021,20009666,550.87,E Pollard & Sons Limited,SUNDRY SUPPLIER - ASC,Health and Wellbeing,Equipment And Materials Purchase,A40000
London Borough of Sutton,08/06/2021,50049375,"18,788.00",Eagle House 6th Form (Strawberry Lodge),GRANTS & EX GRATIA PAYMENTS,Peoples Services,Independent School Fees,A56002
London Borough of Sutton,08/06/2021,50049376,"23,200.67",Eagle House 6th Form (Strawberry Lodge),GRANTS & EX GRATIA PAYMENTS,Peoples Services,Independent School Fees,A56002
London Borough of Sutton,08/06/2021,50049428,"27,488.33",Eagle House Junior School,GRANTS & EX GRATIA PAYMENTS,Peoples Services,Independent School Fees,A56002
London Borough of Sutton,11/08/2021,50049435,"22,147.00",Eagle House Junior School,GRANTS & EX GRATIA PAYMENTS,Peoples Services,Independent School Fees,A56002
London Borough of Sutton,11/08/2021,50049436,"21,180.33",Eagle House Junior School,GRANTS & EX GRATIA PAYMENTS,Peoples Services,Independent School Fees,A56002
London Borough of Sutton,11/08/2021,50049437,"21,028.33",Eagle House Junior School,GRANTS & EX GRATIA PAYMENTS,Peoples Services,Independent School Fees,A56002
London Borough of Sutton,08/06/2021,50049369,"16,835.67",Eagle House Senior School,GRANTS & EX GRATIA PAYMENTS,Peoples Services,Independent School Fees,A56002
London Borough of Sutton,08/06/2021,50049372,"19,999.00",Eagle House Senior School,GRANTS & EX GRATIA PAYMENTS,Peoples Services,Independent School Fees,A56002
London Borough of Sutton,08/06/2021,50049373,"22,872.00",Eagle House Senior School,GRANTS & EX GRATIA PAYMENTS,Peoples Services,Independent School Fees,A56002
London Borough of Sutton,08/06/2021,50049374,"17,207.67",Eagle House Senior School,GRANTS & EX GRATIA PAYMENTS,Peoples Services,Independent School Fees,A56002
London Borough of Sutton,11/08/2021,50049440,"22,110.33",Eagle House Senior School,GRANTS & EX GRATIA PAYMENTS,Peoples Services,Independent School Fees,A56002
London Borough of Sutton,11/08/2021,50049441,"9,225.00",Eagle House Senior School,GRANTS & EX GRATIA PAYMENTS,Peoples Services,Independent School Fees,A56002
London Borough of Sutton,03/09/2021,50050560,"3,379.20",Eastcroft Nursing Home,SOCIAL SERVICES RESIDENTIAL,Peoples Services,Nursing Care - Ext Provider,A56025
London Borough of Sutton,03/09/2021,50050560,-448,Eastcroft Nursing Home,SOCIAL SERVICES RESIDENTIAL,Peoples Services,Nursing Care - 3rd party top up payment,A56023
London Borough of Sutton,03/09/2021,50050606,"3,626.72",Eastcroft Nursing Home,SOCIAL SERVICES RESIDENTIAL,Peoples Services,Nursing Care - Ext Provider,A56025
London Borough of Sutton,03/09/2021,50050606,-750.4,Eastcroft Nursing Home,SOCIAL SERVICES RESIDENTIAL,Peoples Services,Nursing Care - 3rd party top up payment,A56023
London Borough of Sutton,02/07/2021,20005435,"3,679.58",EDF Energy ,UTILITIES,Resources,Electricity,A21000
London Borough of Sutton,24/02/2021,20007721,"1,345.02",EDF Energy ,UTILITIES,HRA,Gas,A21003
London Borough of Sutton,01/09/2021,50051849,552.9,REDACTED - PERSONAL DATA,SUNDRY SUPPLIER - EDUCATION,Peoples Services,Miscellaneous Expenses,A49000
London Borough of Sutton,03/09/2021,50050614,"4,484.80",Eleanor Nursing & Social Care Ltd,SOCIAL SERVICES RESIDENTIAL,Peoples Services,Residential Care - Ext Provider,A56114
London Borough of Sutton,03/09/2021,50050614,-622.8,Eleanor Nursing & Social Care Ltd,SOCIAL SERVICES RESIDENTIAL,Peoples Services,Residential Care - Client Cont ( Net Paymt ),A56113
London Borough of Sutton,16/09/2021,50053757,"2,500.00",Elite CarePlus Ltd,SOCIAL SERVICES DAY CARE,Peoples Services,Contract Cleaning,A27010
London Borough of Sutton,18/07/2021,50056165,552.83,Elite CarePlus Ltd,SOCIAL SERVICES DAY CARE,Peoples Services,Home Care Services,A56019
London Borough of Sutton,25/07/2021,50056166,552.83,Elite CarePlus Ltd,SOCIAL SERVICES DAY CARE,Peoples Services,Home Care Services,A56019
London Borough of Sutton,04/07/2021,50056182,491.37,Elite CarePlus Ltd,SOCIAL SERVICES DAY CARE,Peoples Services,Home Care Services,A56019
London Borough of Sutton,04/07/2021,50056182,61.46,Elite CarePlus Ltd,SOCIAL SERVICES DAY CARE,Peoples Services,Home Care Services,A56019
London Borough of Sutton,18/07/2021,50056183,491.37,Elite CarePlus Ltd,SOCIAL SERVICES DAY CARE,Peoples Services,Home Care Services,A56019
London Borough of Sutton,18/07/2021,50056183,61.46,Elite CarePlus Ltd,SOCIAL SERVICES DAY CARE,Peoples Services,Home Care Services,A56019
London Borough of Sutton,25/07/2021,50056184,491.37,Elite CarePlus Ltd,SOCIAL SERVICES DAY CARE,Peoples Services,Home Care Services,A56019
London Borough of Sutton,25/07/2021,50056184,61.46,Elite CarePlus Ltd,SOCIAL SERVICES DAY CARE,Peoples Services,Home Care Services,A56019
London Borough of Sutton,18/07/2021,50056198,719.55,Elite CarePlus Ltd,SOCIAL SERVICES DAY CARE,Peoples Services,Home Care Services,A56019
London Borough of Sutton,25/07/2021,50056199,719.55,Elite CarePlus Ltd,SOCIAL SERVICES DAY CARE,Peoples Services,Home Care Services,A56019
London Borough of Sutton,04/07/2021,50056200,719.55,Elite CarePlus Ltd,SOCIAL SERVICES DAY CARE,Peoples Services,Home Care Services,A56019
London Borough of Sutton,04/07/2021,50056201,737.12,Elite CarePlus Ltd,SOCIAL SERVICES DAY CARE,Peoples Services,Home Care Services,A56019
London Borough of Sutton,04/07/2021,50056201,92.12,Elite CarePlus Ltd,SOCIAL SERVICES DAY CARE,Peoples Services,Home Care Services,A56019
London Borough of Sutton,18/07/2021,50056202,737.12,Elite CarePlus Ltd,SOCIAL SERVICES DAY CARE,Peoples Services,Home Care Services,A56019
London Borough of Sutton,18/07/2021,50056202,92.12,Elite CarePlus Ltd,SOCIAL SERVICES DAY CARE,Peoples Services,Home Care Services,A56019
London Borough of Sutton,25/07/2021,50056203,737.12,Elite CarePlus Ltd,SOCIAL SERVICES DAY CARE,Peoples Services,Home Care Services,A56019
London Borough of Sutton,25/07/2021,50056203,92.12,Elite CarePlus Ltd,SOCIAL SERVICES DAY CARE,Peoples Services,Home Care Services,A56019
London Borough of Sutton,04/07/2021,50056207,859.95,Elite CarePlus Ltd,SOCIAL SERVICES DAY CARE,Peoples Services,Home Care Services,A56019
London Borough of Sutton,18/07/2021,50056208,859.95,Elite CarePlus Ltd,SOCIAL SERVICES DAY CARE,Peoples Services,Home Care Services,A56019
London Borough of Sutton,25/07/2021,50056209,859.95,Elite CarePlus Ltd,SOCIAL SERVICES DAY CARE,Peoples Services,Home Care Services,A56019
London Borough of Sutton,04/07/2021,50056224,737.1,Elite CarePlus Ltd,SOCIAL SERVICES DAY CARE,Peoples Services,Home Care Services,A56019
London Borough of Sutton,18/07/2021,50056225,737.1,Elite CarePlus Ltd,SOCIAL SERVICES DAY CARE,Peoples Services,Home Care Services,A56019
London Borough of Sutton,25/07/2021,50056226,737.1,Elite CarePlus Ltd,SOCIAL SERVICES DAY CARE,Peoples Services,Home Care Services,A56019
London Borough of Sutton,04/07/2021,50056243,552.83,Elite CarePlus Ltd,SOCIAL SERVICES DAY CARE,Peoples Services,Home Care Services,A56019
London Borough of Sutton,18/07/2021,50056244,552.83,Elite CarePlus Ltd,SOCIAL SERVICES DAY CARE,Peoples Services,Home Care Services,A56019
London Borough of Sutton,25/07/2021,50056245,552.83,Elite CarePlus Ltd,SOCIAL SERVICES DAY CARE,Peoples Services,Home Care Services,A56019
London Borough of Sutton,04/07/2021,50056247,552.83,Elite CarePlus Ltd,SOCIAL SERVICES DAY CARE,Peoples Services,Home Care Services,A56019
London Borough of Sutton,18/07/2021,50056248,552.83,Elite CarePlus Ltd,SOCIAL SERVICES DAY CARE,Peoples Services,Home Care Services,A56019
London Borough of Sutton,25/07/2021,50056249,552.83,Elite CarePlus Ltd,SOCIAL SERVICES DAY CARE,Peoples Services,Home Care Services,A56019
London Borough of Sutton,04/07/2021,50056251,675.68,Elite CarePlus Ltd,SOCIAL SERVICES DAY CARE,Peoples Services,Home Care Services,A56019
London Borough of Sutton,18/07/2021,50056252,675.68,Elite CarePlus Ltd,SOCIAL SERVICES DAY CARE,Peoples Services,Home Care Services,A56019
London Borough of Sutton,25/07/2021,50056253,675.68,Elite CarePlus Ltd,SOCIAL SERVICES DAY CARE,Peoples Services,Home Care Services,A56019
London Borough of Sutton,01/08/2021,50058247,737.1,Elite CarePlus Ltd,SOCIAL SERVICES DAY CARE,Peoples Services,Home Care Services,A56019
London Borough of Sutton,08/08/2021,50058248,737.1,Elite CarePlus Ltd,SOCIAL SERVICES DAY CARE,Peoples Services,Home Care Services,A56019
London Borough of Sutton,15/08/2021,50058249,737.1,Elite CarePlus Ltd,SOCIAL SERVICES DAY CARE,Peoples Services,Home Care Services,A56019
London Borough of Sutton,22/08/2021,50058250,737.1,Elite CarePlus Ltd,SOCIAL SERVICES DAY CARE,Peoples Services,Home Care Services,A56019
London Borough of Sutton,29/08/2021,50058251,737.1,Elite CarePlus Ltd,SOCIAL SERVICES DAY CARE,Peoples Services,Home Care Services,A56019
London Borough of Sutton,05/09/2021,50058252,737.1,Elite CarePlus Ltd,SOCIAL SERVICES DAY CARE,Peoples Services,Home Care Services,A56019
London Borough of Sutton,12/09/2021,50058253,737.1,Elite CarePlus Ltd,SOCIAL SERVICES DAY CARE,Peoples Services,Home Care Services,A56019
London Borough of Sutton,01/08/2021,50058254,719.55,Elite CarePlus Ltd,SOCIAL SERVICES DAY CARE,Peoples Services,Home Care Services,A56019
London Borough of Sutton,08/08/2021,50058255,719.55,Elite CarePlus Ltd,SOCIAL SERVICES DAY CARE,Peoples Services,Home Care Services,A56019
London Borough of Sutton,15/08/2021,50058256,719.55,Elite CarePlus Ltd,SOCIAL SERVICES DAY CARE,Peoples Services,Home Care Services,A56019
London Borough of Sutton,22/08/2021,50058257,719.55,Elite CarePlus Ltd,SOCIAL SERVICES DAY CARE,Peoples Services,Home Care Services,A56019
London Borough of Sutton,29/08/2021,50058258,719.55,Elite CarePlus Ltd,SOCIAL SERVICES DAY CARE,Peoples Services,Home Care Services,A56019
London Borough of Sutton,05/09/2021,50058259,719.55,Elite CarePlus Ltd,SOCIAL SERVICES DAY CARE,Peoples Services,Home Care Services,A56019
London Borough of Sutton,12/09/2021,50058260,719.55,Elite CarePlus Ltd,SOCIAL SERVICES DAY CARE,Peoples Services,Home Care Services,A56019
London Borough of Sutton,22/08/2021,50058261,737.12,Elite CarePlus Ltd,SOCIAL SERVICES DAY CARE,Peoples Services,Home Care Services,A56019
London Borough of Sutton,22/08/2021,50058261,92.12,Elite CarePlus Ltd,SOCIAL SERVICES DAY CARE,Peoples Services,Home Care Services,A56019
London Borough of Sutton,01/08/2021,50058262,737.12,Elite CarePlus Ltd,SOCIAL SERVICES DAY CARE,Peoples Services,Home Care Services,A56019
London Borough of Sutton,01/08/2021,50058262,92.12,Elite CarePlus Ltd,SOCIAL SERVICES DAY CARE,Peoples Services,Home Care Services,A56019
London Borough of Sutton,08/08/2021,50058263,737.12,Elite CarePlus Ltd,SOCIAL SERVICES DAY CARE,Peoples Services,Home Care Services,A56019
London Borough of Sutton,08/08/2021,50058263,92.12,Elite CarePlus Ltd,SOCIAL SERVICES DAY CARE,Peoples Services,Home Care Services,A56019
London Borough of Sutton,15/08/2021,50058264,737.12,Elite CarePlus Ltd,SOCIAL SERVICES DAY CARE,Peoples Services,Home Care Services,A56019
London Borough of Sutton,15/08/2021,50058264,92.12,Elite CarePlus Ltd,SOCIAL SERVICES DAY CARE,Peoples Services,Home Care Services,A56019
London Borough of Sutton,29/08/2021,50058265,737.12,Elite CarePlus Ltd,SOCIAL SERVICES DAY CARE,Peoples Services,Home Care Services,A56019
London Borough of Sutton,29/08/2021,50058265,92.12,Elite CarePlus Ltd,SOCIAL SERVICES DAY CARE,Peoples Services,Home Care Services,A56019
London Borough of Sutton,05/09/2021,50058266,737.12,Elite CarePlus Ltd,SOCIAL SERVICES DAY CARE,Peoples Services,Home Care Services,A56019
London Borough of Sutton,05/09/2021,50058266,92.12,Elite CarePlus Ltd,SOCIAL SERVICES DAY CARE,Peoples Services,Home Care Services,A56019
London Borough of Sutton,12/09/2021,50058267,737.12,Elite CarePlus Ltd,SOCIAL SERVICES DAY CARE,Peoples Services,Home Care Services,A56019
London Borough of Sutton,12/09/2021,50058267,92.12,Elite CarePlus Ltd,SOCIAL SERVICES DAY CARE,Peoples Services,Home Care Services,A56019
London Borough of Sutton,22/08/2021,50058275,859.95,Elite CarePlus Ltd,SOCIAL SERVICES DAY CARE,Peoples Services,Home Care Services,A56019
London Borough of Sutton,01/08/2021,50058276,859.95,Elite CarePlus Ltd,SOCIAL SERVICES DAY CARE,Peoples Services,Home Care Services,A56019
London Borough of Sutton,08/08/2021,50058277,859.95,Elite CarePlus Ltd,SOCIAL SERVICES DAY CARE,Peoples Services,Home Care Services,A56019
London Borough of Sutton,15/08/2021,50058278,859.95,Elite CarePlus Ltd,SOCIAL SERVICES DAY CARE,Peoples Services,Home Care Services,A56019
London Borough of Sutton,29/08/2021,50058279,859.95,Elite CarePlus Ltd,SOCIAL SERVICES DAY CARE,Peoples Services,Home Care Services,A56019
London Borough of Sutton,05/09/2021,50058280,859.95,Elite CarePlus Ltd,SOCIAL SERVICES DAY CARE,Peoples Services,Home Care Services,A56019
London Borough of Sutton,12/09/2021,50058281,859.95,Elite CarePlus Ltd,SOCIAL SERVICES DAY CARE,Peoples Services,Home Care Services,A56019
London Borough of Sutton,22/08/2021,50058303,675.68,Elite CarePlus Ltd,SOCIAL SERVICES DAY CARE,Peoples Services,Home Care Services,A56019
London Borough of Sutton,01/08/2021,50058304,675.68,Elite CarePlus Ltd,SOCIAL SERVICES DAY CARE,Peoples Services,Home Care Services,A56019
London Borough of Sutton,08/08/2021,50058305,675.68,Elite CarePlus Ltd,SOCIAL SERVICES DAY CARE,Peoples Services,Home Care Services,A56019
London Borough of Sutton,15/08/2021,50058306,675.68,Elite CarePlus Ltd,SOCIAL SERVICES DAY CARE,Peoples Services,Home Care Services,A56019
London Borough of Sutton,29/08/2021,50058307,675.68,Elite CarePlus Ltd,SOCIAL SERVICES DAY CARE,Peoples Services,Home Care Services,A56019
London Borough of Sutton,05/09/2021,50058308,675.68,Elite CarePlus Ltd,SOCIAL SERVICES DAY CARE,Peoples Services,Home Care Services,A56019
London Borough of Sutton,12/09/2021,50058309,675.68,Elite CarePlus Ltd,SOCIAL SERVICES DAY CARE,Peoples Services,Home Care Services,A56019
London Borough of Sutton,22/08/2021,50058343,552.83,Elite CarePlus Ltd,SOCIAL SERVICES DAY CARE,Peoples Services,Home Care Services,A56019
London Borough of Sutton,01/08/2021,50058344,552.83,Elite CarePlus Ltd,SOCIAL SERVICES DAY CARE,Peoples Services,Home Care Services,A56019
London Borough of Sutton,08/08/2021,50058345,552.83,Elite CarePlus Ltd,SOCIAL SERVICES DAY CARE,Peoples Services,Home Care Services,A56019
London Borough of Sutton,15/08/2021,50058346,552.83,Elite CarePlus Ltd,SOCIAL SERVICES DAY CARE,Peoples Services,Home Care Services,A56019
London Borough of Sutton,29/08/2021,50058347,552.83,Elite CarePlus Ltd,SOCIAL SERVICES DAY CARE,Peoples Services,Home Care Services,A56019
London Borough of Sutton,05/09/2021,50058348,552.83,Elite CarePlus Ltd,SOCIAL SERVICES DAY CARE,Peoples Services,Home Care Services,A56019
London Borough of Sutton,12/09/2021,50058349,552.83,Elite CarePlus Ltd,SOCIAL SERVICES DAY CARE,Peoples Services,Home Care Services,A56019
London Borough of Sutton,22/08/2021,50058350,552.83,Elite CarePlus Ltd,SOCIAL SERVICES DAY CARE,Peoples Services,Home Care Services,A56019
London Borough of Sutton,01/08/2021,50058351,552.83,Elite CarePlus Ltd,SOCIAL SERVICES DAY CARE,Peoples Services,Home Care Services,A56019
London Borough of Sutton,08/08/2021,50058352,552.83,Elite CarePlus Ltd,SOCIAL SERVICES DAY CARE,Peoples Services,Home Care Services,A56019
London Borough of Sutton,15/08/2021,50058353,552.83,Elite CarePlus Ltd,SOCIAL SERVICES DAY CARE,Peoples Services,Home Care Services,A56019
London Borough of Sutton,29/08/2021,50058354,552.83,Elite CarePlus Ltd,SOCIAL SERVICES DAY CARE,Peoples Services,Home Care Services,A56019
London Borough of Sutton,05/09/2021,50058355,552.83,Elite CarePlus Ltd,SOCIAL SERVICES DAY CARE,Peoples Services,Home Care Services,A56019
London Borough of Sutton,12/09/2021,50058356,552.83,Elite CarePlus Ltd,SOCIAL SERVICES DAY CARE,Peoples Services,Home Care Services,A56019
London Borough of Sutton,22/08/2021,50058371,552.83,Elite CarePlus Ltd,SOCIAL SERVICES DAY CARE,Peoples Services,Home Care Services,A56019
London Borough of Sutton,01/08/2021,50058372,552.83,Elite CarePlus Ltd,SOCIAL SERVICES DAY CARE,Peoples Services,Home Care Services,A56019
London Borough of Sutton,08/08/2021,50058373,552.83,Elite CarePlus Ltd,SOCIAL SERVICES DAY CARE,Peoples Services,Home Care Services,A56019
London Borough of Sutton,15/08/2021,50058374,552.83,Elite CarePlus Ltd,SOCIAL SERVICES DAY CARE,Peoples Services,Home Care Services,A56019
London Borough of Sutton,29/08/2021,50058375,552.83,Elite CarePlus Ltd,SOCIAL SERVICES DAY CARE,Peoples Services,Home Care Services,A56019
London Borough of Sutton,05/09/2021,50058376,552.83,Elite CarePlus Ltd,SOCIAL SERVICES DAY CARE,Peoples Services,Home Care Services,A56019
London Borough of Sutton,12/09/2021,50058377,552.83,Elite CarePlus Ltd,SOCIAL SERVICES DAY CARE,Peoples Services,Home Care Services,A56019
London Borough of Sutton,22/08/2021,50058385,491.37,Elite CarePlus Ltd,SOCIAL SERVICES DAY CARE,Peoples Services,Home Care Services,A56019
London Borough of Sutton,22/08/2021,50058385,61.46,Elite CarePlus Ltd,SOCIAL SERVICES DAY CARE,Peoples Services,Home Care Services,A56019
London Borough of Sutton,01/08/2021,50058386,491.37,Elite CarePlus Ltd,SOCIAL SERVICES DAY CARE,Peoples Services,Home Care Services,A56019
London Borough of Sutton,01/08/2021,50058386,61.46,Elite CarePlus Ltd,SOCIAL SERVICES DAY CARE,Peoples Services,Home Care Services,A56019
London Borough of Sutton,08/08/2021,50058387,491.37,Elite CarePlus Ltd,SOCIAL SERVICES DAY CARE,Peoples Services,Home Care Services,A56019
London Borough of Sutton,08/08/2021,50058387,61.46,Elite CarePlus Ltd,SOCIAL SERVICES DAY CARE,Peoples Services,Home Care Services,A56019
London Borough of Sutton,15/08/2021,50058388,491.37,Elite CarePlus Ltd,SOCIAL SERVICES DAY CARE,Peoples Services,Home Care Services,A56019
London Borough of Sutton,15/08/2021,50058388,61.46,Elite CarePlus Ltd,SOCIAL SERVICES DAY CARE,Peoples Services,Home Care Services,A56019
London Borough of Sutton,10/08/2021,20007308,"2,625.00",Ellen Atkinson Limited,TEMP STAFF & CONSULTANCY,Peoples Services,Other Supplies & Services,A44291
London Borough of Sutton,03/09/2021,50050466,"8,772.00",Elysium Healthcare Ltd,CHILDREN'S SERVICES - FOSTERING & ADOPTION SERVICES,Peoples Services,Residential Care - Ext Provider,A56114
London Borough of Sutton,03/09/2021,50050257,"7,390.52",Elysium Supported Living Limited,SOCIAL SERVICES RESIDENTIAL,Peoples Services,Residential Care - Ext Provider,A56114
London Borough of Sutton,14/09/2021,50054697,"3,642.85",Enriched Care Ltd,CHILDREN'S SERVICES - RESIDENTIAL,Peoples Services,Supported Living,A56088
London Borough of Sutton,28/09/2021,20009974,"42,523.91",Environment Agency,SUBSCRIPTIONS & PUBLICATIONS,Non-Service Cost Centres,Environment Agency Levy,A82000
London Borough of Sutton,04/08/2021,50049959,"2,021.00",Enviva Paediatric Care,DISABLED CHILDRENS TEAM,Peoples Services,Provider Contract Payments,A44290
London Borough of Sutton,04/08/2021,50049993,"1,048.96",Enviva Paediatric Care,DISABLED CHILDRENS TEAM,Peoples Services,Provider Contract Payments,A44290
London Borough of Sutton,03/08/2021,20009147,"7,841.63",Epsom & St Helier Nhs Trust,OFFICE SERVICES,Health and Wellbeing,Provider Contract Payments,A44290
London Borough of Sutton,20/08/2021,20009233,"17,980.00",Epsom & St Helier Nhs Trust,OFFICE SERVICES,Resources,Miscellaneous Expenses,A49000
London Borough of Sutton,06/09/2021,50049723,932.4,Epsom & St Helier Nhs Trust,OFFICE SERVICES,Peoples Services,Place Funding,A56110
London Borough of Sutton,06/09/2021,50049829,"10,647.00",Epsom & St Helier Nhs Trust,OFFICE SERVICES,Peoples Services,Place Funding,A56110
London Borough of Sutton,19/07/2021,20009337,550,Essential Healthcare Solutions (UK) Ltd,SUNDRY SUPPLIER - FINANCE,Environment Housing and Neighbourhoods,Grants Given For Capital Purposes,C20004
London Borough of Sutton,05/08/2021,50052765,"4,042.49",Ethelbert Specialist Homes Ltd,CHILDREN'S SERVICES - RESIDENTIAL,Peoples Services,Foster Parents Support,A44110
London Borough of Sutton,30/06/2021,20006339,"1,050.00",Euro Hotels (Croydon Court) Ltd,ACCOMMODATION BED & BREAKFAST,Peoples Services,Client Care/Assistance,A61011
London Borough of Sutton,31/05/2021,20006340,"1,085.00",Euro Hotels (Croydon Court) Ltd,ACCOMMODATION BED & BREAKFAST,Peoples Services,Client Care/Assistance,A61011
London Borough of Sutton,31/07/2021,20008851,"1,658.50",Euro Hotels (Thornton Heath) Ltd,ACCOMMODATION BED & BREAKFAST,Environment Housing and Neighbourhoods,Bed & Breakfast,A56000
London Borough of Sutton,31/07/2021,20008854,"9,746.00",Euro Hotels (Thornton Heath) Ltd,ACCOMMODATION BED & BREAKFAST,Environment Housing and Neighbourhoods,Bed & Breakfast,A56000
London Borough of Sutton,31/03/2021,20008855,"24,836.80",Euro Hotels (Thornton Heath) Ltd,ACCOMMODATION BED & BREAKFAST,Environment Housing and Neighbourhoods,Bed & Breakfast,A56000
London Borough of Sutton,22/08/2021,50053341,796.25,Exodus Health Care Services Ltd,SOCIAL SERVICES RESIDENTIAL,Peoples Services,Home Care Services,A56019
London Borough of Sutton,20/06/2021,50053342,796.25,Exodus Health Care Services Ltd,SOCIAL SERVICES RESIDENTIAL,Peoples Services,Home Care Services,A56019
London Borough of Sutton,27/06/2021,50053343,796.25,Exodus Health Care Services Ltd,SOCIAL SERVICES RESIDENTIAL,Peoples Services,Home Care Services,A56019
London Borough of Sutton,18/07/2021,50053344,796.25,Exodus Health Care Services Ltd,SOCIAL SERVICES RESIDENTIAL,Peoples Services,Home Care Services,A56019
London Borough of Sutton,18/07/2021,50053358,551.15,Exodus Health Care Services Ltd,SOCIAL SERVICES RESIDENTIAL,Peoples Services,Home Care Services,A56019
London Borough of Sutton,18/07/2021,50053358,91.98,Exodus Health Care Services Ltd,SOCIAL SERVICES RESIDENTIAL,Peoples Services,Home Care Services,A56019
London Borough of Sutton,22/08/2021,50053359,551.15,Exodus Health Care Services Ltd,SOCIAL SERVICES RESIDENTIAL,Peoples Services,Home Care Services,A56019
London Borough of Sutton,22/08/2021,50053359,91.98,Exodus Health Care Services Ltd,SOCIAL SERVICES RESIDENTIAL,Peoples Services,Home Care Services,A56019
London Borough of Sutton,20/06/2021,50053364,612.5,Exodus Health Care Services Ltd,SOCIAL SERVICES RESIDENTIAL,Peoples Services,Home Care Services,A56019
London Borough of Sutton,20/06/2021,50053364,52.5,Exodus Health Care Services Ltd,SOCIAL SERVICES RESIDENTIAL,Peoples Services,Home Care Services,A56019
London Borough of Sutton,27/06/2021,50053365,612.5,Exodus Health Care Services Ltd,SOCIAL SERVICES RESIDENTIAL,Peoples Services,Home Care Services,A56019
London Borough of Sutton,27/06/2021,50053365,52.5,Exodus Health Care Services Ltd,SOCIAL SERVICES RESIDENTIAL,Peoples Services,Home Care Services,A56019
London Borough of Sutton,18/07/2021,50053366,612.5,Exodus Health Care Services Ltd,SOCIAL SERVICES RESIDENTIAL,Peoples Services,Home Care Services,A56019
London Borough of Sutton,18/07/2021,50053366,52.5,Exodus Health Care Services Ltd,SOCIAL SERVICES RESIDENTIAL,Peoples Services,Home Care Services,A56019
London Borough of Sutton,22/08/2021,50053367,612.5,Exodus Health Care Services Ltd,SOCIAL SERVICES RESIDENTIAL,Peoples Services,Home Care Services,A56019
London Borough of Sutton,22/08/2021,50053367,52.5,Exodus Health Care Services Ltd,SOCIAL SERVICES RESIDENTIAL,Peoples Services,Home Care Services,A56019
London Borough of Sutton,22/08/2021,50053368,551.25,Exodus Health Care Services Ltd,SOCIAL SERVICES RESIDENTIAL,Peoples Services,Home Care Services,A56019
London Borough of Sutton,22/08/2021,50053368,52.5,Exodus Health Care Services Ltd,SOCIAL SERVICES RESIDENTIAL,Peoples Services,Home Care Services,A56019
London Borough of Sutton,20/06/2021,50053369,551.25,Exodus Health Care Services Ltd,SOCIAL SERVICES RESIDENTIAL,Peoples Services,Home Care Services,A56019
London Borough of Sutton,20/06/2021,50053369,52.5,Exodus Health Care Services Ltd,SOCIAL SERVICES RESIDENTIAL,Peoples Services,Home Care Services,A56019
London Borough of Sutton,27/06/2021,50053370,551.25,Exodus Health Care Services Ltd,SOCIAL SERVICES RESIDENTIAL,Peoples Services,Home Care Services,A56019
London Borough of Sutton,27/06/2021,50053370,52.5,Exodus Health Care Services Ltd,SOCIAL SERVICES RESIDENTIAL,Peoples Services,Home Care Services,A56019
London Borough of Sutton,18/07/2021,50053371,551.25,Exodus Health Care Services Ltd,SOCIAL SERVICES RESIDENTIAL,Peoples Services,Home Care Services,A56019
London Borough of Sutton,18/07/2021,50053371,52.5,Exodus Health Care Services Ltd,SOCIAL SERVICES RESIDENTIAL,Peoples Services,Home Care Services,A56019
London Borough of Sutton,22/08/2021,50053380,551.25,Exodus Health Care Services Ltd,SOCIAL SERVICES RESIDENTIAL,Peoples Services,Home Care Services,A56019
London Borough of Sutton,20/06/2021,50053381,551.25,Exodus Health Care Services Ltd,SOCIAL SERVICES RESIDENTIAL,Peoples Services,Home Care Services,A56019
London Borough of Sutton,27/06/2021,50053382,551.25,Exodus Health Care Services Ltd,SOCIAL SERVICES RESIDENTIAL,Peoples Services,Home Care Services,A56019
London Borough of Sutton,18/07/2021,50053383,551.25,Exodus Health Care Services Ltd,SOCIAL SERVICES RESIDENTIAL,Peoples Services,Home Care Services,A56019
London Borough of Sutton,22/08/2021,50053384,551.25,Exodus Health Care Services Ltd,SOCIAL SERVICES RESIDENTIAL,Peoples Services,Home Care Services,A56019
London Borough of Sutton,20/06/2021,50053385,551.25,Exodus Health Care Services Ltd,SOCIAL SERVICES RESIDENTIAL,Peoples Services,Home Care Services,A56019
London Borough of Sutton,27/06/2021,50053386,551.25,Exodus Health Care Services Ltd,SOCIAL SERVICES RESIDENTIAL,Peoples Services,Home Care Services,A56019
London Borough of Sutton,18/07/2021,50053387,551.25,Exodus Health Care Services Ltd,SOCIAL SERVICES RESIDENTIAL,Peoples Services,Home Care Services,A56019
London Borough of Sutton,22/08/2021,50053388,551.25,Exodus Health Care Services Ltd,SOCIAL SERVICES RESIDENTIAL,Peoples Services,Home Care Services,A56019
London Borough of Sutton,20/06/2021,50053389,551.25,Exodus Health Care Services Ltd,SOCIAL SERVICES RESIDENTIAL,Peoples Services,Home Care Services,A56019
London Borough of Sutton,27/06/2021,50053390,551.25,Exodus Health Care Services Ltd,SOCIAL SERVICES RESIDENTIAL,Peoples Services,Home Care Services,A56019
London Borough of Sutton,18/07/2021,50053391,551.25,Exodus Health Care Services Ltd,SOCIAL SERVICES RESIDENTIAL,Peoples Services,Home Care Services,A56019
London Borough of Sutton,22/08/2021,50053412,612.5,Exodus Health Care Services Ltd,SOCIAL SERVICES RESIDENTIAL,Peoples Services,Home Care Services,A56019
London Borough of Sutton,18/07/2021,50053415,612.5,Exodus Health Care Services Ltd,SOCIAL SERVICES RESIDENTIAL,Peoples Services,Home Care Services,A56019
London Borough of Sutton,22/08/2021,50053416,735,Exodus Health Care Services Ltd,SOCIAL SERVICES RESIDENTIAL,Peoples Services,Home Care Services,A56019
London Borough of Sutton,22/08/2021,50053416,43.75,Exodus Health Care Services Ltd,SOCIAL SERVICES RESIDENTIAL,Peoples Services,Home Care Services,A56019
London Borough of Sutton,20/06/2021,50053417,367.5,Exodus Health Care Services Ltd,SOCIAL SERVICES RESIDENTIAL,Peoples Services,Home Care Services,A56019
London Borough of Sutton,20/06/2021,50053417,227.5,Exodus Health Care Services Ltd,SOCIAL SERVICES RESIDENTIAL,Peoples Services,Home Care Services,A56019
London Borough of Sutton,27/06/2021,50053418,367.5,Exodus Health Care Services Ltd,SOCIAL SERVICES RESIDENTIAL,Peoples Services,Home Care Services,A56019
London Borough of Sutton,27/06/2021,50053418,227.5,Exodus Health Care Services Ltd,SOCIAL SERVICES RESIDENTIAL,Peoples Services,Home Care Services,A56019
London Borough of Sutton,18/07/2021,50053419,367.5,Exodus Health Care Services Ltd,SOCIAL SERVICES RESIDENTIAL,Peoples Services,Home Care Services,A56019
London Borough of Sutton,18/07/2021,50053419,227.5,Exodus Health Care Services Ltd,SOCIAL SERVICES RESIDENTIAL,Peoples Services,Home Care Services,A56019
London Borough of Sutton,22/08/2021,50053452,551.25,Exodus Health Care Services Ltd,SOCIAL SERVICES RESIDENTIAL,Peoples Services,Home Care Services,A56019
London Borough of Sutton,20/06/2021,50053453,551.25,Exodus Health Care Services Ltd,SOCIAL SERVICES RESIDENTIAL,Peoples Services,Home Care Services,A56019
London Borough of Sutton,27/06/2021,50053454,551.25,Exodus Health Care Services Ltd,SOCIAL SERVICES RESIDENTIAL,Peoples Services,Home Care Services,A56019
London Borough of Sutton,18/07/2021,50053455,551.25,Exodus Health Care Services Ltd,SOCIAL SERVICES RESIDENTIAL,Peoples Services,Home Care Services,A56019
London Borough of Sutton,22/08/2021,50053456,735,Exodus Health Care Services Ltd,SOCIAL SERVICES RESIDENTIAL,Peoples Services,Home Care Services,A56019
London Borough of Sutton,20/06/2021,50053457,735,Exodus Health Care Services Ltd,SOCIAL SERVICES RESIDENTIAL,Peoples Services,Home Care Services,A56019
London Borough of Sutton,27/06/2021,50053458,735,Exodus Health Care Services Ltd,SOCIAL SERVICES RESIDENTIAL,Peoples Services,Home Care Services,A56019
London Borough of Sutton,18/07/2021,50053459,735,Exodus Health Care Services Ltd,SOCIAL SERVICES RESIDENTIAL,Peoples Services,Home Care Services,A56019
London Borough of Sutton,20/06/2021,50053498,367.47,Exodus Health Care Services Ltd,SOCIAL SERVICES RESIDENTIAL,Peoples Services,Home Care Services,A56019
London Borough of Sutton,20/06/2021,50053498,336.91,Exodus Health Care Services Ltd,SOCIAL SERVICES RESIDENTIAL,Peoples Services,Home Care Services,A56019
London Borough of Sutton,27/06/2021,50053499,367.47,Exodus Health Care Services Ltd,SOCIAL SERVICES RESIDENTIAL,Peoples Services,Home Care Services,A56019
London Borough of Sutton,27/06/2021,50053499,336.91,Exodus Health Care Services Ltd,SOCIAL SERVICES RESIDENTIAL,Peoples Services,Home Care Services,A56019
London Borough of Sutton,18/07/2021,50053500,367.47,Exodus Health Care Services Ltd,SOCIAL SERVICES RESIDENTIAL,Peoples Services,Home Care Services,A56019
London Borough of Sutton,18/07/2021,50053500,336.91,Exodus Health Care Services Ltd,SOCIAL SERVICES RESIDENTIAL,Peoples Services,Home Care Services,A56019
London Borough of Sutton,22/08/2021,50053501,367.47,Exodus Health Care Services Ltd,SOCIAL SERVICES RESIDENTIAL,Peoples Services,Home Care Services,A56019
London Borough of Sutton,22/08/2021,50053501,336.91,Exodus Health Care Services Ltd,SOCIAL SERVICES RESIDENTIAL,Peoples Services,Home Care Services,A56019
London Borough of Sutton,20/06/2021,50053533,551.25,Exodus Health Care Services Ltd,SOCIAL SERVICES RESIDENTIAL,Peoples Services,Home Care Services,A56019
London Borough of Sutton,27/06/2021,50053534,551.25,Exodus Health Care Services Ltd,SOCIAL SERVICES RESIDENTIAL,Peoples Services,Home Care Services,A56019
London Borough of Sutton,20/06/2021,50053572,551.15,Exodus Health Care Services Ltd,SOCIAL SERVICES RESIDENTIAL,Peoples Services,Home Care Services,A56019
London Borough of Sutton,20/06/2021,50053572,91.98,Exodus Health Care Services Ltd,SOCIAL SERVICES RESIDENTIAL,Peoples Services,Home Care Services,A56019
London Borough of Sutton,27/06/2021,50053573,551.15,Exodus Health Care Services Ltd,SOCIAL SERVICES RESIDENTIAL,Peoples Services,Home Care Services,A56019
London Borough of Sutton,27/06/2021,50053573,91.98,Exodus Health Care Services Ltd,SOCIAL SERVICES RESIDENTIAL,Peoples Services,Home Care Services,A56019
London Borough of Sutton,29/08/2021,50055980,551.25,Exodus Health Care Services Ltd,SOCIAL SERVICES RESIDENTIAL,Peoples Services,Home Care Services,A56019
London Borough of Sutton,05/09/2021,50055981,551.25,Exodus Health Care Services Ltd,SOCIAL SERVICES RESIDENTIAL,Peoples Services,Home Care Services,A56019
London Borough of Sutton,12/09/2021,50055982,551.25,Exodus Health Care Services Ltd,SOCIAL SERVICES RESIDENTIAL,Peoples Services,Home Care Services,A56019
London Borough of Sutton,29/08/2021,50055984,735,Exodus Health Care Services Ltd,SOCIAL SERVICES RESIDENTIAL,Peoples Services,Home Care Services,A56019
London Borough of Sutton,05/09/2021,50055985,735,Exodus Health Care Services Ltd,SOCIAL SERVICES RESIDENTIAL,Peoples Services,Home Care Services,A56019
London Borough of Sutton,12/09/2021,50055986,735,Exodus Health Care Services Ltd,SOCIAL SERVICES RESIDENTIAL,Peoples Services,Home Care Services,A56019
London Borough of Sutton,29/08/2021,50056011,367.47,Exodus Health Care Services Ltd,SOCIAL SERVICES RESIDENTIAL,Peoples Services,Home Care Services,A56019
London Borough of Sutton,29/08/2021,50056011,336.91,Exodus Health Care Services Ltd,SOCIAL SERVICES RESIDENTIAL,Peoples Services,Home Care Services,A56019
London Borough of Sutton,05/09/2021,50056012,367.47,Exodus Health Care Services Ltd,SOCIAL SERVICES RESIDENTIAL,Peoples Services,Home Care Services,A56019
London Borough of Sutton,05/09/2021,50056012,336.91,Exodus Health Care Services Ltd,SOCIAL SERVICES RESIDENTIAL,Peoples Services,Home Care Services,A56019
London Borough of Sutton,12/09/2021,50056013,367.47,Exodus Health Care Services Ltd,SOCIAL SERVICES RESIDENTIAL,Peoples Services,Home Care Services,A56019
London Borough of Sutton,12/09/2021,50056013,336.91,Exodus Health Care Services Ltd,SOCIAL SERVICES RESIDENTIAL,Peoples Services,Home Care Services,A56019
London Borough of Sutton,12/09/2021,50056065,796.25,Exodus Health Care Services Ltd,SOCIAL SERVICES RESIDENTIAL,Peoples Services,Home Care Services,A56019
London Borough of Sutton,29/08/2021,50056069,796.25,Exodus Health Care Services Ltd,SOCIAL SERVICES RESIDENTIAL,Peoples Services,Home Care Services,A56019
London Borough of Sutton,05/09/2021,50056070,796.25,Exodus Health Care Services Ltd,SOCIAL SERVICES RESIDENTIAL,Peoples Services,Home Care Services,A56019
London Borough of Sutton,12/09/2021,50056072,735,Exodus Health Care Services Ltd,SOCIAL SERVICES RESIDENTIAL,Peoples Services,Home Care Services,A56019
London Borough of Sutton,12/09/2021,50056072,43.75,Exodus Health Care Services Ltd,SOCIAL SERVICES RESIDENTIAL,Peoples Services,Home Care Services,A56019
London Borough of Sutton,29/08/2021,50056098,612.5,Exodus Health Care Services Ltd,SOCIAL SERVICES RESIDENTIAL,Peoples Services,Home Care Services,A56019
London Borough of Sutton,05/09/2021,50056099,612.5,Exodus Health Care Services Ltd,SOCIAL SERVICES RESIDENTIAL,Peoples Services,Home Care Services,A56019
London Borough of Sutton,12/09/2021,50056100,612.5,Exodus Health Care Services Ltd,SOCIAL SERVICES RESIDENTIAL,Peoples Services,Home Care Services,A56019
London Borough of Sutton,29/08/2021,50056101,735,Exodus Health Care Services Ltd,SOCIAL SERVICES RESIDENTIAL,Peoples Services,Home Care Services,A56019
London Borough of Sutton,29/08/2021,50056101,43.75,Exodus Health Care Services Ltd,SOCIAL SERVICES RESIDENTIAL,Peoples Services,Home Care Services,A56019
London Borough of Sutton,05/09/2021,50056102,735,Exodus Health Care Services Ltd,SOCIAL SERVICES RESIDENTIAL,Peoples Services,Home Care Services,A56019
London Borough of Sutton,05/09/2021,50056102,43.75,Exodus Health Care Services Ltd,SOCIAL SERVICES RESIDENTIAL,Peoples Services,Home Care Services,A56019
London Borough of Sutton,29/08/2021,50056126,551.15,Exodus Health Care Services Ltd,SOCIAL SERVICES RESIDENTIAL,Peoples Services,Home Care Services,A56019
London Borough of Sutton,29/08/2021,50056126,91.98,Exodus Health Care Services Ltd,SOCIAL SERVICES RESIDENTIAL,Peoples Services,Home Care Services,A56019
London Borough of Sutton,05/09/2021,50056127,551.15,Exodus Health Care Services Ltd,SOCIAL SERVICES RESIDENTIAL,Peoples Services,Home Care Services,A56019
London Borough of Sutton,05/09/2021,50056127,91.98,Exodus Health Care Services Ltd,SOCIAL SERVICES RESIDENTIAL,Peoples Services,Home Care Services,A56019
London Borough of Sutton,12/09/2021,50056128,551.15,Exodus Health Care Services Ltd,SOCIAL SERVICES RESIDENTIAL,Peoples Services,Home Care Services,A56019
London Borough of Sutton,12/09/2021,50056128,91.98,Exodus Health Care Services Ltd,SOCIAL SERVICES RESIDENTIAL,Peoples Services,Home Care Services,A56019
London Borough of Sutton,29/08/2021,50056132,612.5,Exodus Health Care Services Ltd,SOCIAL SERVICES RESIDENTIAL,Peoples Services,Home Care Services,A56019
London Borough of Sutton,29/08/2021,50056132,52.5,Exodus Health Care Services Ltd,SOCIAL SERVICES RESIDENTIAL,Peoples Services,Home Care Services,A56019
London Borough of Sutton,05/09/2021,50056133,612.5,Exodus Health Care Services Ltd,SOCIAL SERVICES RESIDENTIAL,Peoples Services,Home Care Services,A56019
London Borough of Sutton,05/09/2021,50056133,52.5,Exodus Health Care Services Ltd,SOCIAL SERVICES RESIDENTIAL,Peoples Services,Home Care Services,A56019
London Borough of Sutton,12/09/2021,50056134,612.5,Exodus Health Care Services Ltd,SOCIAL SERVICES RESIDENTIAL,Peoples Services,Home Care Services,A56019
London Borough of Sutton,12/09/2021,50056134,52.5,Exodus Health Care Services Ltd,SOCIAL SERVICES RESIDENTIAL,Peoples Services,Home Care Services,A56019
London Borough of Sutton,29/08/2021,50056135,551.25,Exodus Health Care Services Ltd,SOCIAL SERVICES RESIDENTIAL,Peoples Services,Home Care Services,A56019
London Borough of Sutton,29/08/2021,50056135,52.5,Exodus Health Care Services Ltd,SOCIAL SERVICES RESIDENTIAL,Peoples Services,Home Care Services,A56019
London Borough of Sutton,05/09/2021,50056136,551.25,Exodus Health Care Services Ltd,SOCIAL SERVICES RESIDENTIAL,Peoples Services,Home Care Services,A56019
London Borough of Sutton,05/09/2021,50056136,52.5,Exodus Health Care Services Ltd,SOCIAL SERVICES RESIDENTIAL,Peoples Services,Home Care Services,A56019
London Borough of Sutton,12/09/2021,50056137,551.25,Exodus Health Care Services Ltd,SOCIAL SERVICES RESIDENTIAL,Peoples Services,Home Care Services,A56019
London Borough of Sutton,12/09/2021,50056137,52.5,Exodus Health Care Services Ltd,SOCIAL SERVICES RESIDENTIAL,Peoples Services,Home Care Services,A56019
London Borough of Sutton,12/09/2021,50056143,551.25,Exodus Health Care Services Ltd,SOCIAL SERVICES RESIDENTIAL,Peoples Services,Home Care Services,A56019
London Borough of Sutton,29/08/2021,50056144,551.25,Exodus Health Care Services Ltd,SOCIAL SERVICES RESIDENTIAL,Peoples Services,Home Care Services,A56019
London Borough of Sutton,05/09/2021,50056145,551.25,Exodus Health Care Services Ltd,SOCIAL SERVICES RESIDENTIAL,Peoples Services,Home Care Services,A56019
London Borough of Sutton,12/09/2021,50056146,551.25,Exodus Health Care Services Ltd,SOCIAL SERVICES RESIDENTIAL,Peoples Services,Home Care Services,A56019
London Borough of Sutton,29/08/2021,50056147,551.25,Exodus Health Care Services Ltd,SOCIAL SERVICES RESIDENTIAL,Peoples Services,Home Care Services,A56019
London Borough of Sutton,05/09/2021,50056148,551.25,Exodus Health Care Services Ltd,SOCIAL SERVICES RESIDENTIAL,Peoples Services,Home Care Services,A56019
London Borough of Sutton,12/09/2021,50056149,551.25,Exodus Health Care Services Ltd,SOCIAL SERVICES RESIDENTIAL,Peoples Services,Home Care Services,A56019
London Borough of Sutton,29/08/2021,50056150,551.25,Exodus Health Care Services Ltd,SOCIAL SERVICES RESIDENTIAL,Peoples Services,Home Care Services,A56019
London Borough of Sutton,05/09/2021,50056151,551.25,Exodus Health Care Services Ltd,SOCIAL SERVICES RESIDENTIAL,Peoples Services,Home Care Services,A56019
London Borough of Sutton,16/08/2021,20007623,"2,500.00",Express Drainage Solutions,SUNDRY SUPPLIER - ENV SERVICES,Corporate Balance Sheet,Highways Bonds,B32171
London Borough of Sutton,16/08/2021,20007624,"1,500.00",Express Drainage Solutions,SUNDRY SUPPLIER - ENV SERVICES,Corporate Balance Sheet,Highways Bonds,B32171
London Borough of Sutton,03/09/2021,20008633,"8,386.20",F L Beadle & Sons Ltd,CONSTRUCTION INDUSTRY,Environment Housing and Neighbourhoods,Other Supplies & Services,A44291
London Borough of Sutton,03/09/2021,20008634,"3,665.00",F L Beadle & Sons Ltd,CONSTRUCTION INDUSTRY,Environment Housing and Neighbourhoods,Road Markings,A20022
London Borough of Sutton,03/09/2021,20008635,"3,430.00",F L Beadle & Sons Ltd,CONSTRUCTION INDUSTRY,Environment Housing and Neighbourhoods,Road Markings,A20022
London Borough of Sutton,24/09/2021,20009875,"3,160.00",F L Beadle & Sons Ltd,CONSTRUCTION INDUSTRY,Environment Housing and Neighbourhoods,Equipment Purchases,C17000
London Borough of Sutton,16/08/2021,20008381,"9,390.87",F L Mitchell Fencing Contractor Limited,CONSTRUCTION INDUSTRY,Environment Housing and Neighbourhoods,Payments to Contractors,C14000
London Borough of Sutton,31/08/2021,20008516,"40,422.56",F M Conway Limited,CONSTRUCTION INDUSTRY,Environment Housing and Neighbourhoods,Payments to Contractors,C14000
London Borough of Sutton,06/09/2021,20008785,"15,000.00",F M Conway Limited,CONSTRUCTION INDUSTRY,Environment Housing and Neighbourhoods,Payments to Contractors,C14000
London Borough of Sutton,14/09/2021,20009304,"15,316.36",F M Conway Limited,CONSTRUCTION INDUSTRY,Environment Housing and Neighbourhoods,Payments to Contractors,C14000
London Borough of Sutton,06/09/2021,50049681,"1,554.00",Fairlands Pre-School,GRANTS & EX GRATIA PAYMENTS,Peoples Services,Place Funding,A56110
London Borough of Sutton,06/09/2021,50049754,"4,641.00",Fairlands Pre-School,GRANTS & EX GRATIA PAYMENTS,Peoples Services,Place Funding,A56110
London Borough of Sutton,27/08/2021,50052748,"5,712.85",Family First Fostering,CHILDREN'S SERVICES - FOSTERING & ADOPTION SERVICES,Peoples Services,Foster Parents Support,A44110
London Borough of Sutton,31/08/2021,50052731,"4,431.46",Family Fostering Ltd,CHILDREN'S SERVICES - FOSTERING & ADOPTION SERVICES,Peoples Services,Foster Parents Support,A44110
London Borough of Sutton,03/09/2021,50050307,"3,756.25",Family Star Ltd,SOCIAL SERVICES RESIDENTIAL,Peoples Services,Nursing Care Short Term,A56026
London Borough of Sutton,03/09/2021,50050307,-750.4,Family Star Ltd,SOCIAL SERVICES RESIDENTIAL,Peoples Services,Nursing Care - 3rd party top up payment,A56023
London Borough of Sutton,03/09/2021,50050369,"3,626.72",Family Star Ltd,SOCIAL SERVICES RESIDENTIAL,Peoples Services,Nursing Care Short Term,A56026
London Borough of Sutton,03/09/2021,50050369,-750.4,Family Star Ltd,SOCIAL SERVICES RESIDENTIAL,Peoples Services,Nursing Care - 3rd party top up payment,A56023
London Borough of Sutton,03/09/2021,50050472,-750.4,Family Star Ltd,SOCIAL SERVICES RESIDENTIAL,Peoples Services,Nursing Care - 3rd party top up payment,A56023
London Borough of Sutton,03/09/2021,50050472,"2,876.32",Family Star Ltd,SOCIAL SERVICES RESIDENTIAL,Peoples Services,Nursing Care Short Term,A56026
London Borough of Sutton,03/09/2021,50050515,"3,626.72",Family Star Ltd,SOCIAL SERVICES RESIDENTIAL,Peoples Services,Nursing Care - Ext Provider,A56025
London Borough of Sutton,03/09/2021,50050515,-750.4,Family Star Ltd,SOCIAL SERVICES RESIDENTIAL,Peoples Services,Nursing Care - 3rd party top up payment,A56023
London Borough of Sutton,03/09/2021,50050540,"10,307.14",Family Star Ltd,SOCIAL SERVICES RESIDENTIAL,Peoples Services,Respite Care,A56116
London Borough of Sutton,03/09/2021,50050630,"3,538.56",Family Star Ltd,SOCIAL SERVICES RESIDENTIAL,Peoples Services,Nursing Care - Ext Provider,A56025
London Borough of Sutton,03/09/2021,50050630,-662.24,Family Star Ltd,SOCIAL SERVICES RESIDENTIAL,Peoples Services,Nursing Care - 3rd party top up payment,A56023
London Borough of Sutton,03/09/2021,50050634,"3,626.72",Family Star Ltd,SOCIAL SERVICES RESIDENTIAL,Peoples Services,Nursing Care Short Term,A56026
London Borough of Sutton,03/09/2021,50050634,-750.4,Family Star Ltd,SOCIAL SERVICES RESIDENTIAL,Peoples Services,Nursing Care - 3rd party top up payment,A56023
London Borough of Sutton,03/09/2021,50050656,-750.4,Family Star Ltd,SOCIAL SERVICES RESIDENTIAL,Peoples Services,Nursing Care - 3rd party top up payment,A56023
London Borough of Sutton,03/09/2021,50050656,"3,626.72",Family Star Ltd,SOCIAL SERVICES RESIDENTIAL,Peoples Services,Nursing Care Short Term,A56026
London Borough of Sutton,03/09/2021,50050665,"9,973.48",Family Star Ltd,SOCIAL SERVICES RESIDENTIAL,Peoples Services,Nursing Care - Ext Provider,A56025
London Borough of Sutton,03/09/2021,50050665,"-2,063.60",Family Star Ltd,SOCIAL SERVICES RESIDENTIAL,Peoples Services,Nursing Care - 3rd party top up payment,A56023
London Borough of Sutton,18/09/2021,20009856,"1,000.00",Fingates Co Ltd,SUNDRY SUPPLIER - FINANCE,Environment Housing and Neighbourhoods,Grants Given For Capital Purposes,C20004
London Borough of Sutton,03/09/2021,50050267,"3,520.52",Fircroft Homes,SOCIAL SERVICES RESIDENTIAL,Peoples Services,Residential Care - Ext Provider,A56114
London Borough of Sutton,03/09/2021,50050267,-744.8,Fircroft Homes,SOCIAL SERVICES RESIDENTIAL,Peoples Services,Residential Care - Client Cont ( Net Paymt ),A56113
London Borough of Sutton,06/09/2021,50049954,"2,486.40",First Little Steps  Day Nursery,GRANTS & EX GRATIA PAYMENTS,Peoples Services,Place Funding,A56110
London Borough of Sutton,06/09/2021,50049955,"8,056.13",First Little Steps  Day Nursery,GRANTS & EX GRATIA PAYMENTS,Peoples Services,Place Funding,A56110
London Borough of Sutton,15/07/2021,20006449,709,Fitzpatrick Woolmer Design & Publishing Ltd,REPROGRAPHICS & PHOTOGRAPHY,Environment Housing and Neighbourhoods,Purchase of Furniture & Equipment,C16000
London Borough of Sutton,01/08/2021,50049098,"1,224.28",Fitzroy,SOCIAL SERVICES RESIDENTIAL,Peoples Services,Day Care Services,A56021
London Borough of Sutton,03/09/2021,50050474,"3,848.28",Fitzroy,SOCIAL SERVICES RESIDENTIAL,Peoples Services,Residential Care - Ext Provider,A56114
London Borough of Sutton,03/09/2021,50050474,-425.6,Fitzroy,SOCIAL SERVICES RESIDENTIAL,Peoples Services,Residential Care - Client Cont ( Net Paymt ),A56113
London Borough of Sutton,01/08/2021,50052675,"3,587.14",Five Rivers Child Care Ltd,CHILDREN'S SERVICES - FOSTERING & ADOPTION SERVICES,Peoples Services,Foster Parents Support,A44110
London Borough of Sutton,03/09/2021,50053233,"4,976.00",Fleet Tutors,TEMP STAFF & CONSULTANCY,Peoples Services,Independent School Fees,A56002
London Borough of Sutton,03/09/2021,50053234,"2,136.00",Fleet Tutors,TEMP STAFF & CONSULTANCY,Peoples Services,Independent School Fees,A56002
London Borough of Sutton,03/09/2021,50050622,"7,200.00",Florence Avenue Care Home Ltd,SOCIAL SERVICES RESIDENTIAL,Peoples Services,Residential Care - Ext Provider,A56114
London Borough of Sutton,01/09/2021,50052764,"4,140.70",Flying Colours Foster Care Ltd,CHILDREN'S SERVICES - FOSTERING & ADOPTION SERVICES,Peoples Services,Foster Parents Support,A44110
London Borough of Sutton,06/09/2021,50049700,621.6,Mill House Day Nursery,GRANTS & EX GRATIA PAYMENTS,Peoples Services,Place Funding,A56110
London Borough of Sutton,06/09/2021,50049781,"5,460.00",Mill House Day Nursery,GRANTS & EX GRATIA PAYMENTS,Peoples Services,Place Funding,A56110
London Borough of Sutton,01/09/2021,50049630,"9,623.35",Foresters Primary,GRANTS & EX GRATIA PAYMENTS,Peoples Services,Top-up Funding,A51016
London Borough of Sutton,01/09/2021,50049630,"7,083.00",Foresters Primary,GRANTS & EX GRATIA PAYMENTS,Peoples Services,Top-up individual funding,A60033
London Borough of Sutton,01/09/2021,50049630,"105,814.80",Foresters Primary,GRANTS & EX GRATIA PAYMENTS,Peoples Services,Top-up Funding,A51016
London Borough of Sutton,01/09/2021,50049630,"1,933.33",Foresters Primary,GRANTS & EX GRATIA PAYMENTS,Peoples Services,Top Up Additional Support,A60015
